Workbook

Sheet sauvegarde (hidden)
A1: cboSourceEnergie | B1: -1 | C1: cboSourceEnergie | D1: -1 | E1: cboSourceEnergie | F1: -1 | G1: txtPourcentageEconomieEnergie | I1: txtEconomieIsolationTotaleMur | K1: txtDegresChauffePeriode | M1: txtEconomieHPS | O1: cboSourceEnergie | P1: -1 | Q1: txtConsommationCombustible | S1: cboSourceEnergie | T1: -1 | U1: cboSourceEnergie | V1: -1 | W1: txtNombreLampe
A2: txtRendementEnergetiqueAncienne | C2: txtRendementEnergetiqueAncienne | E2: txtEconomieEnergie | G2: txtConsommationActuelleCombustible | I2: txtEconomieIsolationFondation | K2: lblEconomieAnnuelle | M2: txtEconomieDEL | O2: txtEconomieEnergie | Q2: chkHydroAccumulation | R2: FALSE | S2: txtEconomiesScenario1 | U2: txtConsommation | W2: txtPuissanceLampe
A3: txtRendementEnergetiqueNouvelle | C3: txtRendementEnergetiqueNouvelle | E3: txtConsommationActuelle | G3: optOuvert | H3: FALSE | I3: chkIsolationFondation | J3: FALSE | K3: lblReductionGES | M3: txtNombreLampe | O3: txtConsommationActuelle | Q3: cboSourceGazCarbonique | R3: -1 | S3: txtEconomiesScenario3 | U3: lblConsommationAnticipee | W3: txtUtilisationAnnuelle
A4: txtConsommationActuelle | C4: txtConsommationActuelle | E4: txtPrixCombustible | G4: optFerme | H4: FALSE | I4: txtEconomieIsolationPartielleMur | K4: cboTypeInfiltration | L4: -1 | M4: txtPuissanceLampe | O4: txtPrixCombustible | Q4: txtPrixCombustible | S4: txtConsommationActuelle | U4: lblEconomiesEnCombustible | W4: txtCoutTotalInvestissement
A5: lblConsommationAnticipee | C5: lblReductionGES | E5: txtCoutTotalInvestissement | G5: txtPrix | I5: txtConsommationActuelleCombustible | K5: optVitesse270 | L5: FALSE | M5: txtUtilisationAnnuelle | O5: txtCoutTotalInvestissement | Q5: Label29 | R5: % | S5: lblConsommationAnticipee | U5: lblReductionGES | W5: txtFacteurConversionElectricite
A6: lblEconomieAnnuelle | C6: lblConsommationAvecUnite | E6: lblConsommationAnticipee | G6: txtInvestissement | I6: optIsolationTotaleMur | J6: FALSE | K6: optVitesse342 | L6: FALSE | M6: optHPS | N6: FALSE | O6: lblConsommationAnticipee | Q6: txtEconomiesAnnuellesCombustible | S6: lblEconomieAnnuelle | U6: lblConsommationAvecUnite | W6: txtRaccourcissementPeriode
A7: lblReductionGES | C7: lblConsommationActuelleKWH | E7: lblEconomieAnnuelle | G7: lblConsommationAnticipee | I7: optIsolationPartielleMur | J7: FALSE | K7: cboSourceEnergie | L7: -1 | M7: optDEL | N7: FALSE | O7: lblEconomieAnnuelle | Q7: lblConsommationAnticipee | S7: lblReductionGES | U7: txtPrix | W7: txtConsommationActuelleCombustible
A8: lblConsommationAvecUnite | C8: lblConsommationAnticipeeKWH | E8: lblReductionGES | G8: lblEconomieEnergieAnnuelle | I8: txtPrixCombustible | K8: txtMJParUnite | M8: txtCoutTotalInvestissement | O8: lblReductionGES | Q8: lblEconomiesUniteChauffage | S8: txtPrix | U8: lblEconomiesEnArgent | W8: txtPrixCombustible
A9: txtPrix | C9: lblEconomieAnnuelleKWH | E9: lblEconomiesEnArgent | G9: lblReductionGES | I9: txtCoutTotalInvestissement | K9: txtKWHParUnite | M9: txtTarifElectricite | O9: lblEconomiesEnArgent | Q9: lblReductionGES | S9: lblEconomiesEnArgent | U9: txtInvestissement | W9: lblUnite2 | X9: kg
A10: lblEconomiesEnArgent | C10: txtPrix | E10: lblPRI | G10: lblEconomiesEnArgent | I10: lblConsommationAnticipee | K10: txtEmissionsGES | M10: lblConsommationAnticipee | O10: lblPRI | Q10: lblEconomiesArgentChauffage | S10: txtCoutTotal | U10: lblPRI | W10: txtConsommationJournaliere
A11: txtMJParUnite | C11: lblPrixEtUniteActuel | E11: txtMJParUnite | G11: lblPRI | I11: lblEconomieEnergieAnnuelle | K11: lblMJParUnite | L11: MJ/L | M11: lblEconomieAnnuelle | O11: txtMJParUnite | Q11: lblPRI | S11: lblPRI | U11: optEtude | V11: FALSE | W11: lblConsommationAnticipeeElectricite
A12: txtKWHParUnite | C12: lblEconomiesEnArgent | E12: txtKWHParUnite | G12: cboSourceEnergie | H12: -1 | I12: lblReductionGES | K12: lblKWHParUnite | L12: kWh/L | M12: lblPRI | O12: txtKWHParUnite | Q12: lblEconomiesArgentCO2 | S12: opt1ChangementPolySimpleVersDouble | T12: FALSE | U12: optModele | V12: FALSE | W12: lblConsommationAnticipeeChauffage
A13: txtEmissionsGES | C13: txtPrixFuture | E13: txtEmissionsGES | G13: txtMJParUnite | I13: lblEconomiesEnArgent | K13: lblEmissionsGES | L13: g CO2/L | M13: lblEconomiesEnArgent | O13: txtEmissionsGES | Q13: lblEconomiesArgentTotale | S13: opt2Remplacement | T13: FALSE | U13: cboCalendrier | V13: -1 | W13: lblEconomiesUniteChauffage
A14: txtCoutTotal | C14: lblPrixEtUniteFutur | E14: lblMJParUnite | G14: txtKWHParUnite | I14: lblPRI | O14: lblMJParUnite | Q14: cboSourceEnergie | R14: -1 | S14: opt3RemplacementAvecPolyIR | T14: FALSE | U14: txtEconomiesSelonEtude | W14: lblEconomiesArgentChauffage
A15: txtFraisAnnuelsExploitationEtEntretien | C15: cboSourceEnergieFuture | D15: -1 | E15: lblKWHParUnite | G15: txtEmissionsGES | I15: cboSourceEnergie | J15: -1 | O15: lblKWHParUnite | Q15: txtMJParUnite | S15: txtMJParUnite | U15: txtEconomiesSelonModeleEcran | W15: lblPRI
A16: lblPRI | C16: txtCoutTotal | E16: lblEmissionsGES | G16: lblMJParUnite | I16: txtMJParUnite | O16: lblEmissionsGES | Q16: txtKWHParUnite | S16: txtKWHParUnite | U16: lblRatio | W16: lblReductionsGES
A17: lblMJParUnite | C17: txtCoutsAnnuelsExploitationEtEntretien | E17: lblConsommationAvecUnite | G17: lblKWHParUnite | I17: txtKWHParUnite | O17: lblConsommationAvecUnite | Q17: txtEmissionsGES | S17: txtEmissionsGES | U17: lblEconomiesEnPourcent | W17: cboSourceEnergie | X17: -1
A18: lblKWHParUnite | C18: lblPRI | G18: lblEmissionsGES | I18: txtEmissionsGES | O18: lblEconomiesElectriciteKWH | Q18: lblMJParUnite | S18: lblMJParUnite | U18: txtHauteurGouttiere | W18: txtMJParUnite
A19: lblEmissionsGES | C19: txtMJParUnite | G19: lblConsommationAvecUnite | I19: lblMJParUnite | O19: lblEconomiesElectriciteArgent | Q19: lblKWHParUnite | S19: lblKWHParUnite | U19: txtHauteurPignon | W19: txtKWHParUnite
C20: txtKWHParUnite | I20: lblKWHParUnite | O20: txtNombreLampe | Q20: lblEmissionsGES | S20: lblEmissionsGES | U20: txtLargeur | W20: txtEmissionsGES
C21: txtEmissionsGES | I21: lblEmissionsGES | O21: txtPuissanceLampe | Q21: lblConsommationAvecUnite | S21: lblConsommationAvecUnite | U21: txtLongueur | W21: lblMJParUnite
C22: lblMJParUnite | I22: lblConsommationAvecUnite | O22: txtNombreHeuresEvitees | Q22: txtConsommationEnrichissementCarbonne | U22: txtMJParUnite | W22: lblKWHParUnite
C23: lblKWHParUnite | O23: txtPrixElectricite | Q23: lblEntreConsommation | R23: Consommation pour enrichissement carbonné | U23: txtKWHParUnite | W23: lblEmissionsGES
C24: lblEmissionsGES | Q24: lblCO2PrixParUnite | U24: txtEmissionsGES | W24: lblConsommationAvecUnite
C25: txtMJParUniteFuture | Q25: txtPrixCO2Unite | U25: lblMJParUnite | W25: lblEconomiesChauffagePourC
C26: txtKWHParUniteFuture | Q26: lblEntrePrixCO2 | R26: Prix de la source de CO2 | U26: lblKWHParUnite
C27: txtEmissionsGESFuture | Q27: txtCoutTotalInvestissement | U27: lblEmissionsGES
C28: lblMJParUniteFuture | Q28: lblUniteSourceGaz | U28: cboLongueur1 | V28: -1
C29: lblKWHParUniteFuture | U29: cboLongueur2 | V29: -1
C30: lblEmissionsGESFuture | U30: cboLongueur3 | V30: -1
C31: lblConsommationAnticipeeUnite | U31: cboLongueur4 | V31: -1
C32: lblEconomieAnnuelleUnite
C33: chkFacteur | D33: FALSE

Sheet sauvegarde_sp (hidden)

Sheet rapport 1a (hidden)
B2: Système de production de chaleur efficaces (maintien d'une même source énergétique) | H2: À garder en mémoire:
H3: Aligner sur plusieurs colonnes au lieu de fusionner les cellules
B4: SOURCE D'ÉNERGIE: | D4: Mazout no.2 | H4: L'alignement vertical des cellules est perdue
H5: La couleur du texte peut ne pas être copiée
B6: VALEURS PAR DÉFAUT
B7: Paramètre | E7: Valeur
B8: Unité | E8: L
B9: MJ/Unité | E9: 38,5 MJ/L
B10: kWh/Unité | E10: 10,7 kWh/L
B11: Émissions de GES (g CO2 eq/unité) | E11: 2734,7 g CO2/L
B13: DONNÉES ENTRÉES
B14: Paramètre | F14: Valeur
B15: Rendement énergétique de l'ancienne chaudière | F15: 74.8 %
B16: Rendement énergétique de la nouvelle chaudière | F16: 68 %
B17: Consommation actuelle de combustible | F17: 30 000 L/an
B18: Prix du combustible | F18: 0.70 $/L
B19: Coût total de l'investissement | F19: 100 000 $
B20: Frais annuel d'exploitation et d'entretien | F20: 10 000 $/an
B22: DONNÉES DE SORTIE
B23: Paramètre | E23: Valeur
B24: Consommation anticipée | E24: 33 000 L/an
B25: Économies d'énergie annuelles | E25: - 3 000 L/an
B26: Économies d'énergie annuelles | E26: - 2 100.00 $/an
B27: Réduction des GES | E27: - 8 204.1 kg CO2 eq/an
B28: Période de retour sur investissement | E28: NON CALCULÉ

Sheet rapport 1a_sp (hidden)
B2: Systèmes de production de chaleur efficaces
B3: (maintien d'une même source énergétique)
B4: SOURCE D'ÉNERGIE: | D4: Mazout no.2
B6: VALEURS PAR DÉFAUT
B7: Paramètre | E7: Valeur
B8: Unité | E8: L
B9: MJ/Unité | E9: 38,5 MJ/L
B10: kWh/Unité | E10: 10,7 kWh/L
B11: Émissions de GES (g CO2 eq/unité) | E11: 2734,7 g CO2/L
B13: DONNÉES ENTRÉES
B14: Paramètre | F14: Valeur
B15: Rendement énergétique de l'ancienne chaudière | F15: 70 %
B16: Rendement énergétique de la nouvelle chaudière | F16: 90 %
B17: Consommation actuelle de combustible | F17: 40 000 kg/an
B18: Prix du combustible | F18: 0.9 $/kg
B19: Coût total de l'investissement | F19: 1000 $
B20: Frais annuel d'exploitation et d'entretien | F20: 10 $/an
B22: DONNÉES DE SORTIE
B23: Paramètre | E23: Valeur
B24: Économies d'énergie annuelles | E24: 22.2 %
B25: Économies d'énergie annuelles | E25: 31 111 kg/an
B26: Économies d'énergie annuelles | E26: 8 889 kg/an
B27: Économies d'énergie annuelles | E27: 8 000.00 $/an
B28: Réduction des GES | E28: 16 310.8 kg CO2 eq/an
B29: Période de retour sur investissement | E29: 0.13 an(s)

Sheet rapport 1b (hidden)
B2: Système de production de chaleur efficaces (conversion de source énergétique) | H2: À garder en mémoire:
H3: Aligner sur plusieurs colonnes au lieu de fusionner les cellules
B4: SOURCE D'ÉNERGIE ACTUELLE: | E4: Gaz naturel | H4: L'alignement vertical des cellules est perdue
H5: La couleur du texte peut ne pas être copiée
B6: VALEURS PAR DÉFAUT
B7: Paramètre | E7: Valeur
B8: Unité | E8: m3
B9: MJ/Unité | E9: 37,9 MJ/m3
B10: kWh/Unité | E10: 10,5 kWh/m3
B11: Émissions de GES (g CO2 eq/unité) | E11: 1889,3 g CO2 eq/m3
B13: SOURCE D'ÉNERGIE FUTURE: | E13: Électricité
B15: VALEURS PAR DÉFAUT
B16: Paramètre | E16: Valeur
B17: Unité | E17: kWh
B18: MJ/Unité | E18: 3,6 MJ/kWh
B19: kWh/Unité | E19: 1,0 kWh/kWh
B20: Émissions de GES (g CO2 eq/unité) | E20: 0,0 g CO2 eq/kWh
B22: DONNÉES D'ENTRÉE
B23: Paramètre | F23: Valeur
B24: Rendement énergétique de l'ancienne chaudière | F24: 90 %
B25: Rendement énergétique de la nouvelle chaudière | F25: 100 %
B26: Consommation actuelle de combustible | F26: 140 000 m3/an
B27: Prix du combustible de l'ancien système | F27: 1.00 $/m3
B28: Prix du combustible du nouveau système | F28: 0.10 $/kWh
B29: Facteur de gestion de la demande
B30: Coût total de l'investissement | F30: 10 000 $
B31: Coûts annuels d'exploitation et d'entretien | F31: 5 000 $/an
B34: DONNÉES DE SORTIE
B35: Paramètre | E35: Valeur
B36: Consommation actuelle | E36: 1 470 000 kWh/an
B37: Consommation anticipée | E37: 1 323 000 kWh/an
B38: Consommation anticipée | E38: 1 323 000 kWh/an
B39: Économies d'énergie annuelles | E39: 147 000 kWh/an
B40: Économies d'énergie annuelles | E40: 147 000 kWh /an
B41: Économies d'énergie annuelles | E41: 7 700.00 $/an
B42: Réduction des GES | E42: 264 502.0 kg CO2 eq/an
B43: Période de retour sur investissement | E43: 3.70 an(s)

Sheet rapport 1b_hq (hidden)
B2: Système de production de chaleur efficaces (conversion de source énergétique)
B4: SOURCE D'ÉNERGIE ACTUELLE: | E4: Mazout Léger (no 2)
B6: VALEURS PAR DÉFAUT
B7: Paramètre | E7: Valeur
B8: Unité | E8: litre (L)
B9: MJ/Unité | E9: 38.5 MJ/L
B10: kWh/Unité | E10: 10.69 kWh/L
B11: Émissions de GES (g CO2 eq/unité) | E11: 2734.7 g CO2 eq/L
B13: SOURCE D'ÉNERGIE FUTURE: | E13: Électricité
B15: VALEURS PAR DÉFAUT
B16: Paramètre | E16: Valeur
B17: Unité | E17: kWh
B18: MJ/Unité | E18: 3.6 MJ/kWh
B19: kWh/Unité | E19: 1.0 kWh/kWh
B20: Émissions de GES (g CO2 eq/unité) | E20: 0 g CO2 eq/kWh
B22: DONNÉES D'ENTRÉE
B23: Paramètre | F23: Valeur
B24: Rendement énergétique de l'ancienne chaudière | F24: 70 %
B25: Rendement énergétique de la nouvelle chaudière
B26: Consommation actuelle de combustible | F26: 1 000 L/an
B27: Prix du combustible de l'ancien système | F27: 0.07 $/L
B28: Prix du combustible du nouveau système | F28: 0.08 $/L
B29: Facteur de gestion de la demande
B30: Coût total de l'investissement | F30: 50 000 $
B31: Coûts annuels d'exploitation et d'entretien | F31: 5 000 $/an
B34: DONNÉES DE SORTIE
B35: Paramètre | F35: Valeur
B36: Tarif électrique le plus avantageux | F36: DT
B37: Coût estimée (électricité et combustible) | F37: 0.40 $/m2
B38: Prix du combustible (après conversion) | F38: 1.03 sous/kWh
B39: Prix de l'électricité (après conversion) | F39: 6.46 sous/kWh
B40: Consommation actuelle (électricité et combustible) | F40: 10 713 kWh/an
B41: Consommation anticipée (électricité et combustible) | F41: 7 506 kWh/an
B42: Consommation anticipée (électricité) | F42: 7 506 kWh/an
B43: Consommation anticipée (combustible) | F43: 0 L/an
B44: Économies d'énergie annuelles | F44: 30 %/an
B45: Économies d'énergie annuelles | F45: 8 585 $/an
B46: Réduction des GES | F46: 2 734.7 kg CO2 eq
B47: Période de retour sur investissement | F47: 13.95 an(s)

Sheet rapport 1b_sp (hidden)
B2: Systèmes de production de chaleur efficaces
B3: (conversion de source énergétique)
B4: SOURCE D'ÉNERGIE ACTUELLE:
B6: VALEURS PAR DÉFAUT
B7: Paramètre | E7: Valeur
B8: Unité
B9: MJ/Unité
B10: kWh/Unité
B11: Émissions de GES (g CO2 eq/unité)
B13: SOURCE D'ÉNERGIE FUTURE: | E13: Électricité
B15: VALEURS PAR DÉFAUT
B16: Paramètre | E16: Valeur
B17: Unité | E17: kWh
B18: MJ/Unité | E18: 3,6 MJ/kWh
B19: kWh/Unité | E19: 1,0 kWh/kWh
B20: Émissions de GES (g CO2 eq/unité) | E20: 0,0 g CO2 eq/kWh
B22: DONNÉES D'ENTRÉE
B23: Paramètre | F23: Valeur
B24: Rendement énergétique de l'ancienne chaudière | F24: 90 %
B25: Rendement énergétique de la nouvelle chaudière | F25: 100 %
B26: Consommation actuelle de combustible | F26: 30000 L/an
B27: Prix du combustible de l'ancien système | F27: 0.7 $/L
B28: Prix du combustible du nouveau système | F28: 0.03 $/kWh
B29: Facteur de gestion de la demande | F29: OUI
B30: Coût total de l'investissement | F30: 50000 $
B31: Coûts annuels d'exploitation et d'entretien | F31: 5000 $/an
B37: DONNÉES DE SORTIE
B38: Paramètre | E38: Valeur
B39: Économies d'énergie annuelles | E39: 19.0 %
B40: Consommation anticipée | E40: 321 000 kWh/an
B41: Consommation anticipée | E41: 260 010 kWh/an
B42: Économies d'énergie annuelles | E42: 260 010 kWh/an
B43: Économies d'énergie annuelles | E43: 60 990 kWh/an
B44: Économies d'énergie annuelles | E44: 60 990 kWh /an
B45: Économies d'énergie annuelles | E45: 13 199.70 $/an
B46: Réduction des GES | E46: 82 041.0 kg CO2 eq/an
B47: Période de retour sur investissement | E47: 6.10 an(s)

Sheet rapport 2 (hidden)
B2: Installation d'écrans thermiques | H2: À garder en mémoire:
H3: Aligner sur plusieurs colonnes au lieu de fusionner les cellules
B4: SOURCE D'ÉNERGIE: | D4: Biomasse | H4: L'alignement vertical des cellules est perdue
H5: La couleur du texte peut ne pas être copiée
B6: VALEURS PAR DÉFAUT
B7: Paramètre | E7: Valeur
B8: Unité | E8: kg
B9: MJ/Unité | E9: 38 MJ/kg
B10: kWh/Unité | E10: 2 kWh/kg
B11: Émissions de GES (g CO2 eq/unité) | E11: 2 g CO2/kg
B13: MÉTHODE DE CALCUL: | D13: Modèle - cas d'utilisation réel
B15: CALCUL SELON L'ÉTUDE DU CIDES
B16: Paramètre | F16: Valeur
B17: Économies potentielle en chauffage | F17: 10 %
B18: CALCUL SELON LE MODÈLE
B19: Paramètre | G19: Valeur
B20: Économies d'énergie théoriques de l'écran qui sera installée | G20: %
B21: Hauteur de la serre à la gouttière
B22: Hauteur de la serre au pignon
B23: Largeur de la serre
B24: Longueur de la serre
B26: CALENDRIER DE PRODUCTION: | E26: Mi-février à mi-novembre
B28: DONNÉES D'ENTRÉE COMMUNES AUX 2 MÉTHODES
B29: Paramètre | F29: Valeur
B30: Consommation actuelle de combustible | F30: 140000 kg/an
B31: Prix du combustible ($/unité) | F31: 0.05 $/kg
B32: Coût total de l'investissement ($) | F32: 1000 $
B43: DONNÉES DE SORTIE
B44: Paramètre | E44: Valeur
B45: Ratio de la superficie du toit par rapport à la superficie extérieure | E45: ---
B46: Consommation anticipée | E46: 132 622 kg/an
B47: Économies d'énergie annuelles | E47: 5 %
B48: Économies d'énergie annuelles | E48: 7 378 kg/an
B49: Économies d'énergie annuelles | E49: 368.90 $/an
B50: Réduction des GES | E50: 14.8 kg CO2 eq/an
B51: Période de retour sur investissement | E51: 2.71 an(s)

Sheet rapport 2_sp (hidden)
B2: Installation d'écran thermique
B4: SOURCE D'ÉNERGIE: | D4: Mazout no.2
B6: VALEURS PAR DÉFAUT
B7: Paramètre | E7: Valeur
B8: Unité | E8: L
B9: MJ/Unité | E9: 38,5 MJ/L
B10: kWh/Unité | E10: 10,7 kWh/L
B11: Émissions de GES (g CO2 eq/unité) | E11: 2734,7 g CO2/L
B13: MÉTHODE DE CALCUL: | D13: Modèle - cas d'utilisation réel
B15: CALCUL SELON L'ÉTUDE DU CIDES
B16: Paramètre | F16: Valeur
B17: Économies potentielles en chauffage | F17: 14 %
B18: CALCUL SELON LE MODÈLE
B19: Paramètre | G19: Valeur
B20: Économies d'énergie théoriques de l'écran qui sera installée | G20: %
B21: Hauteur de la serre à la gouttière
B22: Hauteur de la serre au pignon
B23: Largeur de la serre
B24: Longueur de la serre
B26: CALENDRIER DE PRODUCTION: | E26: Annuelle
B28: DONNÉES D'ENTRÉE COMMUNES AUX 2 MÉTHODES
B29: Paramètre | F29: Valeur
B30: Consommation actuelle de combustible
B31: Prix du combustible ($/unité)
B32: Coût total de l'investissement ($) | F32: 12000 $
B45: DONNÉES DE SORTIE
B46: Paramètre | E46: Valeur
B47: Ratio de la superficie du toit par rapport à la superficie extérieure | E47: ---
B48: Consommation anticipée | E48: 120 400 m3/an
B49: Économies d'énergie annuelles | E49: 14.0 %
B50: Économies d'énergie annuelles | E50: 19 600 m3/an
B51: Économies d'énergie annuelles | E51: 980.00 $/an
B52: Réduction des GES | E52: 37 030.3 kg CO2 eq/an
B53: Période de retour sur investissement | E53: 12.24 an(s)

Sheet rapport 3 (hidden)
B2: Utilisation d'un recouvrement de serre efficace | H2: À garder en mémoire:
H3: Aligner sur plusieurs colonnes au lieu de fusionner les cellules
B4: SOURCE D'ÉNERGIE: | D4: Mazout no.2 | H4: L'alignement vertical des cellules est perdue
H5: La couleur du texte peut ne pas être copiée
B6: VALEURS PAR DÉFAUT
B7: Paramètre | E7: Valeur
B8: Unité | E8: L
B9: MJ/Unité | E9: 38,5 MJ/L
B10: kWh/Unité | E10: 10,7 kWh/L
B11: Émissions de GES (g CO2 eq/unité) | E11: 2734,7 g CO2/L
B13: Scénario:
B14: Changement de polyéthylène simple paroi à un polyéthylène double paroi
B17: DONNÉES ENTRÉES
B18: Paramètre | F18: Valeur
B19: Scénario 1: économies potentielles en chauffage | F19: 10 %
B20: Scénario 3: économies potentielles en chauffage | F20: %
B21: Consommation actuelle de combustible | F21: 30000 L/an
B22: Prix du combustible | F22: 0.7 $/L
B23: Coût total de l'investissement | F23: 1000 $
B25: DONNÉES DE SORTIE
B26: Paramètre | E26: Valeur
B27: Consommation anticipée | E27: 27 000 L/an
B28: Économies d'énergie annuelles | E28: 3 000 L/an
B29: Économies d'énergie annuelles | E29: 2 100.00 $/an
B30: Réduction des GES | E30: 8 204.1 kg CO2 eq/an
B31: Période de retour sur investissement | E31: 0.48 an(s)

Sheet rapport 3_sp (hidden)
B2: Utilisation d'un recouvrement de serre efficace
B4: SOURCE D'ÉNERGIE:
B6: VALEURS PAR DÉFAUT
B7: Paramètre | E7: Valeur
B8: Unité
B9: MJ/Unité
B10: kWh/Unité
B11: Émissions de GES (g CO2 eq/unité)
B13: Scénario:
B14: Remplacement par un polyéthylène qui inclue un additif qui bloque les pertes de chaleur par rayonnement infrarouge
B17: DONNÉES ENTRÉES
B18: Paramètre | F18: Valeur
B19: Scénario 1: économies potentielles en chauffage
B20: Scénario 2: économies potentielles en chauffage
B21: Scénario 3: économies potentielles en chauffage | F21: 13 %
B22: Prix du combustible
B23: Coût total de l'investissement | F23: 32324 $
B25: DONNÉES DE SORTIE
B26: Paramètre | E26: Valeur
B27: Consommation anticipée | E27: 121 800 m3/an
B28: Économies d'énergie annuelles | E28: 18 200 m3/an
B29: Économies d'énergie annuelles | E29: 910.00 $/an
B30: Réduction des GES | E30: 34 385.3 kg CO2 eq/an
B31: Période de retour sur investissement | E31: 35.52 an(s)

Sheet rapport 4 (hidden)
B2: Implantation d'un système de contrôle du climat
B4: SOURCE D'ÉNERGIE: | D4: Mazout no.2
B6: VALEURS PAR DÉFAUT
B7: Paramètre | E7: Valeur
B8: Unité | E8: L
B9: MJ/Unité | E9: 38,5 MJ/L
B10: kWh/Unité | E10: 10,7 kWh/L
B11: Émissions de GES (g CO2 eq/unité) | E11: 2734,7 g CO2/L
B14: DONNÉES ENTRÉES
B15: Paramètre | E15: Valeur
B16: Économies d'énergie | E16: 10 %
B17: Consommation actuelle de combustible | E17: 30000 L/an
B18: Prix du combustible | E18: 0.7 $/L
B19: Coût total de l'investissement | E19: 1000 $/an
B21: AUTRES DONNÉES D'ENTRÉES
B22: Paramètre | E22: Valeur
B23: Nombre de lampes | E23: 1000
B24: Puissance des lampes | E24: 10 W
B25: Réduction du nombre d'heures d'éclairage | E25: 1 hrs/an
B26: Tarif électrique | E26: 0.108 $/kWh
B37: DONNÉES DE SORTIE
B38: Paramètre | E38: Valeur
B39: Consommation anticipée | E39: 27 000 L/an
B40: Économies d'énergie annuelles | E40: 3 000 L/an
B41: Économies d'énergie annuelles | E41: 2 100.00 $/an
B42: Économies en électricité | E42: 10 kWh/an
B43: Économies en électricité | E43: 1.08 $/an
B44: Réduction des GES | E44: 8 204.1 kg CO2 eq/an
B45: Période de retour sur investissement | E45: 0.48 an(s)

Sheet rapport 4_sp (hidden)
B2: Implantation d'un système de contrôle du climat
B4: SOURCE D'ÉNERGIE:
B6: VALEURS PAR DÉFAUT
B7: Paramètre | E7: Valeur
B8: Unité
B9: MJ/Unité
B10: kWh/Unité
B11: Émissions de GES (g CO2 eq/unité)
B14: DONNÉES ENTRÉES
B15: Paramètre | E15: Valeur
B16: Économies d'énergie | E16: 10 %
B17: Consommation actuelle de combustible
B18: Prix du combustible
B19: Coût total de l'investissement | E19: 50000 $/an
B21: AUTRES DONNÉES D'ENTRÉES
B22: Paramètre | E22: Valeur
B23: Nombre de lampes
B24: Puissance des lampes
B25: Réduction du nombre d'heures d'éclairage
B27: DONNÉES DE SORTIE
B28: Paramètre | E28: Valeur
B29: Consommation anticipée | E29: 28 200 /an
B30: Économies d'énergie annuelles | E30: 12 333.00 $/an
B31: Économies d'énergie annuelles | E31: 32 100 kWh/an
B32: Économies en électricité
B33: Économies en électricité
B34: Réduction des GES | E34: 82 041.0 kg CO2 eq/an
B35: Période de retour sur investissement | E35: 4.05 an(s)

Sheet rapport 5a (hidden)
B2: Isolation des parois extérieures (murs et fondations) | H2: À garder en mémoire:
H3: Aligner sur plusieurs colonnes au lieu de fusionner les cellules
B4: SOURCE D'ÉNERGIE ACTUELLE: | E4: Mazout no.2 | H4: L'alignement vertical des cellules est perdue
H5: La couleur du texte peut ne pas être copiée
B6: VALEURS PAR DÉFAUT
B7: Paramètre | E7: Valeur
B8: Unité | E8: L
B9: MJ/Unité | E9: 38,5 MJ/L
B10: kWh/Unité | E10: 10,7 kWh/L
B11: Émissions de GES (g CO2 eq/unité) | E11: 2734,7 g CO2/L
B13: SÉLECTION DU TYPE D'ISOLANT
B14: Paramètre | E14: Valeur
B15: Isolation des fondations | E15: OUI
B16: Isolation totale des murs | E16: OUI
B17: Isolation partielle des murs | E17: NON
B19: DONNÉES D'ENTRÉE
B20: Paramètre | G20: Valeur
B21: Économies d'énergie théoriques - isolation des fondations | G21: 4 %
B22: Économies d'énergie théoriques - isolation totale des murs | G22: 7 %
B23: Économies d'énergie théoriques - isolation partielle des murs
B24: Consommation actuelle de combustible | G24: 30000 L/an
B25: Prix du combustible | G25: 0.7 $/L
B26: Coût total de l'investissement | G26: 86 $
B28: DONNÉES DE SORTIE
B29: Paramètre | E29: Valeur
B30: Consommation anticipée | E30: 26 700 L/an
B31: Économies d'énergie annuelles | E31: 3 300 L/an
B32: Réduction des GES | E32: 9 024.5 kg CO2 eq/an
B33: Période de retour sur investissement | E33: 0.04 an(s)

Sheet rapport 5a_sp (hidden)
B2: Isolation des fondations
B4: SOURCE D'ÉNERGIE ACTUELLE:
B6: VALEURS PAR DÉFAUT
B7: Paramètre | E7: Valeur
B8: Unité
B9: MJ/Unité
B10: kWh/Unité
B11: Émissions de GES (g CO2 eq/unité)
B13: SÉLECTION DU TYPE D'ISOLANT
B14: Paramètre | E14: Valeur
B15: Isolation des fondations | E15: OUI
B16: Isolation totale des murs | E16: OUI
B17: Isolation partielle des murs | E17: NON
B19: DONNÉES D'ENTRÉE
B20: Paramètre | G20: Valeur
B21: Économies d'énergie théoriques - isolation des fondations | G21: 5 %
B22: Économies d'énergie théoriques - isolation totale des murs | G22: 5 %
B23: Économies d'énergie théoriques - isolation partielle des murs
B24: Consommation actuelle de combustible
B25: Prix du combustible
B26: Coût total de l'investissement | G26: 50000 $
B28: DONNÉES DE SORTIE
B29: Paramètre | E29: Valeur
B30: Économies d'énergie annuelles | E30: 12 333.00 $/an
B31: Économies d'énergie annuelles | E31: 32 100 kWh/an
B32: Réduction des GES | E32: 82 041.0 kg CO2 eq/an
B33: Période de retour sur investissement | E33: 4.05 an(s)

Sheet rapport 5b (hidden)
B2: Isolation des parois extérieures (fissures) | H2: À garder en mémoire:
H3: Aligner sur plusieurs colonnes au lieu de fusionner les cellules
B4: SOURCE D'ÉNERGIE ACTUELLE: | E4: Propane | H4: L'alignement vertical des cellules est perdue
H5: La couleur du texte peut ne pas être copiée
B6: VALEURS PAR DÉFAUT
B7: Paramètre | E7: Valeur
B8: Unité | E8: L
B9: MJ/Unité | E9: 25,3 MJ/L
B10: kWh/Unité | E10: 7,0 kWh/L
B11: Émissions de GES (g CO2 eq/unité) | E11: 1544,0 g CO2/L
B13: TYPE D'INFILTRATION: | D13: Fissure de 6,4 mm
B15: DONNÉES D'ENTRÉE
B16: Paramètre | E16: Valeur
B17: Vitesse moyenne du vent | E17: 2.70 m/s
B18: Degrés-jour de chauffe | E18: 4 °C-j/an
B20: DONNÉES DE SORTIE
B21: Paramètre | E21: Valeur
B22: Économies d'énergie annuelles | E22: 2 L/an
B23: Réduction des GES | E23: 2.6 kg CO2 eq/an

Sheet rapport 5b_sp (hidden)
B2: VOLET ÉNERGÉTIQUE
B4: SOURCE D'ÉNERGIE ACTUELLE: | E4: Électricité
B6: VALEURS PAR DÉFAUT
B7: Paramètre | E7: Valeur
B8: Unité | E8: kWh
B9: MJ/Unité | E9: 3,6 MJ/kWh
B10: kWh/Unité | E10: 1,0 kWh/kWh
B11: Émissions de GES (g CO2 eq/unité) | E11: 0,0 g CO2/kWh
B13: TYPE D'INFILTRATION: | D13: Fissure de 3,2 mm
B15: DONNÉES D'ENTRÉE
B16: Paramètre | E16: Valeur
B17: Vitesse moyenne du vent | E17: 2.70 m/s
B18: Degrés-jour de chauffe | E18: 1000 °C-j/an
B20: DONNÉES DE SORTIE
B21: Paramètre | E21: Valeur
B22: Économies d'énergie annuelles | E22: 5 m3/an
B23: Réduction des GES | E23: 10.0 kg CO2 eq/an

Sheet rapport 6a (hidden)
B2: Éclairage de photosynthèse: remplacement ou migration
B4: SCÉNARIO: | C4: Changement de lampe HPS
B6: AMÉLIORATION DE L'EFFICACITÉ D'ÉCLAIRAGE
B7: Scénario | D7: Gain (%)
B8: Changement de lampes HPS | D8: 10 %
B9: Migration vers des DEL
B11: DONNÉES D'ENTRÉE
B12: Paramètre | D12: Valeur
B13: Nombre de lampes | D13: 48
B14: Puissance des lampes | D14: 456 W
B15: Utilisation annuelle | D15: 646 hrs/an
B16: Tarif d'électricité | D16: 0.108 $/kWh
B17: Coût total de l'investissement | D17: 1000 $
B19: DONNÉES DE SORTIE
B20: Paramètre | D20: Valeur
B21: Consommation anticipée | D21: 12 726 kWh/an
B22: Économies d'énergie annuelles | D22: 1 414 kWh/an
B23: Économies d'énergie annuelles | D23: 152.71 $/an
B24: Période de retour sur investissement | D24: 6.55 an(s)

Sheet rapport 6a_sp (hidden)
B2: Éclairage de photosynthèse (remplacement de lampes)
B4: SCÉNARIO: | C4: Changement de lampe HPS
B6: AMÉLIORATION DE L'EFFICACITÉ D'ÉCLAIRAGE
B7: Scénario | D7: Gain (%)
B8: Changement de lampes HPS | D8: 16 %
B9: Migration vers des DEL
B11: DONNÉES D'ENTRÉE
B12: Paramètre | D12: Valeur
B13: Nombre de lampes | D13: 1000
B14: Puissance des lampes | D14: 1000 W
B15: Utilisation annuelle | D15: 1000 hrs/an
B16: Tarif d'électricité
B17: Coût total de l'investissement | D17: 20000 $
B19: DONNÉES DE SORTIE
B20: Paramètre | D20: Valeur
B21: Consommation anticipée | D21: 840 000 kWh/an
B22: Économies d'énergie annuelles | D22: 160 000 kWh/an
B23: Économies d'énergie annuelles | D23: 17 280.00 $/an
B24: Période de retour sur investissement | D24: 1.16 an(s)

Sheet rapport 6b (hidden)
B2: Éclairage de photosynthèse: ajout de lampes (en cas d'absence)
B4: SOURCE D'ÉNERGIE: | D4: Gaz naturel
B6: VALEURS PAR DÉFAUT
B7: Paramètre | E7: Valeur
B8: Unité | E8: m3
B9: MJ/Unité | E9: 37,9 MJ/m3
B10: kWh/Unité | E10: 10,5 kWh/m3
B11: Émissions de GES (g CO2 eq/unité) | E11: 1889,3 g CO2/m3
B13: DONNÉES ENTRÉES
B14: Paramètre | F14: Valeur
B15: Nombre de lampes | F15: 6
B16: Puissance des lampes | F16: 65 W
B17: Utilisation annuelle | F17: 665 hrs/an
B18: Facteur de conversion de l'électricité en chauffe | F18: 10 %
B19: Consommation annuelle de combustible | F19: 22200 m3/an
B20: Prix du combustible | F20: 7.46 $/m3
B21: Coût total de l'investissement | F21: 6756 $
B23: AUTRES DONNÉES D'ENTRÉE
B24: Paramètre | F24: Valeur
B25: Raccourcissement de la période de production
B26: Consommation journalière de combustible pendant la période
B36: DONNÉES DE SORTIE
B37: Paramètre | F37: Valeur
B38: Consommation d'électricité anticipée pour l'éclairage
B39: photosynthétique | F39: 259 kWh/an
B40: Économies annuelles en chauffage | F40: 0.01 %/an
B41: Consommation anticipée de combustible | F41: 22 198 m3/an
B42: Économies de combustible | F42: 2 m3/an
B43: Économies de combustible | F43: 18.43 $/an
B44: Réduction des GES | F44: 4.7 kg CO2 eq/an
B45: Période de retour sur investissent | F45: 366.65 an(s)

Sheet rapport 6b_sp (hidden)
B2: Éclairage de photosynthèse: ajout d'éclairage de photosynthèse (en cas d'absence)
B4: SOURCE D'ÉNERGIE:
B6: VALEURS PAR DÉFAUT
B7: Paramètre | E7: Valeur
B8: Unité
B9: MJ/Unité
B10: kWh/Unité
B11: Émissions de GES (g CO2 eq/unité)
B13: DONNÉES ENTRÉES
B14: Paramètre | F14: Valeur
B15: Nombre de lampes | F15: 100
B16: Puissance des lampes | F16: 400 W
B17: Utilisation annuelle | F17: 1000 hrs/an
B18: Facteur de conversion de l'électricité en chauffe | F18: 50 %
B19: Consommation annuelle de combustible
B20: Prix du combustible
B21: Coût total de l'investissement | F21: 50000 $
B23: AUTRES DONNÉES D'ENTRÉE
B24: Paramètre | F24: Valeur
B25: Raccourcissement de la période de production
B26: Consommation journalière de combustible pendant la période
B36: DONNÉES DE SORTIE
B37: Paramètre | F37: Valeur
B38: Consommation d'électricité anticipée pour l'éclairage
B39: photosynthétique | F39: 40 000 kWh/an
B40: Économies annuelles de combustible | F40: 6.23 %
B41: Économies annuelles de combustible | F41: 20 000 kWh/an
B42: Économies annuelles de combustible | F42: 11 970.00 $/an
B43: Réduction des GES | F43: 82 041.0 kg CO2 eq/an
B44: Période de retour sur investissent | F44: 4.18 an(s)

Sheet rapport 7 (hidden)
B2: Ventilateurs à circulation d'air horizontal (HAF) | H2: À garder en mémoire:
H3: Aligner sur plusieurs colonnes au lieu de fusionner les cellules
B4: SOURCE D'ÉNERGIE: | D4: Gaz naturel | H4: L'alignement vertical des cellules est perdue
H5: La couleur du texte peut ne pas être copiée
B6: VALEURS PAR DÉFAUT
B7: Paramètre | E7: Valeur
B8: Unité | E8: m3
B9: MJ/Unité | E9: 37,9 MJ/m3
B10: kWh/Unité | E10: 10,5 kWh/m3
B11: Émissions de GES (g CO2 eq/unité) | E11: 1889,3 g CO2/m3
B14: DONNÉES ENTRÉES
B15: Paramètre | E15: Valeur
B16: Économies d'énergie | E16: 13 %
B17: Consommation actuelle de combustible | E17: 22200 m3/an
B18: Prix du combustible | E18: 7.46 $/m3
B19: Coût total de l'investissement | E19: 1000 $/an
B21: DONNÉES DE SORTIE
B22: Paramètre | E22: Valeur
B23: Consommation anticipée | E23: 19 314 m3/an
B24: Économies d'énergie annuelles | E24: 2 886 m3/an
B25: Économies d'énergie annuelles | E25: 21 529.56 $/an
B26: Réduction des GES | E26: 5 452.5 kg CO2 eq/an
B27: Période de retour sur investissement | E27: 0.05 an(s)

Sheet rapport 7_sp (hidden)
B2: Ventilateurs à circulation d'air horizontal (HAF)
B4: SOURCE D'ÉNERGIE:
B6: VALEURS PAR DÉFAUT
B7: Paramètre | E7: Valeur
B8: Unité
B9: MJ/Unité
B10: kWh/Unité
B11: Émissions de GES (g CO2 eq/unité)
B14: DONNÉES ENTRÉES
B15: Paramètre | E15: Valeur
B16: Économies d'énergie | E16: 10 %
B17: Consommation actuelle de combustible
B18: Prix du combustible
B19: Coût total de l'investissement | E19: 50000 $/an
B21: DONNÉES DE SORTIE
B22: Paramètre | E22: Valeur
B23: Consommation anticipée | E23: 0 kWh/an
B24: Économies d'énergie annuelles | E24: 32 100 kWh/an
B25: Économies d'énergie annuelles | E25: 12 333.00 $/an
B26: Réduction des GES | E26: 82 041.0 kg CO2 eq/an
B27: Période de retour sur investissement | E27: 4.05 an(s)

Sheet rapport 7_old (hidden)
B2: RAPPORT | H2: À garder en mémoire:
H3: Aligner sur plusieurs colonnes au lieu de fusionner les cellules
B4: MÉTHODE DE CALCUL: | D4: Par débit d'air et efficacité du ventilateur | H4: L'alignement vertical des cellules est perdue
H5: La couleur du texte peut ne pas être copiée
B6: CALCUL SELON LA PUISSANCE
B7: Paramètre | F7: Valeur
B8: Puissance du ventilateur 1 dont l'efficacité est la plus faible (kW)
B9: Nombre de ventilateurs dont l'efficacité est plus faible à utiliser
B10: Puissance du ventilateur 2 dont l'efficacité est la plus élevée (kW)
B11: Nombre de ventilateurs dont l'efficacité est plus élevée à utiliser
B12: Moyennes d'heures d'utilisation par année (hrs/an)
B13: CALCUL SELON LE DÉBIT D'AIR ET L'EFFICACITÉ DU VENTILATEUR
B14: Paramètre | F14: Valeur
B15: Débit d'air du ventilateur 1 dont l'efficacité est plus faible (L/s)
B16: Efficacité du ventilateur du ventilateur 1 (L/s/W)
B17: Débit d'air du ventilateur 2 dont l'efficacité est plus élevée (L/s)
B18: Efficacité du ventilateur du ventilateur 2 (L/s/W)
B19: Moyennes d'heures d'utilisation par année (hrs/an)
B20: Nombre de ventilateurs dont l'efficacité est plus faible à utiliser
B21: Nombre de ventilateurs dont l'efficacité est plus élevée à utiliser
B23: DONNÉES D'ENTRÉE
B24: Paramètre | E24: Valeur
B25: Tarif d'électricité ($/kWh)
B26: Coût total de l'investissement ($)
B28: DONNÉES DE SORTIE
B29: Paramètre | E29: Valeur
B30: Économie d'électricité par année
B31: Économie d'électricité par année
B32: Période de retour sur investissement

Sheet rapport 8 (hidden)
B2: Utilisation d'un réservoir d'hydro-accumulation | H2: À garder en mémoire:
H3: Aligner sur plusieurs colonnes au lieu de fusionner les cellules
B4: SOURCE D'ÉNERGIE: | D4: Biomasse | H4: L'alignement vertical des cellules est perdue
H5: La couleur du texte peut ne pas être copiée
B6: SYSTÈME: | D6: Closed Buffer
B8: VALEURS PAR DÉFAUT
B9: Paramètre | E9: Valeur
B10: Unité | E10: kg
B11: MJ/Unité | E11: 38 MJ/kg
B12: kWh/Unité | E12: 2 kWh/kg
B13: Émissions de GES (g CO2 eq/unité) | E13: 2 g CO2/kg
B15: DONNÉES ENTRÉES
B16: Paramètre | E16: Valeur
B17: Pourcentage d'économie d'énergie | E17: 23 %
B18: Consommation actuelle de combustible | E18: 140000 kg/an
B19: Prix du combustible | E19: 0.05 $/kg
B20: Coût total de l'investissement | E20: 1000 $
B22: DONNÉES DE SORTIE
B23: Paramètre | E23: Valeur
B24: Consommation anticipée | E24: 107 800 kg/an
B25: Économies d'énergie annuelles | E25: 32 200 kg/an
B26: Économies d'énergie annuelles | E26: 1 610.00 $/an
B27: Réduction des GES | E27: 64.4 kg CO2 eq/an
B28: Période de retour sur investissement | E28: 0.6 an(s)

Sheet rapport 8_sp (hidden)
B2: Utilisation d'un réservoir d'hydro-accumulation
B4: SOURCE D'ÉNERGIE:
B6: SYSTÈME: | D6: Closed Buffer
B8: VALEURS PAR DÉFAUT
B9: Paramètre | E9: Valeur
B10: Unité
B11: MJ/Unité
B12: kWh/Unité
B13: Émissions de GES (g CO2 eq/unité)
B15: DONNÉES ENTRÉES
B16: Paramètre | E16: Valeur
B17: Pourcentage d'économie d'énergie | E17: 1 %
B18: Consommation actuelle de combustible
B19: Prix du combustible
B20: Coût total de l'investissement | E20: 50000 $
B22: DONNÉES DE SORTIE
B23: Paramètre | E23: Valeur
B24: Consommation anticipée | E24: 0 kWh/an
B25: Économies d'énergie annuelles | E25: 3 210 kWh/an
B26: Économies d'énergie annuelles | E26: 11 466.30 $/an
B27: Réduction des GES | E27: 82 041.0 kg CO2 eq/an
B28: Période de retour sur investissement | E28: 4.4 an(s)

Sheet rapport 9 (hidden)
B2: Récupération du gaz carbonique à partir des gaz de combustion du système de génération de chaleur | H2: À garder en mémoire:
H3: Aligner sur plusieurs colonnes au lieu de fusionner les cellules
B4: SOURCE D'ÉNERGIE POUR LE CHAUFFAGE: | F4: Gaz naturel | H4: L'alignement vertical des cellules est perdue
H5: La couleur du texte peut ne pas être copiée
B6: VALEURS PAR DÉFAUT
B7: Paramètre | E7: Valeur
B8: Unité | E8: m3
B9: MJ/Unité | E9: 37,9 MJ/m3
B10: kWh/Unité | E10: 10,5 kWh/m3
B11: Émissions de GES (g CO2 eq/unité) | E11: 1889,3 g CO2/m3
B13: SOURCE ACTUELLE DE GAZ CARBONIQUE: | F13: GAZ NATUREL
B15: UTILISATION D'UN RÉSERVOIR D'HYDROACCUMULATION: | F15: OUI
B17: DONNÉES D'ENTRÉE (CHAUFFAGE)
B18: Paramètre | F18: Valeur
B19: Économies annuelles de chauffage | F19: 10 %
B20: Consommation actuelle de combustible pour le chauffage | F20: 22200 m3/an
B21: Prix du combustible utilisé pour le chauffage | F21: 1 $/m3
B23: DONNÉES D'ENTRÉE (ENRICHISSEMENT CARBONNÉ)
B24: Paramètre | F24: Valeur
B25: Consommation de CO2 liquide, de propane ou de gaz naturel | F25: 1000 M3/an
B26: Prix du CO2, du propane ou du gaz naturel | F26: 0,5 $/M3
B27: Coût annuel de l'enrichissement carbonné
B28: Coût total de l'investissement | F28: 10000 $
B34: DONNÉES DE SORTIE
B35: Paramètre | F35: Valeur
B36: Consommation anticipée | F36: 19 980 m3/an
B37: Économies d'énergie annuelles en combustible | F37: 2 220 m3/an
B38: Économies d'énergie annuelles en combustible | F38: 2 220.00 $/an
B39: Économies d'énergie annuelles (enrichissement carbonné) | F39: 500.00 $/an
B40: Économies d'énergie annuelles totales | F40: 2 720.00 $/an
B41: Réduction des GES | F41: 4 194.2 kg CO2 eq/an
B42: Période de retour sur investissement | F42: 4.50 an(s)

Sheet rapport 9_sp (hidden)
B2: Récupération du gaz carbonique à partir des gaz de combustion du système de génération de chaleur
B4: SOURCE D'ÉNERGIE POUR LE CHAUFFAGE:
B6: VALEURS PAR DÉFAUT
B7: Paramètre | E7: Valeur
B8: Unité
B9: MJ/Unité
B10: kWh/Unité
B11: Émissions de GES (g CO2 eq/unité)
B13: SOURCE ACTUELLE DE GAZ CARBONIQUE: | F13: CO2 LIQUIDE
B15: UTILISATION D'UN RÉSERVOIR D'HYDROACCUMULATION: | F15: OUI
B17: DONNÉES D'ENTRÉE (CHAUFFAGE)
B18: Paramètre | F18: Valeur
B19: Économies annuelles de chauffage | F19: 10 %
B20: Consommation actuelle de combustible pour le chauffage
B21: Prix du combustible utilisé pour le chauffage
B23: DONNÉES D'ENTRÉE (ENRICHISSEMENT CARBONNÉ)
B24: Paramètre | F24: Valeur
B25: Consommation de CO2 liquide, de propane ou de gaz naturel | F25: 100 kg/an
B26: Prix du CO2, du propane ou du gaz naturel | F26: 0.5 $/kg
B27: Coût annuel de l'enrichissement carbonné
B28: Coût total de l'investissement | F28: 50000 $
B34: DONNÉES DE SORTIE
B35: Paramètre | F35: Valeur
B36: Consommation anticipée | F36: 0 m3/an
B37: Économies d'énergie annuelles en combustible | F37: 3 057 m3/an
B38: Économies d'énergie annuelles en combustible | F38: 19 624.29 $/an
B39: Économies d'énergie annuelles (enrichissement carbonné) | F39: 50.00 $/an
B40: Économies d'énergie annuelles totales | F40: 19 674.29 $/an
B41: Réduction des GES | F41: 30 058.3 kg CO2 eq/an
B42: Période de retour sur investissement | F42: 2.55 an(s)

Sheet rapport synthese (hidden)
B2: Tableaux synthèse
B4: SOURCE D'ÉNERGIE: | D4: Gaz naturel
B6: VALEURS PAR DÉFAUT DU COMBUSTIBLE
B7: Paramètre | E7: Valeur
B8: Unité | E8: m3
B9: MJ/Unité | E9: 37,9 MJ/m3
B10: kWh/Unité | E10: 10,5 kWH/m3
B11: Émissions de GES (g CO2 eq/unité) | E11: 1889,3 g CO2 eq/m3
B13: SCÉNARIO INITIAL
B14: Paramètre | E14: Valeur
B15: Consommation initiale de combustible | E15: 1 470 000 kWh/an
B16: Consommation initiale de combustible | E16: 140 000 m3/an
B17: Prix moyen du combustible | E17: 0.05 $/m3
B18: Tarif électrique
B20: SCÉNARIO FINAL
B21: Paramètre | E21: Valeur
B22: Économies d'énergie annuelles (chauffage) | E22: 14.0 %
B23: Économies d'énergie annuelles (chauffage) | E23: 205 800 kWh/an
B24: Économies d'énergie annuelles (chauffage) | E24: 19 600 m3/an
B25: Économies d'énergie annuelles (éclairage)
B26: Économies d'énergie annuelles (chauffage) | E26: 980.00 $/an
B27: Économies d'énergie annuelles (éclairage)
B28: Réduction des GES | E28: 37 030.3 kg CO2 eq/an

Sheet rapport synthese 1b (hidden)
B2: Tableaux synthèse
B4: ANCIENNE SOURCE D'ÉNERGIE: | E4: Mazout no.2
B6: VALEURS PAR DÉFAUT DE L'ANCIEN COMBUSTIBLE
B7: Paramètre | E7: Valeur
B8: Unité | E8: L
B9: MJ/Unité | E9: 38,5 MJ/L
B10: kWh/Unité | E10: 10,7 kWH/L
B11: Émissions de GES (g CO2 eq/unité) | E11: 2734,7 g CO2 eq/L
B13: NOUVELLE SOURCE D'ÉNERGIE | E13: Électricité
B15: VALEURS PAR DÉFAUT DU NOUVEAU COMBUSTIBLE
B16: Paramètre | E16: Valeur
B17: Unité | E17: kWh
B18: MJ/Unité | E18: 3,6 MJ/kWh
B19: kWh/Unité | E19: 1,0 kWH/kWh
B20: Émissions de GES (g CO2 eq/unité) | E20: 0,0 g CO2 eq/kWh
B22: SCÉNARIO INITIAL
B23: Paramètre | E23: Valeur
B24: Consommation initiale de combustible | E24: 321 000 kWh/an
B25: Consommation initiale de combustible | E25: 30 000 L/an
B26: Prix moyen de l'ancien combustible | E26: 0.70 $/L
B27: Prix moyen du nouveau combustible | E27: 0.03 $/kWh
B28: Tarif électrique
B35: SCÉNARIO FINAL
B36: Paramètre | E36: Valeur
B37: Économies d'énergie annuelles (chauffage) | E37: 20.0 %
B38: Économies d'énergie annuelles (chauffage) | E38: 64 200 kWh/an
B39: Économies d'énergie annuelles (chauffage) | E39: 64 200 kWh/an
B40: Économies d'énergie annuelles (éclairage)
B41: Économies d'énergie annuelles (chauffage) | E41: 13 296.00 $/an
B42: Économies d'énergie annuelles (éclairage)
B43: Réduction des GES | E43: 82 041.0 kg CO2 eq/an

Sheet page titre (hidden)
C7: RAPPORT DU SCÉNARIO PERSONNALISÉ
I8: Hauteur maximale | K8: 637 | M8: Largeur maximale | O8: 89
I9: Hauteurs | M9: Largeur
I10: ligne 1 | J10: 16.2 | M10: Col A | N10: 1
I11: ligne 2 | J11: 1 | M11: Col B | N11: 1
I12: ligne 37 | J12: 1 | M12: Col D | N12: 1
I13: lignes 3-36 | J13: =K8-J10-J11-J12 -> 618.8 | K13: =J13/34 -> 18.2 | M13: Col C | N13: =O8-N10-N11-N12 -> 86
C27: 2018-01-17T16:11:05

Sheet page titre ind (hidden)
C7: RAPPORT
I8: Hauteur maximale | K8: 637 | M8: Largeur maximale | O8: 89
I9: Hauteurs | M9: Largeur
C10: Mesure 1: | I10: ligne 1 | J10: 16.2 | M10: Col A | N10: 1
C11: Systèmes de production de chaleur efficaces (conversion de source énergétique) | I11: ligne 2 | J11: 1 | M11: Col B | N11: 1
I12: ligne 37 | J12: 1 | M12: Col D | N12: 1
I13: lignes 3-36 | J13: =K8-J10-J11-J12 -> 618.8 | K13: =J13/34 -> 18.2 | M13: Col C | N13: =O8-N10-N11-N12 -> 86
C32: 2018-02-16T15:53:22

Sheet mise en garde (hidden)
C4: LIMITES AU CALCULATEUR
C5: Mises en garde
N6: 89
C7: • Les économies d’énergie découlant des mesures d’efficacité énergétique sélectionnées ne tiennent pas compte des effets croisés. En effet, les calculs d’économies d’énergie se font indépendamment pour chaque mesure et n’intègrent pas les résultats des autres mesures implantées. La détermination des effets croisés s’inscrit dans le cadre d’une gestion énergétique approfondie et ne peut donc être déterminée à l’aide de ce calculateur.
C11: • La hausse de la productivité n’a pas été considérée dans le présent calculateur bien que, dans certains cas, l’impact s’avère important et permet de rentabiliser l’investissement plus rapidement.
C13: • Les chiffres fournis pour les investissements et les frais d’entretien ne sont que des exemples. Idéalement, vous devez entrer vos propres coûts selon vos soumissions.
C15: • Pour les frais d’entretien, le temps requis pour le nettoyage régulier et usuel de certains équipements n’a pas été considéré. Seuls les frais spécifiques à un équipement ont été évalués dans les charges supplémentaires.
C17: • La période de de retour sur l’investissement a été calculée uniquement sur des investissements qui sont des immobilisations pour l’entreprise. Par exemple, le remplacement du polyéthylène par un même type de polyéthylène ne constitue pas une mesure d’efficacité énergétique, mais plutôt une dépense d’entretien. Donc, aucune PRI n’a été calculée dans ce cas. Par contre, le remplacement d’un polyéthylène par un autre type de recouvrement (passer d’une simple épaisseur à une double), est considéré comme une immobilisation.
C19: • Le taux d'intérêt relatif aux investissements n'a pas été considéré dans le calcul, car il n'influence pas beaucoup la période de retour sur investissement puisque celle-ci est souvent rapide. Cependant, pour des équipements amortissables sur une plus longue période de temps, le taux d'intérêt pourrait avoir un impact plus significatif.
C21: • La période de retour sur l'investissement ne devrait jamais dépasser la durée de vie utile du bien.
C23: • Dans le cas d'investissements importants, il faudra s'assurer que la situation financière générale de la ferme puisse assumer un autre investissement. L'analyse devra être approfondie dans certaines situations.

Sheet mise en garde ind (hidden)
C4: LIMITES AU CALCULATEUR
C5: Mises en garde
N6: 89
C7: • La hausse de la productivité n’a pas été considérée dans le présent calculateur bien que, dans certains cas, l’impact s’avère important et permet de rentabiliser l’investissement plus rapidement.
C9: • Les chiffres fournis pour les investissements et les frais d’entretien ne sont que des exemples. Idéalement, vous devez entrer vos propres coûts selon vos soumissions.
C11: • Pour les frais d’entretien, le temps requis pour le nettoyage régulier et usuel de certains équipements n’a pas été considéré. Seuls les frais spécifiques à un équipement ont été évalués dans les charges supplémentaires.
C13: • La période de de retour sur l’investissement a été calculée uniquement sur des investissements qui sont des immobilisations pour l’entreprise. Par exemple, le remplacement du polyéthylène par un même type de polyéthylène ne constitue pas une mesure d’efficacité énergétique, mais plutôt une dépense d’entretien. Donc, aucune PRI n’a été calculée dans ce cas. Par contre, le remplacement d’un polyéthylène par un autre type de recouvrement (passer d’une simple épaisseur à une double), est considéré comme une immobilisation.
C15: • Le taux d'intérêt relatif aux investissements n'a pas été considéré dans le calcul, car il n'influence pas beaucoup la période de retour sur investissement puisque celle-ci est souvent rapide. Cependant, pour des équipements amortissables sur une plus longue période de temps, le taux d'intérêt pourrait avoir un impact plus significatif.
C17: • La période de retour sur l'investissement ne devrait jamais dépasser la durée de vie utile du bien.
C19: • Dans le cas d'investissements importants, il faudra s'assurer que la situation financière générale de la ferme puisse assumer un autre investissement. L'analyse devra être approfondie dans certaines situations.

Sheet table matiere sp (hidden)
A1: Table des matières
B3: Tableaux synthèse | C3: 2
A4: Mesure 2: | B4: Installation d'écrans thermiques | C4: 3

Sheet pb1 (hidden)
C3: PENSE-BÊTE
C5: Systèmes de production de chaleur efficaces
N6: 89
C7: • Choisir sa source de chaleur en premier (biomasse, gaz., électricité, etc.)
C8: • Choisir l’air chaud vs eau chaude selon la culture
C9: • Prévoir un système mixte si nécessaire
C10: • Privilégier le chauffage de proximité (chauffer le plus proche du besoin)
C11: • S’assurer de bien calibrer son système en s’assurant de la distribution de chaleur optimale
C12: • Vérifier la performance de son système et si cela correspond aux prédictions du fabriquant
C13: • Refaire des tests au besoin pour savoir si le système maintien sa performance dans le temps
C14: • Prévoir la durée de vie du système et son coût d’entretien

Sheet pb2 (hidden)
C3: PENSE-BÊTE
C5: Installation d'écrans thermiques
N6: 89
C7: "Voici les points importants à considérer lors de l'installation d'écrans thermiques:"
C8: • ajout de poutrelles de culture pour supporter la toile
C9: • modification au système électrique et de contrôle pour faire passer le filage sous la toile
C10: • modification au système d'irrigation pour qu'il passe sous la toile
C11: • prévoir de nouvelles sondes et de la programmation sur le système de gestion du climat
C12: • modification ou remplacement des crémaillères de toit selon le modèle
C13: • modification au système de chauffage (aérotherme, cheminée, réseau de distribution de gaz)
C14: • modification des tables (écran vertical)
C15: "Toutes ces modifications peuvent facilement coûter plus chère que la toile."
C16: -------------------------------------------------------------------------------------------------------------------------------
C17: • La hauteur de la serre peut-être un problème si elle est trop basse
C18: • Obstacles à la pose de la toile
C19: • Ajout de poutrelles si nécessaire
C20: • Choix de la toile - thermale vs ombrière
C21: • Choix de la motorisation selon le système de gestion ou climat
C22: • Jupe bien ajustée pour économie maximale
C23: • Prévoir une durée vie de maximum de 10 ans de la toile
C24: • Coût de la main d’oeuvre = prix de l’équipement à installer
C25: • Faire prendre les mesures par le fournisseur
C26: • Vitesse d’ouverture de la toile à contrôle par la motorisation
C27: • Sectionner les superficies de la toile selon les cultures ou besoin d’ombrage ou économie d’énergie

Sheet pb3 (hidden)
C3: PENSE-BÊTE
C5: Utilisation d'un recouvrement de serre efficace
N6: 89
C7: "La majeure partie du retour sur investissement vient de l'augmentation de productivité ou de la diminution du temps de production."

Sheet pb4 (hidden)
C3: PENSE-BÊTE
C5: Implantation d'un système de contrôle du climat
N6: 89
C7: • Dans l’évaluation des coûts, il ne faut pas négliger la composante motorisation et électro-contrôle permettant aux contrôleurs de basses tensions (24 VAC) de commandes l’activation des demandes sous réseau de plus hautes tension (ex :120, 240V).
C8: • Motorisation : En plus du coût des pompes et moteurs, il est important d’obtenir une soumission pour l’installation électrique de ces équipements haut voltage.
C9: • Électro-contrôles : Ces panneaux ou modules d’interface auront un prix variable en fonction de l’équipement à contrôler et du type de contrôle souhaité (type digital marche/arrêt ou type proportionnel pour un positionnement précis et optimal de l’ouverture des toits par exemple).
C10: • Un toit ou un coté ouvrant demandera un module renverseur afin de permettre une ouverture ainsi qu’une fermeture selon un temps de course préprogrammée et on fonction des besoins. Des senseurs de limites de début et fin de courses des ouvrants sont aussi conseillés.
C11: • Dans le cas d’une pompe ou d’un moteur à vitesse non-variable (ex : ventilation ou haf), le module d’interface sera généralement plus simple et sera principalement composé d’un contacteur permettant d’activer le courant de l’équipement.
C12: • Dans le cas de simples valves d’irrigation, la connexion aux systèmes de contrôle est directe dans le cas ou celles-ci peuvent être activées par du 24 V AC. Les raccords de ce type de contrôle ne nécessite pas l’aide d’un électricien car il s’agit d’un branchement bas voltage de classe 4.
C13: -------------------------------------------------------------------------------------------------------------------------------
C14: "Il faut inclure dans son analyse de coût de retour sur investissement les points suivants qui selon moi sont dans l'ordre d'importance pour la plupart des cultures :"
C15: • augmentation de la qualité de produit
C16: • stabilité dans la production
C17: • diminution du temps de production
C18: • diminution du temps de travail
C19: • économie sur les intrants
C20: • économie d'énergie
C21: -------------------------------------------------------------------------------------------------------------------------------
C25: SUITE…
C26: "À retenir: le budget a de l'importance bien sûr mais la compréhension adéquate de la gestion de l'environnement et des paramètres de production et leurs contrôles sont tout aussi important. Le but visé est l'augmentation de la profitabilité."

Sheet pb8 (hidden)
C3: PENSE-BÊTE
C5: Utilisation d'un réservoir d'hydro-accumulation
C6: Il est intéressant de pouvoir réaliser une stratification de l’eau du réservoir afin d’optimiser l’hydro-accumulation et déployer le plein potentiel calorifique de cette technologique. La stratification consiste en une différence importante de températures entre les différentes strates du réservoir. En évitant un mélange de l’eau chaude et froide on évite de se retrouver avec de l’eau tiède sur l’ensemble de la colonne d’eau du réservoir. On a donc de l’eau très chaude en haut que l’on veut utiliser subséquemment pour chauffer optimalement et de l’eau plus froide dans le bas de la réserve destinée à alimenter le circuit des bouilloires. Afin de réaliser la stratification, il faudra penser à installer des pompes court-circuitant la sortie des bouilloires afin de ramener la sortie d’eau chaude vers l’entrée d’eau chaude et ce jusqu’à ce la température de sortie d’eau de la bouilloire soit adéquate. Lorsque la température de sortie aura atteint une cible jugée adéquate pour bien chauffer les serres selon la saison en cours, une pompe de circulation à vitesse variable s’activera afin de retourner l’eau vers les zones de demandes ou de stockage. On s’assure ainsi de remettre de l’eau très chaude dans le haut du réservoir et ceci favorisera la stratification. La pompe court-circuit permettra aussi d’éviter un choc thermique occasionné par un différentiel trop important de température de l’eau d’entrée comparativement à celui de sortie. Il est important de considérer la modification de la circulation d’eau de tout le réseau afin de réaliser une distribution de type 3-voies avec un retour vers l’unité de chaufferie. Des composantes permettant d’optimiser la stratification peuvent aussi être installées directement dans le réservoir.

Sheet pb9 (hidden)
C3: PENSE-BÊTE
C5: Récupération du gaz carbonique à partir des gaz de combustion du système de génération de chaleur
C6: Si vous optez pour une option de génération de CO2 par combustion couplé à l’hydro-accumulation, il est important d’avoir un contrôleur de serres programmé adéquatement afin de permettre le délestage des autres sources de chauffage. En été, par exemple, le contrôleur devra vous donner la flexibilité de dissiper vers les serres le trop plein de chaleur de l’hydro-accumulateur en arrêtant les autres sources de chauffage. Ce refroidissement de l’hydro-accumulateur permettra une nouvelle production diurne de co2 par combustion.

Sheet config prog (hidden)
B2: Valeur énergétique et émissions de GES de différentes sources énergétiques (tiré de : Ministère des Ressources naturelles, 2014)
C4: Valeur énergétique | F4: Émissions de GES
C5: Unité | D5: MJ/unité | E5: kWh/unité | F5: Facteur d’équivalence (g CO2 eq/unité)
B6: Mazout no.2 | C6: L | D6: 38,5 | E6: 10,7 | F6: 2734,7
B7: Gaz naturel | C7: m3 | D7: 37,9 | E7: 10,5 | F7: 1889,3
B8: Propane | C8: L | D8: 25,3 | E8: 7,0 | F8: 1544,0
B9: Électricité | C9: kWh | D9: 3,6 | E9: 1,0 | F9: 0,0
B10: Granules | C10: kg | D10: 19,8 | E10: 5,5 | F10: 1834,97
B11: Copeaux | C11: kg | D11: 11,9 | E11: 3,3 | F11: 1834,97
B12: Biomasse - autre | C12: kg | D12: =BiomasseMJParUnite -> 11.9 | E12: =BiomasseKWHParUnite -> 3.3 | F12: =BiomasseEmissionsDeGES -> 1834.97
B16: Facteurs de conversion utilisés pour le calcul de la consommation anticipée | G16: Facteur
G17: 1
B18: Situation | G18: 0.9
B19: Aucun combustible fossile n'est utilisé pour gérer la demande
B20: Un combustible fossile est utilisé pour gérer la demande
B23: Tableau 5.6 - Débit d’infiltration selon le type d’infiltrations
B24: Type d’infiltrations | D24: Débit d’infiltration (L/m●s)
D25: 2,70 m/s | E25: 3,42 m/s
B26: Porte bien ajustée | D26: 0,1 | E26: 0,1
B27: Porte à ajustement moyen | D27: 0,2 | E27: 0,4
B28: Porte mal ajustée | D28: 0,7 | E28: 1,1
B29: Fissure de 0,8 mm | D29: 1,7 | E29: 3,1
B30: Fissure de 1,6 mm | D30: 2,8 | E30: 3,9
B31: Fissure de 3,2 mm | D31: 6,1 | E31: 10,0
B32: Fissure de 6,4 mm | D32: 12,8 | E32: 18,6
B33: Fissure de 9,5 mm | D33: 19,4 | E33: 28,0
B34: Fissure de 12,7 mm | D34: 26 | E34: 38,0

Sheet Procédure d'utilisation
C2: Procédure d'utilisation*
C4: 1. Sélectionnez l'onglet Infos combustible et entrez la consommation mensuelle de combustible de même que le prix mensuel moyen du combustible. Le programme se servira de
C5: ces valeurs pour effectuer les calculs. Alternativement il est possible de saisir directement la consommation annuelle de combustible de même que le prix annuel moyen, sans
C6: entrer les consommations mensuelles. La saisie des données sur cet onglet est facultative.
C7: 2. Sélectionnez l'onglet Mesures d'efficacité;
C8: 3. Choisissez une mesure d'efficacité (colonne de gauche) ou débuter la création d'un scénario personnalisé (colonne de droite);
C10: 3.1 Sélection d'une seule mesure (colonne de gauche)
D11: 3.1.1 Fournir les information demandées
D12: 3.1.2 Appuyer sur le bouton calculer pour afficher le résultat des calculs directement sur le formulaire
D13: • Le bouton Exporter lance la création d'un rapport au format Word lequel regroupe les informations sasies et le résultat des calculs
D14: • Le bouton Effacer efface les informations saisies et les résultats
C16: 3.1 Création d'un scénario personnalisé (colonne de droite) (les instructions défileront à l'écran)
D17: 3.1.1 Choisir les mesures d'efficacité
D18: 3.1.2 Fournir les informations communes aux mesures sélectionnées
D19: 3.1.3 Fournir les informations spécifiques aux mesures sélectionnées
D20: 3.1.4 À l'avant dernière étape, il est possible d'enregister les paramètres du scénario et de créer un rapport. Le rapport contient le résultat des calculs et résume l'ensemble des informations saisies.
C22: Notes concernant les données de sortie:
D23: • Période de retour sur investissement (PRI): Dans le cas où la période de retour sur investissement serait négative, le programme affiche "NON CALCULÉ"
D24: • Économies: un résultat négatif indique qu'aucune économies n'est réalisées; ce scénario entraînerait une consommation accrue de combustible, un déboursé
D25: monétaire supplémentaire pour le chauffage ou les deux.
C27: Note concernant la case à cocher "Conversion vers l'électricité" (mesure 1.2 seulement)
D28: Dans le cas où la nouvelle source énergétique serait l'électricité, cochez la case si un combustible fossile est utilisé pour gérer la demande de puissance d’électricité en pointe.
C30: *Nota bene
C31: • Pour la génération des rapports, le calculateur se sert de Mircrosoft Word. Ce programme doit donc préalablement être installé.
C32: • Prenez connaissance des limites du calculateur
C34: La réalisation de l'outil d'aide à la décision a été rendu possible par l'entremise de l'appui financier du MAPAQ.
C37: Merci aux entreprises suivantes pour leur soutien:

Sheet Limites au calculateur
B1: LIMITES AU CALCULATEUR
H3: Mise en garde
B5: • La hausse de la productivité n’a pas été considérée dans le présent calculateur bien que, dans certains cas, l’impact s’avère important et permet de rentabiliser l’investissement plus rapidement.
B7: • Les chiffres fournis pour les investissements et les frais d’entretien ne sont que des exemples. Idéalement, vous devez entrer vos propres coûts selon vos soumissions.
B9: • Pour les frais d’entretien, le temps requis pour le nettoyage régulier et usuel de certains équipements n’a pas été considéré. Seuls les frais spécifiques à un équipement ont été évalués dans les charges supplémentaires.
B11: • La période de retour sur l’investissement a été calculée uniquement sur des investissements qui sont des immobilisations pour l’entreprise. Par exemple, le remplacement du polyéthylène par un même type de polyéthylène ne constitue pas une mesure d’efficacité énergétique, mais plutôt une dépense d’entretien. Donc, aucune PRI n’a été calculée dans ce cas. Par contre, le remplacement d’un polyéthylène par un autre type de recouvrement (passer d’une simple épaisseur à une double), est considéré comme une immobilisation.
B13: • Le taux d'intérêt relatif aux investissements n'a pas été considéré dans le calcul, car il n'influence pas beaucoup la période de retour sur investissement puisque celle-ci est souvent rapide. Cependant, pour des équipements amortissables sur une plus longue période de temps, le taux d'intérêt pourrait avoir un impact plus significatif.
B15: • La période de retour sur l'investissement ne devrait jamais dépasser la durée de vie utile du bien.
B17: • Dans le cas d'investissements importants, il faudra s'assurer que la situation financière générale de l'entreprise puisse assumer un autre investissement. L'analyse devra être approfondie dans certaines situations.
B19: Notes concerant les scénario personnalisés seulement:
B20: • Les économies d’énergie découlant des mesures d’efficacité énergétique sélectionnées ne tiennent pas compte des effets croisés. En effet, les calculs d’économies d’énergie se font indépendamment pour chaque mesure et n’intègrent pas les résultats des autres mesures implantées. La détermination des effets croisés s’inscrit dans le cadre d’une gestion énergétique approfondie et ne peut donc être déterminée à l’aide de ce calculateur.

Sheet Description des onglets
B1: Description sommaire du contenu retrouvé sur les différents onglets
B3: 1. Onglet mesures d'efficacité
B4: Permet de choisir les mesures d'efficacité. Le programme fonctionne de 2 manières:
C6: 1. Mode à accès direct: permet d'accéder directement à une mesure d'efficacité énergétique. Il s'agit de fournir des informations de base tels la source d'énergie, la consommation annuelle de combustible et le prix moyen. Le programme affiche les résultats des calculs à même le formulaire. Un rapport peut être créé.
C8: 2. Création de scénario personnalisé: permet de choisir plusieurs mesures d'efficacité énergétique à la fois. Un rapport contenant l'ensemble des résultats est créé à la toute fin.
B10: 2. Onglet infos combustible
B11: Contient les informations reliés à la source énergétique. Cette feuille de calcul permet la saisie de la consommation mensuelle de combustible de même que le prix mesuel moyen. Le programme calcule la consommation annuelle de combustible et le prix moyen pondéré. Si ces données sont saisies, le programme s'en sert comme valeur par défaut.
B13: Lorsque la source d'énergie est la biomasse, il est possible de spécifier les paramètres énergétiques par kilogramme de cette source d'énergie soient le nombre de kWh, le nombre de Mégajoules et la quantité de CO2 émise. Il n'est cependant pas possible de changer les valeurs énergétiques des autres sources énergétiques.
B15: 3. Onglet limite au calculateur
B16: Résume les limites des éléments pris en compte dans les calculs tant dans le volet énergétique que dans le volet économique.
B18: 4. Onglet liste des tableaux
B19: Affiche la liste de tous les tableaux cités dans les fiches. Afin d'accélérer la consultation d'information, certains tableaux ont été ajoutés en plus; ils reprennent cependant de l'information déjà présentent dans les fiches.
B21: 5. Graphique de la consommation
B22: Affiche sous forme de graphiques à barre la consommation mensuelle des différents combustible.
B24: 6. Onglet Inscrire facture
B25: Dans le cas d'une conversion du propane ou du mazout vers l'électricité, cet interface permet de saisir les infomations requises pour les effectuer les calculs.
B26: Ce modèle de calcul a été développé par Hydro-Québec. Il n'est pas disponible pour les scénarios personnalisés.

Sheet Mesures d'efficacité

Sheet Liste des tableaux
B2: Mesure 1: Systèmes de production de chaleur efficaces
C3: Tableau 1.1 - Caractéristiques des systèmes de génération de chaleur
C4: Tableau 1.2 - Valeur énergétique et émissions de GES de différentes sources énergétiques
C5: Tableau 1.3 - Coûts associés à l'acquisition, l'exploitation, et l'entretien d'un système à la biomasse
C6: Tableau 1.4 - Rendements saisonniers de différentes technologies de chauffage (gaz naturel, propane, mazout, électricité)
C7: Tableau 1.5 - Rendements thermiques et saisonniers de systèmes de chauffage à la biomasse
C8: Tableau 1.6 - Coûts des investissements pour une conversion à la biomasse
C9: Tableau 1.7 - Exemple de coûts d'entretien de système de chauffage
C10: Tableau 1.8 - Historique des coûts moyens annuels ($/unité) des différentes sources d'énergie de 2012 à 2016
C11: Tableau 1.9 - Coûts d'achat d'un système de chauffage à l'air chaud pour une serre individuelle
C12: Tableau 1.10 - Coûts d'achat d'un système de chauffage à l'air chaud pour des serres jumelées
C13: Tableau 1.11 - Coût d'acquisistion d'un système de chauffage à la biomasse pour des serres individuelles et jumelées
C14: Tableau 1.12 - Exemple de coûts d'acquisition d'un système de chauffage à la biomasse aux granules et d'un réservoir d'hydroaccumulation
C15: Tableau 1.13 - Coûts pour les copeaux, les granules et la biomasse agricole
C16: Tableau 1.14 - Comparaison du potentiel de réduction des coûts de chauffage entre des granules à 10% d'humidité et le propane, le mazout léger et l'électrcité
C17: Tableau 1.15 - Comparaison du potentiel de réduction des coûts de chauffage entre des copeaux de bois à 30% d'humidité et le propane, le mazout léger le gaz naturel et l'électrcité
B19: Mesure 2: Installation d'écrans thermiques
C20: Tableau 2.1 - Données énergétiques concernant l'utilisation d'écrans thermiques
C21: Tableau 2.2 - Scénario de référence
C22: Tableau 2.3 - Facteurs d'utilisation des écrans thermiques
C23: Tableau 2.4 - Coûts des écrans thermiques et de certaine composante
C24: Tableau 2.5 - Prix d'écrans thermiques selon certains fournisseurs
C25: Tableau 2.6 - Exemples de période de retour sur investissement
B27: Mesure 3: Utilisation d'un recouvrement de serre efficace
C28: Tableau 3.1 - Principales caractéristiques des matériaux de recouvrement de serre
C29: Tableau 3.2 - Consommation d'énergie de différents types de recouvrement de serre
C30: Tableau 3.3 - Coûts des recouvrements
C31: Tableau 3.4 - Coûts des recouvrement (source: Groupe Horticole Ledoux)
B33: Mesure 4: Implantation d'un système de contrôle du climat
C34: Tableau 4.1 - Principales caractériques de systèmes de contrôle du climat
C35: Tableau 4.2 - Résultats obtenus suite à l'implantation des systèmes de gestion du climat
C36: Tableau 4.3 - Coût d'acquisistion d'un système de contrôle informatisé
B38: Mesure 5: Isolation des parois extérieures
C39: Tableau 5.1 - Configuration de l’isolant en fonction de l’isolation de la serre
C40: Tableau 5.2 - Isolation du périmètre de la serre
C41: Tableau 5.3 - Économies d'énergie selon la méthode d'isolation des parois de serre
C42: Tableau 5.4 - Éléments de calculs des pertes par infiltrations
C43: Tableau 5.5 - Débit d’infiltration selon le type d’infiltrations
C44: Tableau 5.6 - Coûts de différents types d'isolant
C45: Tableau 5.7 - Dépenses liées à l'achat de matériel pour l'isolation des parois verticales extérieures
C46: Tableau 5.8 - Coûts en matériel liés à l'isolation du pourtour
B48: Mesure 6: Éclairage de photosynthèse
C49: Tableau 6.1 - Caractéristiques de lampes d'éclairage de photosynthèse
C50: Tableau 6.2 - Influence de l'éclairage de photosynthèse sur la durée (en jours) du cycle de productionde la laitue hydroponique
C51: Tableau 6.3 - Calendrier de production pour la laitue cultivée en serre avec et sans éclairage
C52: Tableau 6.4 - Coûts d'investissement des systèmes d'éclairage
C53: Tableau 6.5 - Coûts d'investissements de systèmes d'éclairage de photosynthèse
C54: Tableau 6.6 - Coûts d'investissements de systèmes d'éclairage de photosynthèse
C55: Tableau 6.7 - Coûts d'investissements de systèmes d'éclairage de photosynthèse
C56: Tableau 6.8 - Coûts d'utilisation (tomates et concombres)
C57: Tableau 6.9 Coûts d'utilisation (laitues)
C58: Tableau 6.10 - Gain potentiel d'amélioration de l'efficacité d'éclairage
B60: Mesure 7: Ventilateurs à circulation d'air horizontal (HAF)
C61: Tableau 7.1 - Coûts d'achat de ventilateurs à circulation d'air horizontal (HAF)
C62: Tableau 7.2 - Coûts d'achat de ventilateurs à circulation d'air horizontal selon la superficie (HAF)
B64: Mesure 8: Utilisation d'un réservoir d'hydro-accumulation
C65: Tableau 8.1 - Économies potentielles en $/m2/an pouvant être apportées par l'utilisation d'un réservoir d'hydro-accumulation
C66: Tableau 8.2 - Économies potentielles d'énergie qui découlent de l'utilisation de réservoir d'hydro-accumulation
C67: Tableau 8.3 - Capacité et coûts d'investissements requis pour l'acquisition d'un réservoir d'hydro accumulation
B69: Mesure 9: Récupération du gaz carbonique à partir des gaz de combustion du système de génération de chaleur (propane ou gaz naturel)
C70: Tableau 9.1 - Utilisation annuelle potentielle de CO2 sur une base mensuelle
C71: Tableau 9.2 - Coûts de quelques systèmes d'injection de CO2
C72: Tableau 9.3 - Comparaison des coûts de production de CO2 selon le type et la quantité de combustible utilisés pour un hectare
C73: Tableau 9.4 - Économies d'énergie selon le scénario de départ et la présence ou non d'une réservoir d'hydro-accumulation
C74: Tableau 9.5 - Coûts en matériel liés à l'acquisition d'un générateur et d'un contrôleur de CO2

Sheet Infos combustible
B2: ÉTAPE 1: Si chauffage à la biomasse autrement qu'avec des copeaux ou des granules, entrez les valeurs énergétiques | G2: ÉTAPE 2: Saisir les quantités de combustible consommées mensuellement (ne remplir que la colonne qui correspond à votre combustible) | P2: ÉTAPE 3: Saisir le prix moyen mensuel du combustible (ne remplir que la colonne qui correspond à votre combustible)
B4: Valeur énergétique | D4: Émissions de GES | H4: Source d'énergie | Q4: Prix du combustible ($/unité)
B5: MJ/kg | C5: kWh/kg | G5: Mois | H5: ='config prog'!B6 -> Mazout no.2 | I5: ='config prog'!B7 -> Gaz naturel | J5: ='config prog'!B8 -> Propane | K5: ='config prog'!B9 -> Électricité | L5: ='config prog'!B10 -> Granules | M5: ='config prog'!B11 -> Copeaux | N5: ='config prog'!B12 -> Biomasse - autre | P5: Mois | Q5: =H5 -> Mazout no.2 | R5: Gaz naturel | S5: Propane | T5: Électricité | U5: Granules | V5: Copeaux | W5: Biomasse - autre
B6: 11.9 | C6: 3.3 | D6: 1834.97 | H6: (L) | I6: (m3) | J6: (L) | K6: (kWh) | L6: (kg) | M6: (kg) | N6: (kg)
G7: Janvier | P7: Janvier
B8: NOTE: les cellules coloriées en vert correspondent | G8: Février | P8: Février
B9: aux informations à saisir | G9: Mars | P9: Mars
G10: Avril | P10: Avril
G11: Mai | P11: Mai
G12: Juin | P12: Juin
G13: Juillet | P13: Juillet
G14: Août | P14: Août
G15: Septembre | P15: Septembre
G16: Octobre | P16: Octobre
G17: Novembre | P17: Novembre
G18: Décembre | P18: Décembre
G19: Total annuel | H19: =SUM(H7:H18) -> 0 | I19: =SUM(I7:I18) -> 0 | J19: =SUM(J7:J18) -> 0 | K19: =SUM(K7:K18) -> 0 | L19: =SUM(L7:L18) -> 0 | M19: 0 | N19: 0 | P19: Moyenne annuelle | Q19: =IFERROR(AVERAGE(Q7:Q18),"") ->  | R19: =IFERROR(AVERAGE(R7:R18),"") ->  | U19: =IFERROR(AVERAGE(U7:U18),"") -> 
P20: Moyenne pondérée | Q20: =IFERROR(SUM(H7:H18/H19*Q7:Q18),"0") -> 0 | R20: =IFERROR(SUM(I7:I18/I19*R7:R18),"0") -> 0 | S20: =IFERROR(SUM(J7:J18/J19*S7:S18),"0") -> 0 | T20: =IFERROR(SUM(K7:K18/K19*T7:T18),"0") -> 0 | U20: =IFERROR(SUM(L7:L18/L19*U7:U18),"0") -> 0 | V20: =IFERROR(SUM(M7:M18/M19*V7:V18),"0") -> 0 | W20: =IFERROR(SUM(N7:N18/N19*W7:W18),"0") -> 0

Sheet Inscrire facture
D2: ÉTAPE 1 de 3: Saisir les factures actuelles d'électricité et de combustible | V2: ÉTAPE 2 de 3: Saisir les paramètres demandés
E4: Facture actuelle d'électricité | N4: ='Inscrire facture'!AA5 -> Mazout Léger (no 2) | S4: Total électricité et chauffage | W4: Choisir la ville qui su situe le plus près de votre entreprise: | AA4: Québec
E5: Mois | F5: Début de la période | G5: Fin de la période | H5: Pointe (kW) | I5: Consommation mensuelle (kWh) | J5: Montant total | N5: Nombre de litres | O5: Montant | S5: Montant | W5: Chosir le type de combustible actuel: | AA5: Mazout Léger (no 2)
E6: Janvier | F6: 2018-01-01 | G6: 2018-02-01 | S6: =SUM(J6,O6) -> 0 | W6: Saisir le taille de la serre (en m2) : | AA6: 1200
E7: Février | F7: 2018-02-01 | G7: 2018-03-01 | S7: 0 | W7: ="Facteur d'utilisation projeté (actuel = " & 'modele conversion HQ'!K54 & "% ) :" -> Facteur d'utilisation projeté (actuel = % ) : | AA7: 0.45
E8: Mars | F8: 2018-03-01 | G8: 2018-04-01 | S8: 0 | W8: Coût total de l'investissement ($) | AA8: 50000
E9: Avril | F9: 2018-04-01 | G9: 2018-05-01 | S9: 0 | W9: Coûts annuels d'exploitation et d'entretien ($/an) | AA9: 5000
E10: Mai | F10: 2018-05-01 | G10: 2018-06-01 | S10: 0 | W10: Prix du combustible futur ($/litre) | AA10: =IF(OR(O18=0,N18=0),,'Inscrire facture'!O18/'Inscrire facture'!N18 * 1.1) -> 0
E11: Juin | F11: 2018-06-01 | G11: 2018-07-01 | S11: 0 | W11: Pourcentage d'énergie combustible restant (en hiver) : | AA11: =IF((1-(1-AA7) * 1.25)<0,0,(1-(1-AA7) * 1.25)) -> 0.3125
E12: Juillet | F12: 2018-07-01 | G12: 2018-08-01 | S12: 0
E13: Août | F13: 2018-08-01 | G13: 2018-09-01 | S13: 0 | V13: ÉTAPE 3 de 3: Générer le rapport
E14: Septembre | F14: 2018-09-01 | G14: 2018-10-01 | S14: 0
E15: Octobre | F15: 2018-10-01 | G15: 2018-11-01 | S15: 0
E16: Novembre | F16: 2018-11-01 | G16: 2018-12-01 | S16: 0
E17: Décembre | F17: 2018-12-01 | G17: 2019-01-01 | S17: 0
E18: Annuelle | F18: =MIN(F6:F17) -> 2018-01-01 | G18: =MAX(G6:G17) -> 2019-01-01 | H18: =MAX(H6:H17) -> 0 | I18: =SUM(I6:I17) -> 0 | J18: =SUM(J6:J17) -> 0 | N18: =SUM(N6:N17) -> 0 | O18: =SUM(O6:O17) -> 0 | S18: =SUM(S6:S17) -> 0

Sheet Gabarit (hidden)
B2: Factures estimée (Tarif DT)
E3: Électricité | G3: ='Inscrire facture'!AA5 -> Mazout Léger (no 2) | I3: Facture totale | K3: Prix de l'énergie
E4: Pointe | F4: Consommation | G4: Écrêter pointe | H4: ="Température < " & VLOOKUP('Inscrire facture'!AA4,DegresJourHiver!$B$3:$E$14,2) & "°C" -> Température < -15°C | I4: Électricité et combustible | K4: Base annuelle | L4: Mètre carré ($ / m2) | M4: Combustible (¢/kWh) | N4: Électricité (¢/kWh)
B5: Mois | C5: Date Début | D5: Date Fin | E5: (kW) | F5: (kWh) | G5: (litres) | H5: (litres) | I5: Tarif DT | K5: Factures actuelle | L5: ='Inscrire facture'!S18/'Inscrire facture'!AA6 -> 0 | M5: =('Inscrire facture'!O18/'Inscrire facture'!N18) / IF('Inscrire facture'!$AA$5="Mazout Léger (no 2)",Paramètres!$G$6*Paramètres!$G$7,IF('Inscrire facture'!$AA$5="Mazout Lourd (no 6)",Paramètres!$G$10*Paramètres!$G$11,IF('Inscrire facture'!$AA$5="Propane",Paramètres!$G$14*Paramètres!$G$15,"Erreur")))*100 ->  | N5: ='Inscrire facture'!J18/'Inscrire facture'!I18 * 100 -> 
B6: ='modele conversion HQ'!B7 -> Janvier | C6: ='modele conversion HQ'!C7 -> 2018-01-01 | D6: ='modele conversion HQ'!D7 -> 2018-02-01 | E6: ='modele conversion HQ'!M7 -> 0 | F6: ='modele conversion HQ'!P25 -> 0 | G6: ='modele conversion HQ'!P7 -> 0 | H6: ='modele conversion HQ'!Q7 -> 0 | I6: ='modele conversion HQ'!R7 -> 12.5984 | K6: Factures au tarif DP | L6: =H36/'Inscrire facture'!AA6 -> 0.0609 | M6: =$M$5 * 1.1 ->  | N6: ='modele conversion HQ'!Q37 / F36 * 100 -> 
B7: ='modele conversion HQ'!B8 -> Février | C7: ='modele conversion HQ'!C8 -> 2018-02-01 | D7: ='modele conversion HQ'!D8 -> 2018-03-01 | E7: ='modele conversion HQ'!M8 -> 0 | F7: ='modele conversion HQ'!P26 -> 0 | G7: ='modele conversion HQ'!P8 -> 0 | H7: ='modele conversion HQ'!Q8 -> 0 | I7: ='modele conversion HQ'!R8 -> 11.3792 | K7: Factures au tarif M | L7: =I36/'Inscrire facture'!AA6 -> 0 | M7: =$M$5 * 1.1 ->  | N7: ='modele conversion HQ'!AD37 / F36 * 100 -> 
B8: ='modele conversion HQ'!B9 -> Mars | C8: ='modele conversion HQ'!C9 -> 2018-03-01 | D8: ='modele conversion HQ'!D9 -> 2018-04-01 | E8: ='modele conversion HQ'!M9 -> 0 | F8: ='modele conversion HQ'!P27 -> 0 | G8: ='modele conversion HQ'!P9 -> 0 | H8: ='modele conversion HQ'!Q9 -> 0 | I8: ='modele conversion HQ'!R9 -> 12.5984 | K8: Factures au tarif DT | L8: =I18/'Inscrire facture'!AA6 -> 0.1236133333 | M8: =$M$5 * 1.1 ->  | N8: ='modele conversion HQ'!X37 / F18 * 100 -> 
B9: ='modele conversion HQ'!B10 -> Avril | C9: ='modele conversion HQ'!C10 -> 2018-04-01 | D9: ='modele conversion HQ'!D10 -> 2018-05-01 | E9: ='modele conversion HQ'!M10 -> 0 | F9: ='modele conversion HQ'!P28 -> 0 | G9: ='modele conversion HQ'!P10 -> 0 | H9: ='modele conversion HQ'!Q10 -> 0 | I9: ='modele conversion HQ'!R10 -> 12.192
B10: ='modele conversion HQ'!B11 -> Mai | C10: ='modele conversion HQ'!C11 -> 2018-05-01 | D10: ='modele conversion HQ'!D11 -> 2018-06-01 | E10: ='modele conversion HQ'!M11 -> 0 | F10: ='modele conversion HQ'!P29 -> 0 | G10: ='modele conversion HQ'!P11 -> 0 | H10: ='modele conversion HQ'!Q11 -> 0 | I10: ='modele conversion HQ'!R11 -> 12.5984
B11: ='modele conversion HQ'!B12 -> Juin | C11: ='modele conversion HQ'!C12 -> 2018-06-01 | D11: ='modele conversion HQ'!D12 -> 2018-07-01 | E11: ='modele conversion HQ'!M12 -> 0 | F11: ='modele conversion HQ'!P30 -> 0 | G11: ='modele conversion HQ'!P12 -> 0 | H11: ='modele conversion HQ'!Q12 -> 0 | I11: ='modele conversion HQ'!R12 -> 12.192 | K11: Paramètres
B12: ='modele conversion HQ'!B13 -> Juillet | C12: ='modele conversion HQ'!C13 -> 2018-07-01 | D12: ='modele conversion HQ'!D13 -> 2018-08-01 | E12: ='modele conversion HQ'!M13 -> 0 | F12: ='modele conversion HQ'!P31 -> 0 | G12: ='modele conversion HQ'!P13 -> 0 | H12: ='modele conversion HQ'!Q13 -> 0 | I12: ='modele conversion HQ'!R13 -> 12.5984 | K12: Ville : | M12: ='Inscrire facture'!AA4 -> Québec
B13: ='modele conversion HQ'!B14 -> Août | C13: ='modele conversion HQ'!C14 -> 2018-08-01 | D13: ='modele conversion HQ'!D14 -> 2018-09-01 | E13: ='modele conversion HQ'!M14 -> 0 | F13: ='modele conversion HQ'!P32 -> 0 | G13: ='modele conversion HQ'!P14 -> 0 | H13: ='modele conversion HQ'!Q14 -> 0 | I13: ='modele conversion HQ'!R14 -> 12.5984 | K13: Type de combustible : | M13: ='Inscrire facture'!AA5 -> Mazout Léger (no 2)
B14: ='modele conversion HQ'!B15 -> Septembre | C14: ='modele conversion HQ'!C15 -> 2018-09-01 | D14: ='modele conversion HQ'!D15 -> 2018-10-01 | E14: ='modele conversion HQ'!M15 -> 0 | F14: ='modele conversion HQ'!P33 -> 0 | G14: ='modele conversion HQ'!P15 -> 0 | H14: ='modele conversion HQ'!Q15 -> 0 | I14: ='modele conversion HQ'!R15 -> 12.192 | K14: Taille de la serre (en m2) : | M14: ='Inscrire facture'!AA6 -> 1200
B15: ='modele conversion HQ'!B16 -> Octobre | C15: ='modele conversion HQ'!C16 -> 2018-10-01 | D15: ='modele conversion HQ'!D16 -> 2018-11-01 | E15: ='modele conversion HQ'!M16 -> 0 | F15: ='modele conversion HQ'!P34 -> 0 | G15: ='modele conversion HQ'!P16 -> 0 | H15: ='modele conversion HQ'!Q16 -> 0 | I15: ='modele conversion HQ'!R16 -> 12.5984 | K15: Facteur d'utilisation projeté : | M15: ='Inscrire facture'!AA7 -> 0.45
B16: ='modele conversion HQ'!B17 -> Novembre | C16: ='modele conversion HQ'!C17 -> 2018-11-01 | D16: ='modele conversion HQ'!D17 -> 2018-12-01 | E16: ='modele conversion HQ'!M17 -> 0 | F16: ='modele conversion HQ'!P35 -> 0 | G16: ='modele conversion HQ'!P17 -> 0 | H16: ='modele conversion HQ'!Q17 -> 0 | I16: ='modele conversion HQ'!R17 -> 12.192 | K16: Prix du combustible futur : | M16: ='Inscrire facture'!AA10 -> 0
B17: ='modele conversion HQ'!B18 -> Décembre | C17: ='modele conversion HQ'!C18 -> 2018-12-01 | D17: ='modele conversion HQ'!D18 -> 2019-01-01 | E17: ='modele conversion HQ'!M18 -> 0 | F17: ='modele conversion HQ'!P36 -> 0 | G17: ='modele conversion HQ'!P18 -> 0 | H17: ='modele conversion HQ'!Q18 -> 0 | I17: ='modele conversion HQ'!R18 -> 12.5984 | K17: % d'énergie combustible restant : | M17: ='Inscrire facture'!AA11 -> 0.3125
B18: ='modele conversion HQ'!B19 -> Annuelle | C18: ='modele conversion HQ'!C19 -> 2018-01-01 | D18: ='modele conversion HQ'!D19 -> 2019-01-01 | E18: =MAX(E6:E17) -> 0 | F18: =SUM(F6:F17) -> 0 | G18: =SUM(G6:G17) -> 0 | H18: =SUM(H6:H17) -> 0 | I18: =SUM(I6:I17) -> 148.336
B20: Factures estimée (Tarif DP et M)
E21: Électricité | G21: ='Inscrire facture'!AA5 -> Mazout Léger (no 2) | H21: Facture totale | I21: Facture totale
E22: Pointe | F22: Consommation | G22: Écrêter la pointe | H22: Électricité et combustible | I22: Électricité et combustible
B23: Mois | C23: Date Début | D23: Date Fin | E23: en kW | F23: en kWh | G23: (litres) | H23: Tarif DP | I23: Tarif M
B24: ='modele conversion HQ'!B7 -> Janvier | C24: ='modele conversion HQ'!C7 -> 2018-01-01 | D24: ='modele conversion HQ'!D7 -> 2018-02-01 | E24: ='modele conversion HQ'!E7 -> 0 | F24: ='modele conversion HQ'!F7 -> 0 | G24: ='modele conversion HQ'!G7 -> 0 | H24: ='modele conversion HQ'!J7 -> 6.09 | I24: ='modele conversion HQ'!K7 -> 0
B25: ='modele conversion HQ'!B8 -> Février | C25: ='modele conversion HQ'!C8 -> 2018-02-01 | D25: ='modele conversion HQ'!D8 -> 2018-03-01 | E25: ='modele conversion HQ'!E8 -> 0 | F25: ='modele conversion HQ'!F8 -> 0 | G25: ='modele conversion HQ'!G8 -> 0 | H25: ='modele conversion HQ'!J8 -> 6.09 | I25: ='modele conversion HQ'!K8 -> 0
B26: ='modele conversion HQ'!B9 -> Mars | C26: ='modele conversion HQ'!C9 -> 2018-03-01 | D26: ='modele conversion HQ'!D9 -> 2018-04-01 | E26: ='modele conversion HQ'!E9 -> 0 | F26: ='modele conversion HQ'!F9 -> 0 | G26: ='modele conversion HQ'!G9 -> 0 | H26: ='modele conversion HQ'!J9 -> 6.09 | I26: ='modele conversion HQ'!K9 -> 0
B27: ='modele conversion HQ'!B10 -> Avril | C27: ='modele conversion HQ'!C10 -> 2018-04-01 | D27: ='modele conversion HQ'!D10 -> 2018-05-01 | E27: ='modele conversion HQ'!E10 -> 0 | F27: ='modele conversion HQ'!F10 -> 0 | G27: ='modele conversion HQ'!G10 -> 0 | H27: ='modele conversion HQ'!J10 -> 6.09 | I27: ='modele conversion HQ'!K10 -> 0
B28: ='modele conversion HQ'!B11 -> Mai | C28: ='modele conversion HQ'!C11 -> 2018-05-01 | D28: ='modele conversion HQ'!D11 -> 2018-06-01 | E28: ='modele conversion HQ'!E11 -> 0 | F28: ='modele conversion HQ'!F11 -> 0 | G28: ='modele conversion HQ'!G11 -> 0 | H28: ='modele conversion HQ'!J11 -> 6.09 | I28: ='modele conversion HQ'!K11 -> 0
B29: ='modele conversion HQ'!B12 -> Juin | C29: ='modele conversion HQ'!C12 -> 2018-06-01 | D29: ='modele conversion HQ'!D12 -> 2018-07-01 | E29: ='modele conversion HQ'!E12 -> 0 | F29: ='modele conversion HQ'!F12 -> 0 | G29: ='modele conversion HQ'!G12 -> 0 | H29: ='modele conversion HQ'!J12 -> 6.09 | I29: ='modele conversion HQ'!K12 -> 0
B30: ='modele conversion HQ'!B13 -> Juillet | C30: ='modele conversion HQ'!C13 -> 2018-07-01 | D30: ='modele conversion HQ'!D13 -> 2018-08-01 | E30: ='modele conversion HQ'!E13 -> 0 | F30: ='modele conversion HQ'!F13 -> 0 | G30: ='modele conversion HQ'!G13 -> 0 | H30: ='modele conversion HQ'!J13 -> 6.09 | I30: ='modele conversion HQ'!K13 -> 0
B31: ='modele conversion HQ'!B14 -> Août | C31: ='modele conversion HQ'!C14 -> 2018-08-01 | D31: ='modele conversion HQ'!D14 -> 2018-09-01 | E31: ='modele conversion HQ'!E14 -> 0 | F31: ='modele conversion HQ'!F14 -> 0 | G31: ='modele conversion HQ'!G14 -> 0 | H31: ='modele conversion HQ'!J14 -> 6.09 | I31: ='modele conversion HQ'!K14 -> 0
B32: ='modele conversion HQ'!B15 -> Septembre | C32: ='modele conversion HQ'!C15 -> 2018-09-01 | D32: ='modele conversion HQ'!D15 -> 2018-10-01 | E32: ='modele conversion HQ'!E15 -> 0 | F32: ='modele conversion HQ'!F15 -> 0 | G32: ='modele conversion HQ'!G15 -> 0 | H32: ='modele conversion HQ'!J15 -> 6.09 | I32: ='modele conversion HQ'!K15 -> 0
B33: ='modele conversion HQ'!B16 -> Octobre | C33: ='modele conversion HQ'!C16 -> 2018-10-01 | D33: ='modele conversion HQ'!D16 -> 2018-11-01 | E33: ='modele conversion HQ'!E16 -> 0 | F33: ='modele conversion HQ'!F16 -> 0 | G33: ='modele conversion HQ'!G16 -> 0 | H33: ='modele conversion HQ'!J16 -> 6.09 | I33: ='modele conversion HQ'!K16 -> 0
B34: ='modele conversion HQ'!B17 -> Novembre | C34: ='modele conversion HQ'!C17 -> 2018-11-01 | D34: ='modele conversion HQ'!D17 -> 2018-12-01 | E34: ='modele conversion HQ'!E17 -> 0 | F34: ='modele conversion HQ'!F17 -> 0 | G34: ='modele conversion HQ'!G17 -> 0 | H34: ='modele conversion HQ'!J17 -> 6.09 | I34: ='modele conversion HQ'!K17 -> 0
B35: ='modele conversion HQ'!B18 -> Décembre | C35: ='modele conversion HQ'!C18 -> 2018-12-01 | D35: ='modele conversion HQ'!D18 -> 2019-01-01 | E35: ='modele conversion HQ'!E18 -> 0 | F35: ='modele conversion HQ'!F18 -> 0 | G35: ='modele conversion HQ'!G18 -> 0 | H35: ='modele conversion HQ'!J18 -> 6.09 | I35: ='modele conversion HQ'!K18 -> 0
B36: ='modele conversion HQ'!B19 -> Annuelle | C36: ='modele conversion HQ'!C19 -> 2018-01-01 | D36: ='modele conversion HQ'!D19 -> 2019-01-01 | E36: =MAX(E24:E35) -> 0 | F36: =SUM(F24:F35) -> 0 | G36: =SUM(G24:G35) -> 0 | H36: =SUM(H24:H35) -> 73.08 | I36: =SUM(I24:I35) -> 0

Sheet hq facture actuelle (hidden)
B3: Facture actuelle
E4: Électricité | F4: Électricité | G4: ='Inscrire facture'!AA5 -> Mazout Léger (no 2)
E5: Pointe | H5: Facture totale
B6: Mois | C6: Date Début | D6: Date Fin | E6: (kW) | F6: (kWh) | G6: (litres) | H6: Électricité et combustible
B7: ='Inscrire facture'!E6 -> Janvier | C7: ='Inscrire facture'!F6 -> 2018-01-01 | D7: ='Inscrire facture'!G6 -> 2018-02-01 | E7: ='Inscrire facture'!H6 -> 0 | F7: ='Inscrire facture'!I6 -> 0 | G7: ='Inscrire facture'!N6 -> 0 | I7: ='Inscrire facture'!S6 -> 0
B8: ='Inscrire facture'!E7 -> Février | C8: ='Inscrire facture'!F7 -> 2018-02-01 | D8: ='Inscrire facture'!G7 -> 2018-03-01 | E8: ='Inscrire facture'!H7 -> 0 | F8: ='Inscrire facture'!I7 -> 0 | G8: ='Inscrire facture'!N7 -> 0 | I8: ='Inscrire facture'!S7 -> 0
B9: ='Inscrire facture'!E8 -> Mars | C9: ='Inscrire facture'!F8 -> 2018-03-01 | D9: ='Inscrire facture'!G8 -> 2018-04-01 | E9: ='Inscrire facture'!H8 -> 0 | F9: ='Inscrire facture'!I8 -> 0 | G9: ='Inscrire facture'!N8 -> 0 | I9: ='Inscrire facture'!S8 -> 0
B10: ='Inscrire facture'!E9 -> Avril | C10: ='Inscrire facture'!F9 -> 2018-04-01 | D10: ='Inscrire facture'!G9 -> 2018-05-01 | E10: ='Inscrire facture'!H9 -> 0 | F10: ='Inscrire facture'!I9 -> 0 | G10: ='Inscrire facture'!N9 -> 0 | I10: ='Inscrire facture'!S9 -> 0
B11: ='Inscrire facture'!E10 -> Mai | C11: ='Inscrire facture'!F10 -> 2018-05-01 | D11: ='Inscrire facture'!G10 -> 2018-06-01 | E11: ='Inscrire facture'!H10 -> 0 | F11: ='Inscrire facture'!I10 -> 0 | G11: ='Inscrire facture'!N10 -> 0 | I11: ='Inscrire facture'!S10 -> 0
B12: ='Inscrire facture'!E11 -> Juin | C12: ='Inscrire facture'!F11 -> 2018-06-01 | D12: ='Inscrire facture'!G11 -> 2018-07-01 | E12: ='Inscrire facture'!H11 -> 0 | F12: ='Inscrire facture'!I11 -> 0 | G12: ='Inscrire facture'!N11 -> 0 | I12: ='Inscrire facture'!S11 -> 0
B13: ='Inscrire facture'!E12 -> Juillet | C13: ='Inscrire facture'!F12 -> 2018-07-01 | D13: ='Inscrire facture'!G12 -> 2018-08-01 | E13: ='Inscrire facture'!H12 -> 0 | F13: ='Inscrire facture'!I12 -> 0 | G13: ='Inscrire facture'!N12 -> 0 | I13: ='Inscrire facture'!S12 -> 0
B14: ='Inscrire facture'!E13 -> Août | C14: ='Inscrire facture'!F13 -> 2018-08-01 | D14: ='Inscrire facture'!G13 -> 2018-09-01 | E14: ='Inscrire facture'!H13 -> 0 | F14: ='Inscrire facture'!I13 -> 0 | G14: ='Inscrire facture'!N13 -> 0 | I14: ='Inscrire facture'!S13 -> 0
B15: ='Inscrire facture'!E14 -> Septembre | C15: ='Inscrire facture'!F14 -> 2018-09-01 | D15: ='Inscrire facture'!G14 -> 2018-10-01 | E15: ='Inscrire facture'!H14 -> 0 | F15: ='Inscrire facture'!I14 -> 0 | G15: ='Inscrire facture'!N14 -> 0 | I15: ='Inscrire facture'!S14 -> 0
B16: ='Inscrire facture'!E15 -> Octobre | C16: ='Inscrire facture'!F15 -> 2018-10-01 | D16: ='Inscrire facture'!G15 -> 2018-11-01 | E16: ='Inscrire facture'!H15 -> 0 | F16: ='Inscrire facture'!I15 -> 0 | G16: ='Inscrire facture'!N15 -> 0 | I16: ='Inscrire facture'!S15 -> 0
B17: ='Inscrire facture'!E16 -> Novembre | C17: ='Inscrire facture'!F16 -> 2018-11-01 | D17: ='Inscrire facture'!G16 -> 2018-12-01 | E17: ='Inscrire facture'!H16 -> 0 | F17: ='Inscrire facture'!I16 -> 0 | G17: ='Inscrire facture'!N16 -> 0 | I17: ='Inscrire facture'!S16 -> 0
B18: ='Inscrire facture'!E17 -> Décembre | C18: ='Inscrire facture'!F17 -> 2018-12-01 | D18: ='Inscrire facture'!G17 -> 2019-01-01 | E18: ='Inscrire facture'!H17 -> 0 | F18: ='Inscrire facture'!I17 -> 0 | G18: ='Inscrire facture'!N17 -> 0 | I18: ='Inscrire facture'!S17 -> 0
B19: ='Inscrire facture'!E18 -> Annuelle | C19: ='Inscrire facture'!F18 -> 2018-01-01 | D19: ='Inscrire facture'!G18 -> 2019-01-01 | E19: ='Inscrire facture'!H18 -> 0 | F19: ='Inscrire facture'!I18 -> 0 | G19: ='Inscrire facture'!N18 -> 0 | I19: ='Inscrire facture'!S18 -> 0

Sheet TEST RAPPORT hq (hidden)
B2: Données d'entrées | E2: Résultats
B3: Investissement | C3: 50000 | E3: Consommation actuelle de combustible (kWh/an) | F3: =C10*C7 -> 0
B4: Exploitation et entretien | C4: 5000 | E4: Consommation actuelle (électricité et chauffage) (kWh/an) | F4: =C11+F3 -> 0
E5: Consommation estimée (combustible) (kWh/an) | F5: =C14*C7 -> 0
B6: Efficacité | C6: 0.75 | E6: Consommation estimée (électricité et combustible) (kWh/an) | F6: =C15+F5 -> 0
B7: kWh/litre | C7: 7.03 | E7: Coût estimé ($/m2) | F7: =C16/C9 -> 0.1236133333
B8: Réduction des GES | C8: 1544 | E8: Économies annuelles de combustible (litres/an) | F8: =C10-C14 -> 0
B9: Superficie (m2) | C9: 1200 | E9: Économies annuelles en argent ($/an) | F9: =C12-C16 -> -148.336
B10: Consommation actuelle de combustible (litres) | C10: =hq_gabarit_actuel_consommation_combustible -> 0 | E10: Économies annuelles d'énergie (%) | F10: =1-(F6/F4) -> 
B11: Consommation actuelle d'électricité (kWh) | C11: =hq_gabarit_actuel_consommation_kwh -> 0 | E11: Réduction des GES (kg CO2 eq/an) | F11: =C8*F8/1000 -> 0
B12: Facture actuelle d'électricité et de chauffage ($/an) | C12: =hq_gabarit_actuel_totale -> 0 | E12: Période de retour sur investissement (an) | F12: =C3/(F9-C4) -> -9.711875837
B14: Consommation anticipée de combustible (litres) | C14: =hq_gabarit_dt_consommation_crete_combustible+hq_gabarit_dt_consommation_seuil_combustible -> 0
B15: Consommation anticipée d'électricité (kWh) | C15: =hq_gabarit_dt_consommation_kwh -> 0
B16: Facture estimée (électricité et chauffage) ($/an) | C16: =hq_gabarit_dt_totale -> 148.336

Sheet Tarif électrique (hidden)
B2: Tarif électrique mensuel
B4: Mois | C4: Tarif électrique ($/kWh)
B5: Janvier | C5: 0
B6: Février | C6: 0
B7: Mars | C7: 0
B8: Avril | C8: 0
B9: Mai | C9: 0
B10: Juin | C10: 0
B11: Juillet | C11: 0
B12: Août | C12: 0
B13: Septembre | C13: 0
B14: Octobre | C14: 0
B15: Novembre | C15: 0
B16: Décembre | C16: 0
B17: Tarif annuel moyen | C17: =IF(AVERAGE(C5:C16)=0,"","") -> 

Sheet Graphique de la consommation

Sheet Tableaux 1.1
B3: Tableau 1.1 - Caractéristiques des systèmes de génération de chaleur
C5: Production | E5: Superficie | H5: Rendement du système | I5: Maintenance du système | J5: Coûts d’investissements | K5: Coûts d’opération
C6: Saisonnière | D6: Annuelle | E6: < 1000 m2 | F6: 1001 à 2500 m2 | G6: 2501 m2 à 1 hectare
B7: Mazout #2 | C7: x | D7: x | E7: x | F7: x | H7: 70 à 85 % | I7: Faible | J7: Moyens | K7: Moyens
B8: Gaz naturel | C8: x | D8: x | E8: x | F8: x | G8: x | H8: 75 à 95 % | I8: Très faible | J8: Moyens | K8: Moyens
B9: Propane | C9: x | D9: x | E9: x | F9: x | G9: x | H9: 80 à 92 % | I9: Très faible | J9: Moyens | K9: Moyens
B10: Électricité | C10: x | D10: x | E10: x | F10: x | H10: 99 % | I10: Très faible | J10: Moyens | K10: Élevés
B11: Biomasse | D11: x | G11: x | H11: 60 à 85 % | I11: Complexe | J11: Élevés | K11: Faibles
B13: Les systèmes de chauffage - Fiche d'information #1
B15: Revenir aux mesures d'efficacité

Sheet Tableau 1.2
B2: Tableau 1.2 - Valeur énergétique et émissions de GES de différentes sources énergétiques
C4: Valeur énergétique | F4: Émissions de GES
C5: Unité | D5: MJ/unité | E5: kWh/unité | F5: Facteur d’équivalence (g CO2 eq/unité)
B6: Mazout no.2 | C6: L | D6: 38,5 | E6: 10,7 | F6: 2734,7
B7: Gaz naturel | C7: m3 | D7: 37,9 | E7: 10,5 | F7: 1889,3
B8: Propane | C8: L | D8: 25,3 | E8: 7,0 | F8: 1544,0
B9: Électricité | C9: kWh | D9: 3,6 | E9: 1,0 | F9: 0,0
B10: Biomasse (granules – 7% humidité) | C10: kg | D10: 19,8 | E10: 5,5 | F10: 1834,97
B11: Biomasse (copeaux- 30% humidité) | C11: kg | D11: 11,9 | E11: 3,3
B13: Le chauffage au gaz
B15: Revenir aux mesures d'efficacité

Sheet Tableau 1.3
B2: Tableau 1.3 - Coûts associés à l'acquisition, l'exploitation et l'entretien d'un système à la biomasse
B4: Poste | C4: Mazout | D4: Copeaux de bois
B5: Coûts d'investissement | C5: 21000 | D5: 80000
B6: Exploitation et entretien annuel | C6: 1000 | D6: 8000
B7: Combustible annuel | C7: 18000 | D7: 1700
B9: Notes:
B10: Pour un système de 150 kW qui chauffe un bâtiment de 800 m2
B12: Revenir aux mesures d'efficacité

Sheet Tableau 1.4
B2: Tableau 1.4 - Rendements saisonniers de différentes technologies de chauffage (gaz naturel, propane, mazout, électricité)
B4: Source énergétique | C4: Technologie | D4: Rendement saisonnier (AFUE) %
B5: Gaz naturel | C5: Générateur d'air chaud vétuste et chaudière datant d'environ 1970 | D5: 60,0
B6: Gaz naturel | C6: Générateur d'air chaud datant d'environ 1985 | D6: 78 à 84
B7: Gaz naturel | C7: Chaudière datant d'environ 1985 | D7: 80 à 88
B8: Gaz naturel | C8: Générateur d'air chaud à condensation | D8: 90 à 97
B9: Gaz naturel | C9: Chaudière à condensation | D9: 89 à 99
B10: Propane | C10: Générateur d'air chaud et chaudière ordinaire | D10: 62
B11: Propane | C11: Générateur d'air chaud à efficacité normale | D11: 79 à 85
B12: Propane | C12: Chaudière à efficacité normale | D12: 82 à 90
B13: Propane | C13: Générateur d'air chaud à condensation | D13: 88 à 95
B14: Propane | C14: Chaudière à condensation | D14: 87 à 97
B15: Mazout | C15: Brûleur à tête de fonte (ancien modèle de générateur d'air chaud) | D15: 60
B16: Mazout | C16: Brûleur de conversion à tête de la flamme | D16: 70 à78
B17: Mazout | C17: Brûleur de conversion à pression statique élevée | D17: 74 à 82
B18: Mazout | C18: Modèle ordinaire neuf | D18: 78 à 86
B19: Mazout | C19: Modèle à efficacité normale | D19: 83 à 89
B20: Mazout | C20: Système intégré de chauffage des pièces et de l'eau à efficacité normale | D20: 83 à 89
B21: Électricité | C21: Plinthes électriques | D21: 100
B22: Électricité | C22: Générateur d'air chaud ou chaudière électrique | D22: 100
B23: Électricité | C23: Thermopompe à air | D23: CP de 1,7
B24: Électricité | C24: Pompe géothermique | D24: CP de 2,6
B26: tiré de : Ministère de Ressources naturelles, 2012
B27: Le chauffage au gaz
B29: Revenir aux mesures d'efficacité

Sheet Tableau 1.5
B2: Tableau 1.5 - Rendements thermiques et saisonniers de systèmes de chauffage à la biomasse
C4: Technologie | D4: Rendement thermique (%) | E4: Rendement saisonnier (AFUE) %
B5: Biomasse (bois) | C5: Moyenne | D5: 70 à 80% | E5: Diminution du rendement
C6: Systèmes performants | D6: 80 à 85% | E6: thermique de 2 à 20%
C7: Avec économiseur de cheminée | D7: 85 à 90%
C8: Avec condensateur | D8: Plus de 90%
B10: tiré de : Ministère des Ressources naturelles, 2012
B11: Le chauffage au gaz
B13: Revenir aux mesures d'efficacité

Sheet Tableau 1.6
B2: Tableau 1.6 Coûts des investissements pour une conversion à la biomasse
B4: Poste budgétaire | C4: Coûts
B5: Entrepôt pour les copeaux | C5: 29600
B6: Système d'alimentation | C6: 35741
B7: Réservoir d'hydroaccumulation de 100 000 litres | C7: 300600
B8: Chaudière de 1 100 kW à la biomasse + bâtiment | C8: 300600
B9: Intégration de différents systèmes | C9: 22000
B10: Services professionnels | C10: 25799
B12: Les Producteurs en serres du Québec
B14: L'évaluation économique d'un projet de chauffage à la biomasse
B16: Revenir aux mesures d'efficacité

Sheet Tableau 1.7
B2: Tableau 1.7 - Exemple de coûts d'entretien de systèmes de chauffage
B4: Mazout ($) | C4: Mazout ($/m2) | D4: Copeaux ($) | E4: Copeaux ($/m2)
B5: ='Tableau 1.3'!C6 -> 1000 | C5: =B5/800 -> 1.25 | D5: ='Tableau 1.3'!D6 -> 8000 | E5: =D5/800 -> 10
B7: Notes:
B8: 1. Pour un système de 150 kW qui chauffe un bâtiment de 800 m2
B10: Revenir aux mesures d'efficacité

Sheet Tableau 1.8
B2: Tableau 1.8 - Historique des coûts moyens annuels ($/unité) des différentes sources d'énergie de 2012 à 2016
B5: Source d'énergie | C5: 2012 | D5: 2013 | E5: 2014 | F5: 2015 | G5: 2016
B6: Électricité (kWh) | C6: 0.0751 | D6: 0.0778 | E6: 0.0826 | F6: 0.086 | G6: 0.0868
B7: Gaz propane (L) | C7: 0.5876 | D7: 0.4813 | E7: 0.53 | F7: 0.4293 | G7: 0.4294
B8: Gaz naturel (m3) | C8: 0.4595 | D8: 0.4684 | E8: 0.5316 | F8: 0.4722 | G8: 0.4453
B9: Mazout léger (L) | C9: 1.0134 | D9: 1.0325 | E9: 1.0832 | F9: 0.9355 | G9: 0.7458
B11: Adapté de Énergie , coûts des sources d'énegie (Agdex 760/821)
B13: Revenir aux mesures d'efficacité

Sheet Tableau 1.9
B3: Tableau 1.9 - Coûts d'achat d'un système de chauffage à l'air chaud pour une serre individuelle
B5: Huile | C5: Huile | D5: Gaz naturel ou propane | E5: Gaz naturel ou propane
B6: $/pi2 | C6: $/m2 | D6: $/pi2 | E6: $/m2
B7: 5.01 | C7: 53.93 | D7: 3.62 | E7: 38.97
B9: Tiré de Serres - Coûts de construction 2017 (Agdex 731/290)
B11: Notes:
B12: -N.B. Ajoutez un facteur de sécurité de 10% pour l'usure des fournaises
B13: -Fournaises comprenant le système de distribustion de l'air chaud
B14: -La puissance de chauffage requise varie selon la région, la culture, le microclimat, l'isolation et le revêtement des serres.
B15: -Pour une production à longueur d'année (température intérieure-température extérieure = 56°C) dans des serres en double polyéthylène
B17: Serre individuelle = 1 290 btu/m2 (120 btu/pi2 : 378 W/h/m2) de serre
B18: Serre jumelée = 1 075 btu/m2 (100 btu/pi2 : 315 W/h/m2) de serre
B21: Revenir aux mesures d'efficacité

Sheet Tableau 1.10
B2: Tableau 1.10 - Coûts d'achat d'un système de chauffage à l'air chaud pour des serres jumelées
B4: Huile | C4: Huile | D4: Gaz naturel ou propane | E4: Gaz naturel ou propane
B5: $/pi2 | C5: $/m2 | D5: $/pi2 | E5: $/m2
B6: 4.5 | C6: 48.44 | D6: 2.92 | E6: 31.43
B8: Tiré de Serres - Coûts de construction 2017 (Agdex 731/290)
B10: Revenir aux mesures d'efficacité

Sheet Tableau 1.11
B2: Tableau 1.11 - Coût d'acquisistion d'un système de chauffage à la biomasse pour des serres individuelles et jumelées
B4: Individuelles | C4: Individuelles | D4: Jumelées | E4: Jumelées
B5: $/pi2 | C5: $/m2 | D5: $/pi2 | E5: $/m2
B6: 13.2 | C6: 142.08 | D6: 13.2 | E6: 142.08
B8: Tiré de Serre - Coûts de construction 2017 (Agdex 731/290)
B9: Notes:
B10: -Système de chauffage de type biomasse avec réseau de distribution à l'eau chaude pour 40 000 pi2 de serres jumelées
B12: Revenir aux mesures d'efficacité

Sheet Tableau 1.12
B2: Tableau 1.12 - Exemple de coûts d'acquisition d'un système de chauffage à la biomasse aux granules et d'un réservoir d'hydroaccumulation
B4: Poste | C4: Montant ($) | D4: Montant ($/m2)
B5: Chaudière Pyrotec 950 | C5: 376792 | D5: =C5/6000 -> 62.79866667
B6: Installation de la chaudière | C6: 82000 | D6: 13.66666667
B7: Réservoir pour hydroaccumulation (usagé) | C7: 40000 | D7: 6.666666667
B8: Installation du réservoir d'hydroaccumulation | C8: 59098 | D8: 9.849666667
B9: Silo pour les granules | C9: 10412 | D9: 1.735333333
B10: Préparation du terrain, construction d'un abris | C10: 50000 | D10: 8.333333333
B11: Total | C11: =SUM(C5:C10) -> 618302 | D11: 103.0503333
B13: Notes:
B14: 1.Réservoir d'hydroaccumulation d'une capacité de 9000 litres
B15: 2.Chaudière d'une capacité de 1000 kW (3.5 MMBTU/h)
B16: 3. Superficie de serre chauffée: 6000 m2
B18: Revenir aux mesures d'efficacité

Sheet Tableau 1.13
B2: Tableau 1.13 - Coûts pour les copeaux, les granules et la biomasse agricole
C4: Copeaux de bois 30% humidité | D4: Copeaux de bois 30% humidité | E4: Granules de bois à 6% humidité | F4: Granules de bois à 6% humidité | G4: Biomasse agricole 10% humidité | H4: Biomasse agricole 10% humidité
B5: Prix unité | C5: 130$/tms | D5: 0.13$/kg | E5: 235$/tms | F5: 0.23$/kg | G5: 100$/tms | H5: 0.1$/kg
B6: Prix GJ | C6: 8.11$/GJ | D6: 0.00811$/MJ | E6: 14.32$/GJ | F6: 0.01432$/MJ | G6: 7.41$/GJ | H6: 0.00741$/MJ
B8: Conférence de Louis Beauchemin agr. (Coop Fédérée)
B10: Notes:
B11: tmh=tonne sur base de matière humide
B12: tms=tonne sur base de matière sèche
B13: Les valeurs exprimées en Gigajoules tiennent compte de l'efficacité du système de génération de chaleur
B15: Revenir aux mesures d'efficacité

Sheet Tableau 1.14
B2: Tableau 1.14 - Comparaison du potentiel de réduction des coûts de chauffage entre des granules à 6% d'humidité et le propane, le mazout léger et l'électrcité
C4: Propane | D4: Mazout léger | E4: Électricité | F4: Granules | G4: Granules
B5: Prix unité | C5: 0.40 $/litre | D5: 0.85 $/litre | E5: 0.079 $/kwh | F5: 235 $/tms | G5: 0.23$/kg
B6: Prix GJ | C6: 18.59 $/GJ | D6: 26.92 $/GJ | E6: 21.62 $/GJ | F6: 14.32 $/GJ | G6: 0.01432$/MJ
B7: Potentiel de réduction | C7: 0.23 | D7: 0.468 | E7: 0.338
B9: Conférence de Louis Beauchemin agr., coordonnateur de la filière biomasse pour la Coop Fédérée
B11: Notes:
B12: Les valeurs exprimées en Gigajoules tiennent compte de l'efficacité du système de génération de chaleur
B13: tms=tonne sur base de matière humide
B15: Revenir aux mesures d'efficacité

Sheet Tableau 1.15
B2: Tableau 1.15 - Comparaison du potentiel de réduction des coûts de chauffage entre des copeaux de bois à 30% d'humidité et le propane, le mazout léger le gaz naturel et l'électrcité
C4: Propane | D4: Mazout léger | E4: Gaz naturel | F4: Électricité | G4: Copeaux | H4: Copeaux
B5: Prix unité | C5: 0.40 $/litre | D5: 0.85 $/litre | E5: 0.40 $/m3 | F5: 0.079 $/kwh | G5: 0.13$/kg | H5: 130 $/tms
B6: Prix GJ | C6: 18.59 $/GJ | D6: 26.92 $/GJ | E6: 12.41 $/GJ | F6: 21.62 $/GJ | G6: 0.00811$/MJ | H6: 8.11 $/GJ
B7: Potentiel de réduction | C7: 0.564 | D7: 0.699 | E7: 0.346 | F7: 0.625
B9: Conférence de Louis Beauchemin agr., coordonnateur de la filière biomasse pour la Coop Fédérée
B11: Notes:
B12: Les valeurs exprimées en Gigajoules tiennent compte de l'efficacité du système de génération de chaleur
B13: tms=tonne sur base de matière sèche
B15: Revenir aux mesures d'efficacité

Sheet Tableau 2.1
B2: Tableau 2.1 - Données énergétiques concernant l'utilisation d'écrans thermiques
C4: Source 1 | D4: Source 2 | E4: Source 3
B5: Taille de la serre
B6: Période d'utilisation | C6: Annuelle | D6: Mi-février à mi-novembre | E6: Mi-février à mi-juin
B7: Coûts d'investissement initiaux ($/m2) | C7: 22.31 | E7: 22.31
B8: Coûts d'entretien ($/m2/an) | C8: 0.11 | D8: 0.055 | E8: 0.055
B9: Économies brutes (%) | C9: 28
B10: Économie (m3 de gaz naturel / m2) | C10: 22 | D10: 11.6 | E10: 6.4
B11: Période de retour sur investissement (ans) | C11: 2.3 | D11: 4.4 | E11: 7.7
B13: Cadotte G. (2012)
B14: Cadotte G. (2012) Économies d'énergie liées à l'utilisation d'écrans thermiques amovibles dans les serres et effets du vent sur le besoin de chauffe
B16: Revenir aux mesures d'efficacité

Sheet Tableau 2.2
B2: Tableau 2.2 - Scénario de référence
C4: Scénario de référence
B5: Type d'écran | C5: Comparable au XLS 16 (Ludvig Swensson)
B6: Superficie du toit par rapport à la superficie extérieure (Ssr) | C6: 0.55
B7: Économies théoriques - utilisation totale (ETsr) | C7: 0.661
B8: Économies réelles obtenues (ERsr) | C8: 0.228
B16: Revenir aux mesures d'efficacité

Sheet Tableau 2.4
B3: Tableau 2.4 - Coûts des écrans thermiques et de certaines composantes
B5: Composantes | C5: Prix approximatif ($CAN/pi2) | D5: Prix approximatif ($CAN/m2)
B6: Base : flat, sliding, cable-driven system, installed | C6: 1.42$ à 1.71$ | D6: 15.28$ à 18.41$
B7: Slope-flat-slope shape* | C7: +12% à 15% | D7: +12% à 15%
B8: Suspended (hanging)* | C8: +10% à 12% | D8: +10% à 12%
B9: Push-pull (rack and pinion) drive* | C9: +10% | D9: +10%
B10: Blackout system* | C10: 0.23 | D10: 2.48
B11: Replacement of cloth and wires | C11: ±2/3 du coût original | D11: ±2/3 du coût original
B12: Flame retardant screens (Ludvig Svensson)* | C12: 0.23 | D12: 2.48
B14: Les écrans thermiques - Choix, impact sur l'énergie consommée, bon fonctionnement
B16: Revenir aux mesures d'efficacité

Sheet Tableau 2.3
B2: Tableau 2.3 - Facteurs d'utilisation des écrans thermiques
B4: Période | E4: Facteur d'utilisation
B5: Mi-février à mi-novembre | E5: 0.527
B6: Mi-février à mi-juin | E6: 0.291
B8: Revenir aux mesures d'efficacité

Sheet Tableau 2.5
B2: Tableau 2.5 - Prix d'écrans thermiques selon certains fournisseurs
B4: Fournisseurs | C4: Prix ($/pi2)
B5: Horticulture Distribution inc | C5: 2.35 à 5.10 $
B6: Les serres Guy Tessier | C6: 3.50 à 5.50 $
B8: Revenir aux mesures d'efficacité

Sheet Tableau 2.6
B1: Tableau 2.6 - Exemples de période de retour sur investissement | M1: Coûts d'installation d'un écran thermique selon le type de serre | R1: Économies potentielles selon la durée de production
B3: Type de serre | C3: Taille (m2) | D3: Investissement ($/m2) | E3: Investissement ($) | F3: Économies annuelles ($/m2) | G3: Économies annuelles ($) | H3: Économies saisonnières ($/m2) | I3: Économies saisonnières ($) | J3: PRI annuelle | K3: PRI saisonnière | M3: Type de serre | O3: Coût ($/m2) | R3: Production | T3: Coût ($/m2)
B4: Individuelle | C4: 2000 | D4: =$O$5 -> 31 | E4: =C4*D4 -> 62000 | F4: =$T$4 -> 11.54 | G4: =F4*C4 -> 23080 | H4: =$T$5 -> 3.85 | I4: =H4*C4 -> 7700 | J4: =E4/G4 -> 2.686308492 | K4: =E4/I4 -> 8.051948052 | M4: Individuelle | O4: 22.5 | R4: Annuelle | T4: 11.54
B5: Individuelle | C5: 5000 | D5: =$O$5 -> 31 | E5: 155000 | F5: 11.54 | G5: 57700 | H5: 3.85 | I5: 19250 | J5: 2.686308492 | K5: 8.051948052 | M5: Jumelée | O5: 31 | R5: Saisonnière | T5: 3.85
B6: Individuelle | C6: 10000 | D6: =$O$5 -> 31 | E6: 310000 | F6: 11.54 | G6: 115400 | H6: 3.85 | I6: 38500 | J6: 2.686308492 | K6: 8.051948052
B7: Jumelée | C7: 2000 | D7: =$O$4 -> 22.5 | E7: 45000 | F7: 11.54 | G7: 23080 | H7: 3.85 | I7: 7700 | J7: 1.949740035 | K7: 5.844155844 | M7: L'efficacité énergétique dans le secteur serricole | R7: Les économies d'énergie, partie 1 - sachez isoler (janvier 2004)
B8: Jumelée | C8: 5000 | D8: =$O$4 -> 22.5 | E8: 112500 | F8: 11.54 | G8: 57700 | H8: 3.85 | I8: 19250 | J8: 1.949740035 | K8: 5.844155844
B9: Jumelée | C9: 10000 | D9: =$O$4 -> 22.5 | E9: 225000 | F9: 11.54 | G9: 115400 | H9: 3.85 | I9: 38500 | J9: 1.949740035 | K9: 5.844155844
B11: Revenir aux mesures d'efficacité

Sheet Tableau 3.1
B2: Tableau 3.1 - Principales caractéristiques des matériaux de recouvrement de serre
B4: RECOUVREMENT DE SERRE | C4: Verre simple | D4: Verre double | E4: Polyéthylèene simple | F4: Polyéthylène double | G4: Polytéthylène double avec IR
B5: Transmission des radiations dans le PAR (%) | C5: 88-93 | D5: 75-80 | E5: Maximum de 87 | F5: Environ 75 | G5: Environ 75
B6: Coefficient de déperditions thermiques (BTU/ft.oF.hr) | C6: 1.1 | D6: 0.7 | E6: 1.2 | F6: 0.7 | G6: 0.5
B7: % de transmission thermique | C7: 3 | D7: <3 | E7: 50 | F7: 50 | G7: <20
B8: Indice d’inflammabilité | C8: Nul | D8: Nul | E8: Moyen-élevé | F8: Moyen-élevé | G8: Moyen-élevé
B9: Résistances aux UV, à la chaleur et températures extrêmes | C9: Élevé | D9: Élevé | E9: Bas | F9: Bas | G9: Bas
B10: Coûts d’investissements | C10: Élevés | D10: Élevés | E10: Faibles à moyens | F10: Faibles à moyens | G10: Faibles à moyens
B11: Résistance aux charges | C11: Élevé | D11: Élevé | E11: Faible | F11: Faible | G11: Faible
B12: Durée de vie (ans) | C12: 25 | D12: 25 | E12: 2 à 4 | F12: 2 à 4 | G12: 2 à 4
B14: Bartok, J. et Aldrich, A. (1994) Greenhouse Engineering. Ithaca, NY : Northeast Regional Agricultural Engineering Service.
B15: Reducing energy consumption
B17: Revenir aux mesures d'efficacité

Sheet Tableau 3.2
B2: Tableau 3.2 - Consommation d'énergie de différents types de recouvrement de serre
B4: Type de recouvrement | E4: Consommation d'énergie (kWh/m2/an)
B5: Polyéthylène simple paroi | E5: 275-400
B6: Polyéthylène double paroi | E6: 150-250
B7: Verre | E7: 225-350
B9: Centre technique interprofessionnel des fruits et des légumes (CTIFL)
B11: Revenir aux mesures d'efficacité

Sheet Tableau 3.3
B2: Tableau 3.3 - Coûts des recouvrements (source: Les SerresHarnois)
B4: Type de serre | C4: Largeur (pieds) | D4: Longueur (pieds) | E4: Investissement ($) | F4: $/pi linéaire | G4: $/pi2
B5: Individuelles | C5: 28 | D5: 105 | E5: 370 | F5: 0.12
B6: Individuelles | C6: 35 | D6: 100 | E6: 445 | F6: 0.13
B7: Jumelées | C7: 32 | D7: 100 | E7: 282 | G7: 0.09
B8: Jumelées | C8: 25 | D8: 100 | E8: 220 | G8: 0.09
B10: Les Serres Harnois
B12: Notes:
B13: Le prix du polythène double soufflé est 2 fois le prix du simple
B15: Revenir aux mesures d'efficacité

Sheet Tableau 3.4
B2: Tableau 3.4 - Coûts des recouvrements (source: Groupe Horticole Ledoux)
B4: Type de recouvrement | C4: Largeur (pieds) | D4: Longueur (pieds) | E4: Autres caractéristiques | F4: Prix ($) | G4: Si double épaisseur, prix ($) | H4: $/pi2 | I4: $/m2
B5: Poly K-50 clear 6 mil | C5: 20 | D5: 105 | E5: Installé à l’extérieur, lumière diffuse, additif antipoussière | F5: 282.47 | H5: =F5/(C5*D5) -> 0.1345095238 | I5: =H5*10.7639 -> 1.447847063
B6: Poly K-50 IR/AC 6 mil | C6: 20 | D6: 105 | E6: À l’intérieur, formule anticondensation, additif IR, lumière diffuse | F6: 282.47 | H6: 0.1345095238 | I6: 1.447847063
B7: Poly Hyticlear 7.2 mil | C7: 24 | D7: 105 | E7: Installé à l’extérieur, lumière diffuse, additif antipoussière, climat nordique | F7: 346.4 | G7: 656.87 | H7: 0.1374603175 | I7: 1.479609111
B8: Poly Hytilux 7.2 mil | C8: 24 | D8: 105 | E8: Installé à l’intérieur, formule anticondensation, additif IR, lumière diffuse, climat nordique | F8: 403.92 | H8: 0.1602857143 | I8: 1.7252994
B9: Polyaclear 7.2 mil | C9: 32 | D9: 105 | E9: Installé à l’extérieur, lumière diffuse, antipoussière, super-résistant | F9: 416.25 | H9: 0.1238839286 | I9: 1.333474219
B10: Poly K-50 IR/AC 6 mil | C10: 36 | D10: 105 | E10: À l’intérieur, formule anticondensation, additif IR, lumière diffuse | F10: 532.81 | H10: 0.1409550265 | I10: 1.517225809
B12: Boutique en ligne (Groupe Horticole Ledoux)
B14: Revenir aux mesures d'efficacité

Sheet Tableau 4.1
B2: Tableau 4.1 - Principales caractériques de systèmes de contrôle du climat
B4: SYSTÈMES DE CONTRÔLE DU CLIMAT | C4: Simple | D4: Intermédiaire | E4: Intégrée
B5: Exemples | C5: Alarmes, appareils de mesure, minuterie, thermostat | D5: Envirotrol TC-7, Harnois iGrow1400, Link4 | E5: Argus, Damatex, Hoogendoorn, Priva
B6: Échelle de prix | C6: <500 $ | D6: 500 $ à 4000 $ | E6: >10 000 $
B7: Historique de données | C7: Non | D7: Limitée | E7: Oui
B8: Capacité de programmation élaborée | C8: Non | D8: Limitée | E8: Oui
B9: Nombre d’entrées pour des appareils de prise de données et des capteurs | C9: 1 | D9: 5 à 12 | E9: Élevé
B10: Nombre de sorties pour contrôler les équipements | C10: 1 à 2 | D10: 5 à 12 | E10: Élevé
B11: Nombre de zones pouvant être gérées | C11: 1 | D11: 1 à 6 | E11: 2 ou plus
B12: Suivi et contrôle à distance | C12: Non | D12: Suivi seulement | E12: Oui
B13: Responsable de l’installation | C13: Producteur | D13: Fournisseur/Producteur | E13: Fournisseur
B16: Fiche d'information #3 - Système de contrôle du climat
B18: Revenir aux mesures d'efficacité

Sheet Tableau 4.2
B2: Tableau 4.2 - Résultats obtenus suite à l'implantation des systèmes de gestion du climat
B4: Entreprise | C4: Superficie (m2) | D4: Caractéristique du système | E4: Coût de réalisation ($) | F4: Économies potentielles ($/an) | G4: PRI
B5: Ferme 1 | C5: 770 | D5: Contrôle manuel, par thermostat électronique | E5: 16091 | F5: 3657 | G5: 4.4 ans
B6: Ferme 2 | C6: 1470 | D6: Système de contrôle intermédiaire pour harmoniser les contrôles | E6: 4500 | F6: 1052 | G6: 4.3 ans
B7: Ferme 3 | C7: 1435 | D7: Système ordiné pour contrôler et hamorniser diff. systèmes | E7: 9500 | F7: 1158 | G7: 8.2 ans
B8: Ferme 4 | C8: 3050 | D8: Système de contrôle ordiné | E8: 30000 | F8: 5035 | G8: 6.0 ans
B9: Ferme 5 | C9: 1060 | D9: Système de contrôle évolué/intermédiaire | E9: 1000 | F9: 477 | G9: 2.1 ans
B11: Revenir aux mesures d'efficacité

Sheet Tableau 4.3
B2: Tableau 4.3 - Coût d'acquisistion d'un système de contrôle informatisé
B4: Individuelle | C4: =B4 -> Individuelle | D4: Jumelée | E4: =D4 -> Jumelée
B5: $/pi2 | C5: $/m2 | D5: $/pi2 | E5: $/m2
B6: 1.1 | C6: 11.84 | D6: 1.1 | E6: 11.84
B8: Tiré de Serre - Coûts de construction 2017 (Agdex 731/290)
B9: Notes:
B10: -Pour un système de contrôle informatisé de l'environnement pour 40 000 pi2 de serre
B12: Revenir aux mesures d'efficacité

Sheet Tableau 5.1
B2: Tableau 5.1 - Configuration de l’isolant en fonction de l’isolation de la serre
B4: Orientation de la serre | D4: Configuration
B5: Nord-Sud | D5: Isolation du mur du côté nord : jusqu’à la gouttière ou complète
D6: Isolation des côtés est et ouest : jusqu’à 4 à 6 pieds
B7: Est-Ouest | D7: Isolation du mur du côté nord : jusqu’à 6 à 10 pieds
D8: Isolation des côtés est et ouest : jusqu’à 4 à 6 pieds
B10: RAP Cultures en serres (Janvier 2004) - Partie 1: Sachez isoler
B12: Revenir aux mesures d'efficacité

Sheet Tableau 5.2
B2: Tableau 5.2 - Isolation du périmètre de la serre
B4: Zone à isoler | D4: Méthode
B5: Périmètre extérieur | D5: Creuser 2 pieds de profondeur dans le sol et mettre un isolant avec une protection contre les chocs mécaniques à six pouces dans le sol du côté intérieur de la serre
B7: RAP Cultures en serres (Janvier 2004) - Partie 1: Sachez isoler
B9: Revenir aux mesures d'efficacité

Sheet Tableau 5.3
B2: Tableau 5.3 - Économies d'énergie selon la méthode d'isolation des parois de serre
B4: Orientation de la serre | C4: Économies d’énergie reliées à la chauffe (%)
B5: Isolation des fondations | C5: 3 à 6
B6: Isolation totale des murs | C6: 5 à 10
B7: Isolation partielle des murs | C7: 2 à 6
B9: Source: Conseil régional du centre
B10: Conseil régional du centre: le défi de l'énergie dans les serres : guide pour les producteurs
B12: Revenir aux mesures d'efficacité

Sheet Tableau 5.4
B2: Tableau 5.4 - Éléments de calculs des pertes par infiltrations
B4: Éléments | C4: Définitions | E4: Unité | F4: Valeur utilisée
B5: Qx | C5: Énergie perdue par infiltration | E5: Joules | F5: Résultat du calcul
B6: 311 040 | C6: Constante d’unités | E6: - | F6: 311 040
B7: Cp | C7: Chaleur spécifique de l’air | E7: W-hr/m3-oC | F7: 0,33
B8: l | C8: Débit d’infiltration unitaire | E8: litre/m-s | F8: Voir Tableau ci-dessous
B9: L | C9: Longueur totale de la fissure | E9: m | F9: Évaluation dans la serre
B10: Dj | C10: Degrés-jours de chauffage | E10: oC-j | F10: Voir hyperlien en bas de page
B11: 2 | C11: Coefficient de correction | E11: - | F11: 2
B13: La formule suivante permet d’ailleurs calculer les pertes de chaleur par infiltrations d’air dans les cultures abritées que sont les serres :
B18: Revenir aux mesures d'efficacité

Sheet Tableau 5.5
B2: Tableau 5.5 - Débit d’infiltration selon le type d’infiltrations
B4: Type d’infiltrations | D4: Débit d’infiltration (L/m●s)
D5: 2,70 m/s | E5: 3,42 m/s
B6: Porte bien ajustée | D6: 0,1 | E6: 0,1
B7: Porte à ajustement moyen | D7: 0,2 | E7: 0,4
B8: Porte mal ajustée | D8: 0,7 | E8: 1,1
B9: Fissure de 0,8 mm | D9: 1,7 | E9: 3,1
B10: Fissure de 1,6 mm | D10: 2,8 | E10: 3,9
B11: Fissure de 3,2 mm | D11: 6,1 | E11: 10,0
B12: Fissure de 6,4 mm | D12: 12,8 | E12: 18,6
B13: Fissure de 9,5 mm | D13: 19,4 | E13: 28,0
B14: Fissure de 12,7 mm | D14: 26 | E14: 38,0
B16: Hyperlien vers le tableau des normales selon les régions du Québec (calcul des degrés jour de chauffage)
B18: Revenir aux mesures d'efficacité

Sheet Tableau 5.6
B2: Tableau 5.6 - Coûts de différents types d'isolant
B4: Type d’isolant | C4: Prix unitaire ($/pi2)
B5: Polystyrène extrudé (type III ou IV) - 1" | C5: 5.5
B6: Polyéthylène double (IR + Standard) - F1 | C6: 0.114
B7: Périmètre - isolé (2' dans le sol et 2" polystyrène extrudé - type III ou IV) - F1 | C7: 11
B8: Polycarbonate 8 mm - Twinwall - F1 | C8: 2.5
B10: Revenir aux mesures d'efficacité

Sheet Tableau 5.7
B2: Tableau 5.7 - Dépenses liées à l'achat de matériel pour l'isolation des parois verticales extérieures
B4: $/pi2 | C4: $/m2
B5: 6.00 à 9.00 | C5: 64.59 à 96.88
B7: Source: Horticulture Distribution
B8: 1Prix fournies à titre indicatif par monsieur Marc Croteau de Horticulture Distribution
B9: 2Les coûts varient selon l'ajout de structure
B10: 3Les frais d'excavation et la main d'œuvre pour l'installation sont exclues
B12: Revenir aux mesures d'efficacité

Sheet Tableau 5.8
B2: Tableau 5.8 - Coûts en matériel liés à l'isolation du pourtour
B4: Individuelle | C4: Individuelle | D4: Jumelée | E4: Jumelée
B5: $/pi2 | C5: $/m2 | D5: $/pi2 | E5: $/m2
B6: 3.56 | C6: 38.32 | D6: 1.55 | E6: 16.68
B8: Tiré de Serre - Coûts de construction 2017 (Agdex 731/290)
B10: Notes:
B11: -Isolation du pourtour avec des panneaux de styrofoam recouverts de fibre de verre (facteur R10)
B13: Revenir aux mesures d'efficacité

Sheet Tableau 6.1
B2: Tableau 6.1 - Caractéristiques de lampes d'éclairage de photosynthèse
B4: Lampes | C4: Intensité énergétique | D4: Durée de vie | E4: Direction du faisceau | F4: Chaleur produite
B5: HPS | C5: Élevée | D5: 20000 h | E5: Très large | F5: Beaucoup de chaleur produite (nouvelles générations plus efficaces)
B6: DEL | C6: Moyenne à faible | D6: 50 000 h | E6: Directionnel | F6: Faible
B8: 1. Éclairage en serre - quoi de neuf?
B10: Revenir aux mesures d'efficacité

Sheet Tableau 6.2
B2: Tableau 6.2 - Influence de l'éclairage de photosynthèse sur la durée (en jours) du cycle de productionde la laitue hydroponique
B4: Période | C4: Sans éclairage | D4: Avec éclairage | E4: Différence
B5: Automne | C5: 90 | D5: 70 | E5: 20
B6: Hiver | C6: 120 | D6: 80 | E6: 40
B7: Printemps | C7: 72 | D7: 60 | E7: 12
B8: Été | C8: 42 | D8: 4 | E8: 9
B10: Martine Dorais, Agriculture et Agroalimentaire Canada
B12: Martine Dorais et al. (Agriculture et Agroalimentaire Canada). Effets d'un éclairage photosynthétique, une électro-technologie québécoise sur la culture de la tomate et laitue de serre
B14: Revenir aux mesures d'efficacité

Sheet Tableau 6.3
B2: Tableau 6.3 - Calendrier de production pour la laitue cultivée en serre avec et sans éclairage
B4: Phase de production | C4: Sans éclairage | D4: Avec éclairage
B5: Semis | C5: Octobre | D5: Juin
B6: Plantation | C6: Décembre | D6: Juillet
B7: Récolte | C7: Mars à fin novembre | D7: Septembre à juin
B9: Revenir aux mesures d'efficacité

Sheet Tableau 6.4
B2: Tableau 6.4 - Coûts d'investissements des systèmes d'éclairage
B4: Type de lampe | C4: Efficacité photonique (µmol/sec) | D4: Coût de la lampe ($ can) | E4: Coût électrique ($/µmol/m2/an) | F4: Coût électrique ($/µmol/m2/an)
B5: 400Wmagn. Sunlight HPS | C5: 416 | D5: 250 | E5: 0.44 | F5: 0.5
B6: 1000Welec. Gavita HPS | C6: 1751 | D6: 625 | E6: 0.24 | F6: 0.29
B7: R/B DEL LSG | C7: 653 | D7: 1500 | E7: 0.24 | F7: 0.67
B8: R/W/B DEL Lumigrow 325 | C8: 390 | D8: 1250 | E8: 0.32 | F8: 0.91
B9: R/B DEL Lumigrow 330 | C9: 284 | D9: 1500 | E9: 0.46 | F9: 1.45
B10: 400W Plasma IGrow | C10: 374 | D10: 1500 | E10: 0.46 | F10: 1.45
B12: Données des États-Unis
B14: Revenir aux mesures d'efficacité

Sheet Tableau 6.5
B2: Tableau 6.5 - Coûts d'investissement de systèmes d'éclairage de photosynthèse
B4: Type de lampes | C4: Coûts ($/pi2) | D4: À l'unité installé ($)
B5: HPS (600W) | C5: 3 | D5: 350-450
B6: LED | C6: 17 | D6: 2000-2500
B8: Vileneuve J. Les Technologies d'éclairage atificiel et d'injection de CO2 dans les serres
B10: Revenir aux mesures d'efficacité

Sheet Tableau 6.6
B2: Tableau 6.6 - Coûts d'investissement de systèmes d'éclairage de photosynthèse
B4: Lampe de 400 watts | C4: Lampe de 600 watts
B5: 356 | C5: 505
B7: Tiré de Serre - Coûts de construction 2017 (Agdex 731/290)
B9: Notes:
B10: -Lampe au sodium (excluant installation, entrée et filerie)
B12: Revenir aux mesures d'efficacité

Sheet Tableau 6.7
B2: Tableau 6.7 - Coûts d'investissements de système d'éclairage de photosynthèse
B4: Type de lampe | C4: Puissance (watts) | D4: Voltage (volt) | E4: Autres caractéristiques | F4: Prix ($)
B5: Lampe PLX – HPS* | C5: 400 | D5: 240 | E5: Réflecteur delta | F5: 500.36
B6: Lampe PLX – HPS* | C6: 600 | D6: 240 | E6: Réflecteur delta | F6: 622.36
B7: Lampe PLX – Métal Halide* | C7: 400 | D7: 240 | E7: Réflecteur delta | F7: 384
B8: Lampe PLX – Métal Halide* | C8: 1000 | D8: 240 | E8: Réflecteur maxima | F8: 434
B9: Lampe HSE NXT2 | C9: 1000 | D9: 347 | E9: Réflecteur alpha, version standard, avec connecteur Wieland | F9: 549
B10: Lampe HSE SL 600W HPS* | C10: 600 | D10: 240 | E10: Réflecteur delta | F10: 380
B11: Lampe HSE STD 600W HPS* | C11: 600 | D11: 240 | E11: Réflecteur delta | F11: 520.67
B12: Lampe HSE Daylight | C12: 315 | D12: 208-277 | E12: Agro Lamp, avec connecteur Wieland | F12: 541
B14: Boutique en ligne Groupe Horticole Ledoux
B16: Notes:
B17: *Tous les prix affichés sont avec un cordon d’alimentation de « 6’,240V, 15A, fiche standard » ainsi qu’avec un support de montage « standard track-truss bracket ».
B19: Revenir aux mesures d'efficacité

Sheet Tableau 6.8
B2: Tableau 6.8 - Coûts d'utilisation (tomates et concombres)
C4: kWh/pi2 | D4: $/an | E4: $/pi2 | F4: $/m2
B5: HPS | C5: 17.63942 | D5: 2645.91 | E5: =C5*E11 -> 1.3229565 | F5: =E5/0.0929 -> 14.24065124
B6: DEL | C6: 4.62 | D6: 692.35 | E6: =C6*E11 -> 0.3465 | F6: =E6/0.0929 -> 3.729817008
B8: Berger C., Calcul d'économie d'énergie pour un éclairage DEL versus HPS pour une surface de 2000 pi2
B10: Notes:
B11: * Coût de l'électricité ($/kWh) | E11: =0.075 -> 0.075
B13: Revenir aux mesures d'efficacité

Sheet Tableau 6.9
B2: Tableau 6.9 Coûts d'utilisation (laitues)
C4: kWh/pi2 | D4: $/an | E4: $/pi2 | F4: $/m2
B5: HPS | C5: 8.81971 | D5: 1322.96 | E5: =C5*'Tableau 6.9'!F9 -> 0.66147825 | F5: =E5/0.0929 -> 7.120325619
B6: DEL | C6: 2.31 | D6: 346.17 | E6: =C6*'Tableau 6.9'!F9 -> 0.17325 | F6: =E6/0.0929 -> 1.864908504
B8: Notes:
B9: * Coût de l'électricité ($/kWh) | F9: 0.075
B11: Revenir aux mesures d'efficacité

Sheet Tableau 6.10
B2: Tableau 6.10 - Gain potentiel d'amélioration de l'efficacité d'éclairage
B4: Scénario | C4: Gain potentiel (%)
B5: Changement de lampes HPS (nouvelles générations) | C5: 8 à 10
B6: Migration vers des DEL | C6: 20
B8: Source: Tableau créé à partir de la fiche numéro 6
B10: 1. Les technologies d'éclairage artificiel et de CO2 dans les serres
B11: 2. Étude sur les performances agronomique, énergétique et économique que peuvent procurer les lampes à diodes électroluminescentes (DEL) de technologie récente aux principales cultures maraîchères en serre (tomates et laitue) en conditions réelles de prod
B13: Revenir aux mesures d'efficacité

Sheet Tableau 7.1
B2: Tableau 7.1 - Coûts d'achat de ventilateurs à circulation d'air horizontal (HAF)
B4: Type de ventilateur | C4: Voltage (volt) | D4: Ampère | E4: Autres caractéristiques | F4: Prix ($)
B5: Ex-Breeze Basket Fan - 20" 1/10 HP | C5: 115 | D5: 1 | E5: Avec support | F5: 267.78
B7: Boutique en ligne (Groupe Horticole Ledoux)
B9: Revenir aux mesures d'efficacité

Sheet Tableau 7.2
B2: Tableau 7.2 - Coûts d'achat de ventilateurs à circulation d'air horizontal selon la superficie (HAF)
B4: $/pi2 | C4: $/m2
B5: 0.30 à 0.50 | C5: 3.23 à 5.38
B7: Source: Horticulture Distribution
B8: Prix fournies à titre indicatif par monsieur Marc Croteau de Horticulture Distribution
B10: Revenir aux mesures d'efficacité

Sheet Tableau 8.1
B2: Tableau 8.1 - Économies potentielles en $/m2/an pouvant être apportées par un réservoir d'hydro-accumulation | G2: Paramètres de base pour le scénario du tableau ci-haut
B4: Économies en combustible | C4: Apport (%) | D4: $/m2/an | H4: $/m2
B5: Biomasse par régularisation du régime chaudière | C5: 0.1 | D5: =H5*C5 -> 0.735 | G5: Côut annuel en combustible | H5: 7.35
B6: Biomasse par stratification du réservoir | C6: 0.05 | D6: =H5*C6 -> 0.3675 | G6: Amortissement annuel de la chaudière | H6: 1.7
B7: Sous-total combustible | C7: =C5+C6 -> 0.15 | D7: =D5+D6 -> 1.1025
B8: Économies sur l'amortissement du coût de la chaudière
B9: Amélioration de la durée de vie de la chaudière 25 ans vs 13 ans | C9: =(25-13)/25 -> 0.48 | D9: =1+C9 -> 1.48
B10: Réduction de 20% de la puissance = Réduction du coût de 10% sur la chaudière | C10: 0.1 | D10: =H6*C10 -> 0.17
B11: Sous-total amortissement | C11: =C9+C10 -> 0.58 | D11: =D9+D10 -> 1.65
B12: Total | D12: =D7+D11 -> 2.7525
B14: Coût du réservoir $10 000 pour 19 000 litres et 1951 m2 ($/m2) | D14: 5.13 $/m2
B15: Période de récupération de l'investissement (an) | D15: 1.9 an
B17: Source: Gilles Cadotte, agr. Marco Girouard, ing. et Stéphanie Mayer, ing. Jr.
B18: Évaluation de la valeur économiquede l'utilisation d'un réservoir d'hydroaccumulation de chaleur pour un système de chauffage à la biomasse sans
B19: production de CO2
B21: ÉVALUATION DE LA VALEUR ÉCONOMIQUE DE L’UTILISATION D’UN RÉSERVOIR D’HYDRO-ACCUMULATION DE CHALEUR POUR UN SYSTÈME DE CHAUFFAGE À LA BIOMASSE SANS PRODUCTION DE CO2
B23: Revenir aux mesures d'efficacité

Sheet Tableau 8.2
B2: Tableau 8.2 - Économies potentielles d'énergie qui découlent de l'utilisation de réservoir d'hydroaccumulation
B4: Système | C4: Économie potentielle (%)
B5: Open Buffer | C5: 7 à 15
B6: Closed Buffer | C6: 5 à 10
B8: Source: Marco Girouard, ing.
B10: Utilisation des réservoirs d'hydro-accumulation pour le chauffage de serre - Règles et fonctionnement de base
B12: Revenir aux mesures d'efficacité

Sheet Tableau 8.3
B2: Tableau 8.3 - Capacité et coûts d'investissements requis pour l'acquisition d'un réservoir d'hydro accumulation
B4: Capacité (m3) | C4: $ | D4: $/m3
B5: 400 | C5: 350000 | D5: =C5/B5 -> 875
B6: 2000 | C6: 700000 | D6: =C6/B6 -> 350
B8: Source: Horticulture Distribution
B10: 1Prix fournies à titre indicatif par monsieur Marc Croteau de Horticulture Distribution
B11: 2Tous les frais sont inclus
B12: 3Les coûts de la base en béton varient, en autres, selon la type de sol et la capacité portante
B14: Revenir aux mesures d'efficacité

Sheet Tableau 9.1
B2: Tableau 9.1 - Utilisation annuelle potentielle de CO2 sur une base mensuelle
B4: Mois | C4: Enrichissement (heures) | D4: 45 kg/ha/h | E4: 65 kg/ha/h | F4: 90 kg/ha/h
B5: janvier | C5: 82 | D5: 3690 | E5: 5330 | F5: 7380
B6: février | C6: 100 | D6: 4500 | E6: 6500 | F6: 9000
B7: mars | C7: 127 | D7: 5715 | E7: 8255 | F7: 11430
B8: avril | C8: 168 | D8: 7560 | E8: 10920 | F8: 15120
B9: mai | C9: 234 | D9: 10530 | E9: 15210 | F9: 21060
B10: juin | C10: 253 | D10: 11385 | E10: 16445 | F10: 22770
B11: juillet | C11: 283 | D11: 12735 | E11: 18395 | F11: 25470
B12: août | C12: 252 | D12: 11340 | E12: 16380 | F12: 22680
B13: septembre | C13: 187 | D13: 8415 | E13: 12155 | F13: 16830
B14: octobre | C14: 157 | D14: 7065 | E14: 10205 | F14: 14130
B15: novembre | C15: 89 | D15: 4005 | E15: 5785 | F15: 8010
B16: décembre | C16: 67.1 | D16: 3019.5 | E16: 4361.5 | F16: 6039
C17: Total (kg) | D17: 89959.5 | E17: 129941.5 | F17: 179919
B19: Tiré de Khosla, 2002
B20: Le gaz carbonique dans les serres
B22: Notes:
B23: 1. Quantité de CO2 apporté exprimée en kilogramme/hectare/heure
B25: Revenir aux mesures d'efficacité

Sheet Tableau 9.2
B2: Tableau 9.2 - Coûts de quelques systèmes d'injection de CO2
B4: Méthode d’injection | C4: Coûts minimum ($) | D4: Coûts maximum ($)
B5: Récupération directe – Aérotherme (nouvelle installation, superficie <= 25 000 pi2) | C5: 9500 | D5: 15000
B6: Récupération directe – Aérotherme (installation existante, superficie <= 25 000 pi2) | C6: 3000 | D6: 8000
B7: Injection via Canon (superficie <= 25 000 pi2) | C7: 3000 | D7: 8000
B8: Récupération sur fournaise / bouilloire biomasse (superficie <= 25 000 pi2) | C8: 9500 | D8: 15000
B9: CO2 liquide (superficie de 1 ha) | C9: 100000 | D9: 200000
B10: Récupération sur bouilloire au gaz (superficie de 1 ha) | C10: 350000 | D10: 600000
B12: Tiré de Villeneuve, 2015, les technologies d'éclairage artificiel et de CO2 dans les serres
B13: Les technologies d'éclairage artificiel et de CO2 dans les serres
B15: Notes:
B16: 1. Les systèmes de récupération sur fournaise / bouilloire biomasse pour les entreprises de petites tailles sont en cours de développement
B18: Revenir aux mesures d'efficacité

Sheet Tableau 9.3
B3: Tableau 9.3 - Comparaison des coûts de production de CO2 selon le type et la quantité de combustible utilisés pour un hectare
B5: Type | C5: Nb d’heures | D5: Taux (kg/ha/h) | E5: Qté de produit requise | F5: Coût ($/unité) | G5: Horaire ($/h) | H5: Coût ($/jour)
B6: CO2 liquide | C6: 12 | D6: 50 | E6: 50.0 kg | F6: 0.11$/kg | G6: 5.5 | H6: 66
B7: CO2 liquide | C7: 12 | D7: 50 | E7: 50.0 kg | F7: 0.15$/kg | G7: 7.5 | H7: 90
B8: CO2 liquide | C8: 12 | D8: 50 | E8: 50.0 kg | F8: 0.20$/kg | G8: 10 | H8: 120
B9: CO2 liquide | C9: 12 | D9: 50 | E9: 50.0 kg | F9: 0.30$/kg | G9: 15 | H9: 180
B10: Gaz naturel | C10: 12 | D10: 50 | E10: 27.8 m3 | F10: 0.10$/m3 | G10: 2.78 | H10: 33.33
B11: Gaz naturel | C11: 12 | D11: 50 | E11: 27.8 m3 | F11: 0.15$/m3 | G11: 4.17 | H11: 50
B12: Gaz naturel | C12: 12 | D12: 50 | E12: 27.8 m3 | F12: 0.30$/m3 | G12: 8.33 | H12: 100
B13: Propane | C13: 12 | D13: 50 | E13: 27.8 L | F13: 0.20$/L | G13: 5.56 | H13: 66.67
B14: Propane | C14: 12 | D14: 50 | E14: 27.8 L | F14: 0.25$/L | G14: 6.94 | H14: 83.33
B15: Propane | C15: 12 | D15: 50 | E15: 27.8 L | F15: 0.30$/L | G15: 8.33 | H15: 100
B17: Tiré de Koshla (2002), Le gaz carbonique dans les serres
B18: Le gaz carbonique dans les serres
B20: Revenir aux mesures d'efficacité

Sheet Tableau 9.4
B2: Tableau 9.4 - Économies d'énergie selon le scénario de départ et la présence ou non d'une réservoir d'hydroaccumulation
B4: Départ | C4: Option | D4: Économies en énergie
B5: CO2 liquide | C5: Sans réservoir d'hydroacumulation | D5: 3 à 5% de la chauffe
B6: CO2 liquide | C6: Avec réservoir d'hydroaccumulation | D6: 4 à 10% de la chauffe
B7: Brûleur de gaz carbonique | C7: Sans réservoir d'hydroacumulation | D7: 3 à 5% de la chauffe + économies d'énergie sur le gaz carbonique qui n'est pas brûlé
B8: Brûleur de gaz carbonique | C8: Avec réservoir d'hydroaccumulation | D8: 4 à 10% de la chauffe + économies d'énergie sur le gaz carbonique qui n'est pas brûlé
B10: Revenir aux mesures d'efficacité

Sheet Tableau 9.5
B2: Tableau 9.5 - Coûts en matériel liés à l'acquisition d'un générateur et d'un contrôleur de CO2
C4: Prix
C5: 1889
B7: Tiré de Serre - Coûts de construction 2017 (Agdex 731/290)
B9: Revenir aux mesures d'efficacité

Sheet Paramètres (hidden)
C3: Paramètres tarifaire | AA3: Oui
AA4: Non
C5: Tarif DP | F5: Mazout Léger (no 2)
C6: Redevance d'abonnement mensuel | D6: 6.09 | F6: Pouvoir calorifique (kWh / litres) | G6: 10.69 | AA6: Mazout Léger (no 2)
C7: Prix premiers 1200 kWh | D7: 0.0577 | F7: Efficacité de combustion saisonnière | G7: 0.7 | AA7: Propane
C8: Prix excédent 1200 kWh | D8: 0.0877
C9: Prix du kW excédant 50 kW en été | D9: 4.59 | F9: Mazout Lourd (no 6)
C10: Prix du kW excédant 50 kW en hiver | D10: 6.21 | F10: Pouvoir calorifique (kWh / litres) | G10: 11.81
C11: Pourcentage de la puissance à facturer minimale | D11: 0.65 | F11: Efficacité de combustion saisonnière | G11: 0.65
C13: Tarif DT | F13: Propane
C14: Redevance d'abonnement journalier | D14: 0.4064 | F14: Pouvoir calorifique (kWh / litres) | G14: 7.03
C15: =" Prix kWh (>"& VLOOKUP('Inscrire facture'!AA4,DegresJourHiver!$B$3:$E$14,2) &") degrés Celsius" -> Prix kWh (>-15) degrés Celsius | D15: 0.0448 | F15: Efficacité de combustion saisonnière | G15: 0.75
C16: =" Prix kWh (<"& VLOOKUP('Inscrire facture'!AA4,DegresJourHiver!$B$3:$E$14,2) &") degrés Celsius" -> Prix kWh (<-15) degrés Celsius | D16: 0.2621
C17: =" Pourcentage du temps où température < "& VLOOKUP('Inscrire facture'!AA4,DegresJourHiver!$B$3:$E$14,2) &" degrés Celsius durant hiver" -> Pourcentage du temps où température < -15 degrés Celsius durant hiver | D17: =VLOOKUP('Inscrire facture'!AA4,DegresJourHiver!$B$3:$E$14,4) -> 0.05435487023 | F17: Autres
C18: Prix du kW excédant 50 kW en été | D18: 4.59 | F18: Prix du combustible selon facture actuelle | G18: ='Inscrire facture'!O18/'Inscrire facture'!N18 -> 
C19: Prix du kW excédant 50 kW en hiver | D19: 6.21
C20: Pourcentage de la puissance à facturer minimale | D20: 0.65
C22: Tarif M
C23: Prix de puissance du kW à facturer | D23: 14.43
C24: Prix du kWh (210 000 premiers kWh) | D24: 0.0497
C25: Prix du kWh (reste de l'énergie consommée) | D25: 0.0369
C26: Pourcentage de la puissance à facturer minimale | D26: 0.65

Sheet DegresJourHiver (hidden)
B2: Ville | C2: Seuil | D2: Moyenne Dépassement hiver depuis 1996 (degré celsius) | E2: % Dépassement moyen hiver depuis 1996
B3: Baie-Comeau | C3: -15 | D3: 4.285072081 | E3: 0.05959593881
B4: Jonquière | C4: -15 | D4: 5.51685149 | E4: 0.09250820364
B5: La Tuque | C5: -15 | D5: 6.178651291 | E5: 0.09500272597
B6: Montréal | C6: -12 | D6: 4.285824105 | E6: 0.06066061124
B7: Québec | C7: -15 | D7: 4.327804996 | E7: 0.05435487023
B8: Rivière-du-loup | C8: -15 | D8: 3.488659048 | E8: 0.04701017354
B9: Roberval | C9: -15 | D9: 5.656882683 | E9: 0.1027640336
B10: Rouyn | C10: -15 | D10: 5.692269903 | E10: 0.1033040848
B11: Sept-Iles | C11: -15 | D11: 4.772379293 | E11: 0.0766255542
B12: Sherbrooke | C12: -12 | D12: 5.642917309 | E12: 0.07571518213
B13: Trois-Rivières | C13: -12 | D13: 4.652848732 | E13: 0.07119932519
B14: Val-d'or | C14: -15 | D14: 6.109085208 | E14: 0.1088331807
B16: Bagotville | C16: -15 | D16: 5.513873093 | E16: 0.09689547694
B17: Beauceville | C17: -12 | D17: 5.51535369 | E17: 0.08426342156
B18: Bonnard | C18: -15 | D18: 7.745928918 | E18: 0.1547889686
B19: Cap-chat | C19: -15 | D19: 3.199645412 | E19: 0.03166757532
B20: Cap-d'espoir | C20: -15 | D20: 3.172895568 | E20: 0.02750146585
B21: Cap-de-la-madeleine | C21: -12 | D21: 3.576981076 | E21: 0.05389711253
B22: Cap-tourmente | C22: -15 | D22: 3.728469918 | E22: 0.0396500468
B23: Chibougamau-Chapais | C23: -15 | D23: 6.906569775 | E23: 0.1400841451
B24: Felightsburg | C24: -12 | D24: 4.865535267 | E24: 0.0595033586
B25: Gaspé | C25: -15 | D25: 3.942573128 | E25: 0.04595578781
B26: Havre-St-Pierre | C26: -15 | D26: 4.355130165 | E26: 0.06557764908
B27: Ile Biquette | C27: -15 | D27: 2.444212974 | E27: 0.01518315452
B28: Ile d'Orléans | C28: -15 | D28: 4.012251069 | E28: 0.05845411622
B29: Ile Rouge | C29: -15 | D29: 3.173885916 | E29: 0.01855204551
B30: Iles-de-la-madeleine | C30: -15 | D30: 3.471090508 | E30: 0.007694444159
B31: Kuujjuarapik | C31: -15 | D31: 7.097602217 | E31: 0.1765504614
B32: L'Acadie | C32: -12 | D32: 4.555514749 | E32: 0.06392149198
B33: Lac Éon | C33: -15 | D33: 6.982277443 | E33: 0.142393507
B34: Centrale La Grande-4 | C34: -15 | D34: 7.817168327 | E34: 0.1637538189
B35: La Grande Rivière | C35: -15 | D35: 7.445850816 | E35: 0.1786643762
B36: L'assomption | C36: -12 | D36: 5.056145363 | E36: 0.0793566704
B37: Lemieux | C37: -12 | D37: 6.218258685 | E37: 0.08379537716
B38: Maniwaki | C38: -12 | D38: 6.270683843 | E38: 0.09304825486
B39: Matagami | C39: -15 | D39: 6.935494986 | E39: 0.1411436742
B40: Mctavish | C40: -15 | D40: 3.44468515 | E40: 0.02670424737
B41: Mirabel | C41: -12 | D41: 5.027965097 | E41: 0.08116712785
B42: Mistook | C42: -15 | D42: 6.064713696 | E42: 0.10263545
B43: Mont-Joli | C43: -15 | D43: 3.345691885 | E43: 0.04170224147
B44: Mont-Orford | C44: -12 | D44: 5.63443225 | E44: 0.107331324
B45: Natashquan | C45: -15 | D45: 4.40460507 | E45: 0.06188472735
B46: New-Carlisle | C46: -15 | D46: 3.277944275 | E46: 0.03274767778
B47: Nicolet | C47: -12 | D47: 4.936348847 | E47: 0.07738162591
B48: Normandin | C48: -15 | D48: 6.777284364 | E48: 0.1247055435
B49: Ottawa | C49: -12 | D49: 4.807139867 | E49: 0.07095758798
B50: Parent | C50: -15 | D50: 6.985911903 | E50: 0.1018022281
B51: Pointe-Claveau | C51: -15 | D51: 4.189173035 | E51: 0.06342258751
B52: Pointe-des-monts | C52: -15 | D52: 3.581336661 | E52: 0.04337897195
B53: Roquemaure | C53: -15 | D53: 3.802411871 | E53: 0.03444498164
B54: St-Anicet | C54: -12 | D54: 4.822570623 | E54: 0.06443068314
B55: St-Anne-De-Bellevue | C55: -12 | D55: 4.600211367 | E55: 0.06710522255
B56: Ste-Clothilde | C56: -12 | D56: 4.68025017 | E56: 0.06211617788
B57: St-Hubert | C57: -12 | D57: 4.492476524 | E57: 0.06386491519
B58: St-Jovite | C58: -12 | D58: 7.010331676 | E58: 0.09672574656
B59: Schefferville | C59: -15 | D59: 8.022847355 | E59: 0.1829487826
B60: Val-Cartier | C60: -15 | D60: 5.400241006 | E60: 0.07248516145

Sheet modele conversion HQ (hidden)
B3: Factures estimée après conversion combustible --> électricité (Tarif DP et M) | M3: Factures estimée après conversion combustible --> électricité (Tarif DT) | T3: Prix de l'énergie
E4: Électricité | G4: ='Inscrire facture'!AA5 -> Mazout Léger (no 2) | J4: Facture totale | M4: Électricité | P4: ='Inscrire facture'!AA5 -> Mazout Léger (no 2) | R4: Facture totale | T4: Base annuelle | U4: Mètre carré ($ / m2) | V4: Combustible ($/kWh) | W4: Électricité ($/kWh)
E5: Pointe | F5: Consom. | G5: Écrêter la pointe | J5: Électricité et combustible | M5: Pointe | O5: Consom. | P5: Écrêter pointe | Q5: ="Température < " & VLOOKUP('Inscrire facture'!AA4,DegresJourHiver!$B$3:$E$14,2) & "°C" -> Température < -15°C | R5: Élect. et Comb. | T5: Factures actuelle | U5: ='Inscrire facture'!S18/'Inscrire facture'!AA6 -> 0 | V5: =('Inscrire facture'!O18/'Inscrire facture'!N18) / IF('Inscrire facture'!$AA$5="Mazout Léger (no 2)",Paramètres!$G$6*Paramètres!$G$7,IF('Inscrire facture'!$AA$5="Mazout Lourd (no 6)",Paramètres!$G$10*Paramètres!$G$11,IF('Inscrire facture'!$AA$5="Propane",Paramètres!$G$14*Paramètres!$G$15,"Erreur"))) ->  | W5: ='Inscrire facture'!J18/'Inscrire facture'!I18 -> 
B6: Mois | C6: Date Début | D6: Date Fin | E6: en kW | F6: en kWh | G6: Nombre de litres | J6: Tarif DP | K6: Tarif M | M6: en kW | O6: en kWh | P6: Nombre de litres | R6: Tarif DT | T6: Factures au tarif DP | U6: =J19/'Inscrire facture'!AA6 -> 0.0609 | V6: =$V$5 * 1.1 ->  | W6: =Q37/F19 -> 
B7: ='Inscrire facture'!E6 -> Janvier | C7: ='Inscrire facture'!F6 -> 2018-01-01 | D7: ='Inscrire facture'!G6 -> 2018-02-01 | E7: =M25 -> 0 | F7: =N25 -> 0 | G7: =C25 -> 0 | J7: =D25+Q25 -> 6.09 | K7: =D25+AD25 -> 0 | M7: =O25 -> 0 | O7: =P25 -> 0 | P7: =C25 -> 0 | Q7: =E25 -> 0 | R7: =D25+F25+X25 -> 12.5984 | T7: Factures au tarif M | U7: =K19/'Inscrire facture'!AA6 -> 0 | V7: =$V$5 * 1.1 ->  | W7: =AD37/F19 -> 
B8: ='Inscrire facture'!E7 -> Février | C8: ='Inscrire facture'!F7 -> 2018-02-01 | D8: ='Inscrire facture'!G7 -> 2018-03-01 | E8: 0 | F8: 0 | G8: 0 | J8: 6.09 | K8: 0 | M8: 0 | O8: 0 | P8: 0 | Q8: 0 | R8: 11.3792 | T8: Factures au tarif DT | U8: =R19/'Inscrire facture'!AA6 -> 0.1236133333 | V8: =$V$5 * 1.1 ->  | W8: =X37/O19 -> 
B9: ='Inscrire facture'!E8 -> Mars | C9: ='Inscrire facture'!F8 -> 2018-03-01 | D9: ='Inscrire facture'!G8 -> 2018-04-01 | E9: 0 | F9: 0 | G9: 0 | J9: 6.09 | K9: 0 | M9: 0 | O9: 0 | P9: 0 | Q9: 0 | R9: 12.5984
B10: ='Inscrire facture'!E9 -> Avril | C10: ='Inscrire facture'!F9 -> 2018-04-01 | D10: ='Inscrire facture'!G9 -> 2018-05-01 | E10: 0 | F10: 0 | G10: 0 | J10: 6.09 | K10: 0 | M10: 0 | O10: 0 | P10: 0 | Q10: 0 | R10: 12.192
B11: ='Inscrire facture'!E10 -> Mai | C11: ='Inscrire facture'!F10 -> 2018-05-01 | D11: ='Inscrire facture'!G10 -> 2018-06-01 | E11: 0 | F11: 0 | G11: 0 | J11: 6.09 | K11: 0 | M11: 0 | O11: 0 | P11: 0 | Q11: 0 | R11: 12.5984
B12: ='Inscrire facture'!E11 -> Juin | C12: ='Inscrire facture'!F11 -> 2018-06-01 | D12: ='Inscrire facture'!G11 -> 2018-07-01 | E12: 0 | F12: 0 | G12: 0 | J12: 6.09 | K12: 0 | M12: 0 | O12: 0 | P12: 0 | Q12: 0 | R12: 12.192
B13: ='Inscrire facture'!E12 -> Juillet | C13: ='Inscrire facture'!F12 -> 2018-07-01 | D13: ='Inscrire facture'!G12 -> 2018-08-01 | E13: 0 | F13: 0 | G13: 0 | J13: 6.09 | K13: 0 | M13: 0 | O13: 0 | P13: 0 | Q13: 0 | R13: 12.5984
B14: ='Inscrire facture'!E13 -> Août | C14: ='Inscrire facture'!F13 -> 2018-08-01 | D14: ='Inscrire facture'!G13 -> 2018-09-01 | E14: 0 | F14: 0 | G14: 0 | J14: 6.09 | K14: 0 | M14: 0 | O14: 0 | P14: 0 | Q14: 0 | R14: 12.5984
B15: ='Inscrire facture'!E14 -> Septembre | C15: ='Inscrire facture'!F14 -> 2018-09-01 | D15: ='Inscrire facture'!G14 -> 2018-10-01 | E15: 0 | F15: 0 | G15: 0 | J15: 6.09 | K15: 0 | M15: 0 | O15: 0 | P15: 0 | Q15: 0 | R15: 12.192
B16: ='Inscrire facture'!E15 -> Octobre | C16: ='Inscrire facture'!F15 -> 2018-10-01 | D16: ='Inscrire facture'!G15 -> 2018-11-01 | E16: 0 | F16: 0 | G16: 0 | J16: 6.09 | K16: 0 | M16: 0 | O16: 0 | P16: 0 | Q16: 0 | R16: 12.5984
B17: ='Inscrire facture'!E16 -> Novembre | C17: ='Inscrire facture'!F16 -> 2018-11-01 | D17: ='Inscrire facture'!G16 -> 2018-12-01 | E17: 0 | F17: 0 | G17: 0 | J17: 6.09 | K17: 0 | M17: 0 | O17: 0 | P17: 0 | Q17: 0 | R17: 12.192
B18: ='Inscrire facture'!E17 -> Décembre | C18: ='Inscrire facture'!F17 -> 2018-12-01 | D18: ='Inscrire facture'!G17 -> 2019-01-01 | E18: 0 | F18: 0 | G18: 0 | J18: 6.09 | K18: 0 | M18: 0 | O18: 0 | P18: 0 | Q18: 0 | R18: 12.5984
B19: ='Inscrire facture'!E18 -> Annuelle | C19: ='Inscrire facture'!F18 -> 2018-01-01 | D19: ='Inscrire facture'!G18 -> 2019-01-01 | E19: =MAX(E7:E18) -> 0 | F19: =SUM(F7:F18) -> 0 | G19: =SUM(G7:I18) -> 0 | J19: =SUM(J7:J18) -> 73.08 | K19: =SUM(K7:K18) -> 0 | M19: =MAX(M7:M18) -> 0 | O19: =SUM(O7:O18) -> 0 | P19: =SUM(P7:P18) -> 0 | Q19: =SUM(Q7:Q18) -> 0 | R19: =SUM(R7:R18) -> 148.336
C22: Facture combustible | M22: Électricité totale (DP + M) | O22: Électricité totale (DT) | Q22: Facture d'électricité (Tarif DP) | X22: Facture d'électricité (Tarif DT) | AD22: Facture d'électricité (Tarif M)
C23: Écréter | D23: Montant | E23: ="Température < " & VLOOKUP('Inscrire facture'!AA4,DegresJourHiver!$B$3:$E$14,2) -> Température < -15 | F23: Montant | G23: Nb. litres | H23: Converti | I23: Converti | J23: Nb. litres | K23: Converti | L23: Converti | M23: Pointe | N23: Consomm. | O23: Pointe | P23: Consomm.
B24: Saison | C24: la pointe | D24: Écréter pointe | E24: (Tarif DT) en litres | F24: (Tarif DT) | G24: converti en kwh (DT) | H24: en kWh (DT) | I24: en kW (DT) | J24: converti en kWh (DP+M) | K24: en kW (DP+M) | L24: en kWh (DP+M) | M24: en kW | N24: en kWh | O24: en kW | P24: en kWh | Q24: Tarif DP | R24: Redevance | S24: PFM | T24: Prix du kW > 50 kW | U24: Prix Puissance | V24: Prix kWh <= 1200 | W24: Prix kWh > 1200 | X24: Tarif DT | Y24: PFM | Z24: Redevance | AA24: Prix du kW > 50 kW | AB24: Prix Puissance | AC24: Prix kWh | AD24: Tarif M | AE24: PFM | AF24: Prix puissance | AG24: Prix kWh <= 210000 | AH24: Prix kWh > 210000
B25: H | C25: =IF(B25="H",'Inscrire facture'!N6*'Inscrire facture'!$AA$11,0) -> 0 | D25: =C25 * 'Inscrire facture'!$AA$10 -> 0 | E25: =G42 -> 0 | F25: =E25 * 'Inscrire facture'!$AA$10 -> 0 | G25: ='Inscrire facture'!N6-C25-E25 -> 0 | H25: =IF('Inscrire facture'!$AA$5="Mazout Léger (no 2)",G25*Paramètres!$G$6*Paramètres!$G$7,IF('Inscrire facture'!$AA$5="Mazout Lourd (no 6)",G25*Paramètres!$G$10*Paramètres!$G$11,IF('Inscrire facture'!$AA$5="Propane",G25*Paramètres!$G$14*Paramètres!$G$15,"Erreur"))) -> 0 | I25: =H25/(DATEDIF('Inscrire facture'!F6,'Inscrire facture'!G6,"D")*24)/'Inscrire facture'!$AA$7 -> 0 | J25: ='Inscrire facture'!N6-C25 -> 0 | K25: =L25/(DATEDIF('Inscrire facture'!F6,'Inscrire facture'!G6,"D")*24)/'Inscrire facture'!$AA$7 -> 0 | L25: =IF('Inscrire facture'!$AA$5="Mazout Léger (no 2)",J25*Paramètres!$G$6*Paramètres!$G$7,IF('Inscrire facture'!$AA$5="Mazout Lourd (no 6)",J25*Paramètres!$G$10*Paramètres!$G$11,IF('Inscrire facture'!$AA$5="Propane",J25*Paramètres!$G$14*Paramètres!$G$15,"Erreur"))) -> 0 | M25: =N25/(DATEDIF('Inscrire facture'!F6,'Inscrire facture'!G6,"D")*24)/'Inscrire facture'!$AA$7 -> 0 | N25: =SUM('Inscrire facture'!I6,L25) -> 0 | O25: =P25/(DATEDIF('Inscrire facture'!F6,'Inscrire facture'!G6,"D")*24)/'Inscrire facture'!$AA$7 -> 0 | P25: =SUM('Inscrire facture'!I6,H25) -> 0 | Q25: =SUM(R25,U25,V25,W25) -> 6.09 | R25: =Paramètres!$D$6 -> 6.09 | S25: =IF(AND(M25>50,B25="H"),(M25-50)*Paramètres!$D$11,0) -> 0 | T25: =IF(B25="H",Paramètres!$D$10,Paramètres!$D$9) -> 6.21 | U25: =(IF(OR(M25>50,MAX($S$25:S25)>0),MAX((M25-50),MAX($S$25:S25))*T25,0)) * (DATEDIF('Inscrire facture'!F6,'Inscrire facture'!G6,"D")*24)/720 -> 0 | V25: =IF(N25<=1200,N25*Paramètres!$D$7,1200*Paramètres!$D$7) -> 0 | W25: =IF(N25>1200,(N25-1200)*Paramètres!$D$8,0) -> 0 | X25: =SUM(Z25,AB25,AC25) -> 12.5984 | Y25: =IF(AND(O25>50,B25="H"),(O25-50)*Paramètres!$D$20,0) -> 0 | Z25: =DATEDIF('Inscrire facture'!F6,'Inscrire facture'!G6,"D") * Paramètres!$D$14 -> 12.5984 | AA25: =IF(B25="H",Paramètres!$D$19,Paramètres!$D$18) -> 6.21 | AB25: =(IF(MAX((O25-50),MAX($Y$25:Y25)-50)>0,MAX((O25-50),MAX($Y$25:Y25)-50)*AA25,0)) * (DATEDIF('Inscrire facture'!F6,'Inscrire facture'!G6,"D")*24)/720 -> 0 | AC25: =IF(B25="H",(P25*Paramètres!$D$15*(1-Paramètres!$D$17))+(P25*Paramètres!$D$16*Paramètres!$D$17),P25*Paramètres!$D$15) -> 0 | AD25: =SUM(AF25:AH25) -> 0 | AE25: =IF(B25="H",M25*Paramètres!$D$26,0) -> 0 | AF25: =(MAX(M25,$AE$25:$AE25)*Paramètres!$D$23) * (DATEDIF('Inscrire facture'!F6,'Inscrire facture'!G6,"D")*24)/720 -> 0 | AG25: =IF(N25<=210000,N25*Paramètres!$D$24,210000*Paramètres!$D$24) -> 0 | AH25: =IF(N25>210000,(N25-210000)*Paramètres!$D$25,0) -> 0
B26: H | C26: =IF(B26="H",'Inscrire facture'!N7*'Inscrire facture'!$AA$11,0) -> 0 | D26: =C26 * 'Inscrire facture'!$AA$10 -> 0 | E26: 0 | F26: =E26 * 'Inscrire facture'!$AA$10 -> 0 | G26: ='Inscrire facture'!N7-C26-E26 -> 0 | H26: =IF('Inscrire facture'!$AA$5="Mazout Léger (no 2)",G26*Paramètres!$G$6*Paramètres!$G$7,IF('Inscrire facture'!$AA$5="Mazout Lourd (no 6)",G26*Paramètres!$G$10*Paramètres!$G$11,IF('Inscrire facture'!$AA$5="Propane",G26*Paramètres!$G$14*Paramètres!$G$15,"Erreur"))) -> 0 | I26: =H26/(DATEDIF('Inscrire facture'!F7,'Inscrire facture'!G7,"D")*24)/'Inscrire facture'!$AA$7 -> 0 | J26: ='Inscrire facture'!N7-C26 -> 0 | K26: =L26/(DATEDIF('Inscrire facture'!F7,'Inscrire facture'!G7,"D")*24)/'Inscrire facture'!$AA$7 -> 0 | L26: =IF('Inscrire facture'!$AA$5="Mazout Léger (no 2)",J26*Paramètres!$G$6*Paramètres!$G$7,IF('Inscrire facture'!$AA$5="Mazout Lourd (no 6)",J26*Paramètres!$G$10*Paramètres!$G$11,IF('Inscrire facture'!$AA$5="Propane",J26*Paramètres!$G$14*Paramètres!$G$15,"Erreur"))) -> 0 | M26: =N26/(DATEDIF('Inscrire facture'!F7,'Inscrire facture'!G7,"D")*24)/'Inscrire facture'!$AA$7 -> 0 | N26: =SUM('Inscrire facture'!I7,L26) -> 0 | O26: =P26/(DATEDIF('Inscrire facture'!F7,'Inscrire facture'!G7,"D")*24)/'Inscrire facture'!$AA$7 -> 0 | P26: =SUM('Inscrire facture'!I7,H26) -> 0 | Q26: 6.09 | R26: =Paramètres!$D$6 -> 6.09 | S26: =IF(AND(M26>50,B26="H"),(M26-50)*Paramètres!$D$11,0) -> 0 | T26: =IF(B26="H",Paramètres!$D$10,Paramètres!$D$9) -> 6.21 | U26: =(IF(OR(M26>50,MAX($S$25:S26)>0),MAX((M26-50),MAX($S$25:S26))*T26,0)) * (DATEDIF('Inscrire facture'!F7,'Inscrire facture'!G7,"D")*24)/720 -> 0 | V26: =IF(N26<=1200,N26*Paramètres!$D$7,1200*Paramètres!$D$7) -> 0 | W26: =IF(N26>1200,(N26-1200)*Paramètres!$D$8,0) -> 0 | X26: 11.3792 | Y26: =IF(AND(O26>50,B26="H"),(O26-50)*Paramètres!$D$20,0) -> 0 | Z26: =DATEDIF('Inscrire facture'!F7,'Inscrire facture'!G7,"D") * Paramètres!$D$14 -> 11.3792 | AA26: =IF(B26="H",Paramètres!$D$19,Paramètres!$D$18) -> 6.21 | AB26: =(IF(MAX((O26-50),MAX($Y$25:Y26)-50)>0,MAX((O26-50),MAX($Y$25:Y26)-50)*AA26,0)) * (DATEDIF('Inscrire facture'!F7,'Inscrire facture'!G7,"D")*24)/720 -> 0 | AC26: =IF(B26="H",(P26*Paramètres!$D$15*(1-Paramètres!$D$17))+(P26*Paramètres!$D$16*Paramètres!$D$17),P26*Paramètres!$D$15) -> 0 | AD26: 0 | AE26: =IF(B26="H",M26*Paramètres!$D$26,0) -> 0 | AF26: =(MAX(M26,$AE$25:$AE26)*Paramètres!$D$23) * (DATEDIF('Inscrire facture'!F7,'Inscrire facture'!G7,"D")*24)/720 -> 0 | AG26: =IF(N26<=210000,N26*Paramètres!$D$24,210000*Paramètres!$D$24) -> 0 | AH26: =IF(N26>210000,(N26-210000)*Paramètres!$D$25,0) -> 0
B27: H | C27: =IF(B27="H",'Inscrire facture'!N8*'Inscrire facture'!$AA$11,0) -> 0 | D27: =C27 * 'Inscrire facture'!$AA$10 -> 0 | E27: 0 | F27: =E27 * 'Inscrire facture'!$AA$10 -> 0 | G27: ='Inscrire facture'!N8-C27-E27 -> 0 | H27: =IF('Inscrire facture'!$AA$5="Mazout Léger (no 2)",G27*Paramètres!$G$6*Paramètres!$G$7,IF('Inscrire facture'!$AA$5="Mazout Lourd (no 6)",G27*Paramètres!$G$10*Paramètres!$G$11,IF('Inscrire facture'!$AA$5="Propane",G27*Paramètres!$G$14*Paramètres!$G$15,"Erreur"))) -> 0 | I27: =H27/(DATEDIF('Inscrire facture'!F8,'Inscrire facture'!G8,"D")*24)/'Inscrire facture'!$AA$7 -> 0 | J27: ='Inscrire facture'!N8-C27 -> 0 | K27: =L27/(DATEDIF('Inscrire facture'!F8,'Inscrire facture'!G8,"D")*24)/'Inscrire facture'!$AA$7 -> 0 | L27: =IF('Inscrire facture'!$AA$5="Mazout Léger (no 2)",J27*Paramètres!$G$6*Paramètres!$G$7,IF('Inscrire facture'!$AA$5="Mazout Lourd (no 6)",J27*Paramètres!$G$10*Paramètres!$G$11,IF('Inscrire facture'!$AA$5="Propane",J27*Paramètres!$G$14*Paramètres!$G$15,"Erreur"))) -> 0 | M27: =N27/(DATEDIF('Inscrire facture'!F8,'Inscrire facture'!G8,"D")*24)/'Inscrire facture'!$AA$7 -> 0 | N27: =SUM('Inscrire facture'!I8,L27) -> 0 | O27: =P27/(DATEDIF('Inscrire facture'!F8,'Inscrire facture'!G8,"D")*24)/'Inscrire facture'!$AA$7 -> 0 | P27: =SUM('Inscrire facture'!I8,H27) -> 0 | Q27: 6.09 | R27: =Paramètres!$D$6 -> 6.09 | S27: =IF(AND(M27>50,B27="H"),(M27-50)*Paramètres!$D$11,0) -> 0 | T27: =IF(B27="H",Paramètres!$D$10,Paramètres!$D$9) -> 6.21 | U27: =(IF(OR(M27>50,MAX($S$25:S27)>0),MAX((M27-50),MAX($S$25:S27))*T27,0)) * (DATEDIF('Inscrire facture'!F8,'Inscrire facture'!G8,"D")*24)/720 -> 0 | V27: =IF(N27<=1200,N27*Paramètres!$D$7,1200*Paramètres!$D$7) -> 0 | W27: =IF(N27>1200,(N27-1200)*Paramètres!$D$8,0) -> 0 | X27: 12.5984 | Y27: =IF(AND(O27>50,B27="H"),(O27-50)*Paramètres!$D$20,0) -> 0 | Z27: =DATEDIF('Inscrire facture'!F8,'Inscrire facture'!G8,"D") * Paramètres!$D$14 -> 12.5984 | AA27: =IF(B27="H",Paramètres!$D$19,Paramètres!$D$18) -> 6.21 | AB27: =(IF(MAX((O27-50),MAX($Y$25:Y27)-50)>0,MAX((O27-50),MAX($Y$25:Y27)-50)*AA27,0)) * (DATEDIF('Inscrire facture'!F8,'Inscrire facture'!G8,"D")*24)/720 -> 0 | AC27: =IF(B27="H",(P27*Paramètres!$D$15*(1-Paramètres!$D$17))+(P27*Paramètres!$D$16*Paramètres!$D$17),P27*Paramètres!$D$15) -> 0 | AD27: 0 | AE27: =IF(B27="H",M27*Paramètres!$D$26,0) -> 0 | AF27: =(MAX(M27,$AE$25:$AE27)*Paramètres!$D$23) * (DATEDIF('Inscrire facture'!F8,'Inscrire facture'!G8,"D")*24)/720 -> 0 | AG27: =IF(N27<=210000,N27*Paramètres!$D$24,210000*Paramètres!$D$24) -> 0 | AH27: =IF(N27>210000,(N27-210000)*Paramètres!$D$25,0) -> 0
B28: E | C28: =IF(B28="H",'Inscrire facture'!N9*'Inscrire facture'!$AA$11,0) -> 0 | D28: =C28 * 'Inscrire facture'!$AA$10 -> 0 | E28: 0 | F28: =E28 * 'Inscrire facture'!$AA$10 -> 0 | G28: ='Inscrire facture'!N9-C28-E28 -> 0 | H28: =IF('Inscrire facture'!$AA$5="Mazout Léger (no 2)",G28*Paramètres!$G$6*Paramètres!$G$7,IF('Inscrire facture'!$AA$5="Mazout Lourd (no 6)",G28*Paramètres!$G$10*Paramètres!$G$11,IF('Inscrire facture'!$AA$5="Propane",G28*Paramètres!$G$14*Paramètres!$G$15,"Erreur"))) -> 0 | I28: =H28/(DATEDIF('Inscrire facture'!F9,'Inscrire facture'!G9,"D")*24)/'Inscrire facture'!$AA$7 -> 0 | J28: ='Inscrire facture'!N9-C28 -> 0 | K28: =L28/(DATEDIF('Inscrire facture'!F9,'Inscrire facture'!G9,"D")*24)/'Inscrire facture'!$AA$7 -> 0 | L28: =IF('Inscrire facture'!$AA$5="Mazout Léger (no 2)",J28*Paramètres!$G$6*Paramètres!$G$7,IF('Inscrire facture'!$AA$5="Mazout Lourd (no 6)",J28*Paramètres!$G$10*Paramètres!$G$11,IF('Inscrire facture'!$AA$5="Propane",J28*Paramètres!$G$14*Paramètres!$G$15,"Erreur"))) -> 0 | M28: =N28/(DATEDIF('Inscrire facture'!F9,'Inscrire facture'!G9,"D")*24)/'Inscrire facture'!$AA$7 -> 0 | N28: =SUM('Inscrire facture'!I9,L28) -> 0 | O28: =P28/(DATEDIF('Inscrire facture'!F9,'Inscrire facture'!G9,"D")*24)/'Inscrire facture'!$AA$7 -> 0 | P28: =SUM('Inscrire facture'!I9,H28) -> 0 | Q28: 6.09 | R28: =Paramètres!$D$6 -> 6.09 | S28: =IF(AND(M28>50,B28="H"),(M28-50)*Paramètres!$D$11,0) -> 0 | T28: =IF(B28="H",Paramètres!$D$10,Paramètres!$D$9) -> 4.59 | U28: =(IF(OR(M28>50,MAX($S$25:S28)>0),MAX((M28-50),MAX($S$25:S28))*T28,0)) * (DATEDIF('Inscrire facture'!F9,'Inscrire facture'!G9,"D")*24)/720 -> 0 | V28: =IF(N28<=1200,N28*Paramètres!$D$7,1200*Paramètres!$D$7) -> 0 | W28: =IF(N28>1200,(N28-1200)*Paramètres!$D$8,0) -> 0 | X28: 12.192 | Y28: =IF(AND(O28>50,B28="H"),(O28-50)*Paramètres!$D$20,0) -> 0 | Z28: =DATEDIF('Inscrire facture'!F9,'Inscrire facture'!G9,"D") * Paramètres!$D$14 -> 12.192 | AA28: =IF(B28="H",Paramètres!$D$19,Paramètres!$D$18) -> 4.59 | AB28: =(IF(MAX((O28-50),MAX($Y$25:Y28)-50)>0,MAX((O28-50),MAX($Y$25:Y28)-50)*AA28,0)) * (DATEDIF('Inscrire facture'!F9,'Inscrire facture'!G9,"D")*24)/720 -> 0 | AC28: =IF(B28="H",(P28*Paramètres!$D$15*(1-Paramètres!$D$17))+(P28*Paramètres!$D$16*Paramètres!$D$17),P28*Paramètres!$D$15) -> 0 | AD28: 0 | AE28: =IF(B28="H",M28*Paramètres!$D$26,0) -> 0 | AF28: =(MAX(M28,$AE$25:$AE28)*Paramètres!$D$23) * (DATEDIF('Inscrire facture'!F9,'Inscrire facture'!G9,"D")*24)/720 -> 0 | AG28: =IF(N28<=210000,N28*Paramètres!$D$24,210000*Paramètres!$D$24) -> 0 | AH28: =IF(N28>210000,(N28-210000)*Paramètres!$D$25,0) -> 0
B29: E | C29: =IF(B29="H",'Inscrire facture'!N10*'Inscrire facture'!$AA$11,0) -> 0 | D29: =C29 * 'Inscrire facture'!$AA$10 -> 0 | E29: 0 | F29: =E29 * 'Inscrire facture'!$AA$10 -> 0 | G29: ='Inscrire facture'!N10-C29-E29 -> 0 | H29: =IF('Inscrire facture'!$AA$5="Mazout Léger (no 2)",G29*Paramètres!$G$6*Paramètres!$G$7,IF('Inscrire facture'!$AA$5="Mazout Lourd (no 6)",G29*Paramètres!$G$10*Paramètres!$G$11,IF('Inscrire facture'!$AA$5="Propane",G29*Paramètres!$G$14*Paramètres!$G$15,"Erreur"))) -> 0 | I29: =H29/(DATEDIF('Inscrire facture'!F10,'Inscrire facture'!G10,"D")*24)/'Inscrire facture'!$AA$7 -> 0 | J29: ='Inscrire facture'!N10-C29 -> 0 | K29: =L29/(DATEDIF('Inscrire facture'!F10,'Inscrire facture'!G10,"D")*24)/'Inscrire facture'!$AA$7 -> 0 | L29: =IF('Inscrire facture'!$AA$5="Mazout Léger (no 2)",J29*Paramètres!$G$6*Paramètres!$G$7,IF('Inscrire facture'!$AA$5="Mazout Lourd (no 6)",J29*Paramètres!$G$10*Paramètres!$G$11,IF('Inscrire facture'!$AA$5="Propane",J29*Paramètres!$G$14*Paramètres!$G$15,"Erreur"))) -> 0 | M29: =N29/(DATEDIF('Inscrire facture'!F10,'Inscrire facture'!G10,"D")*24)/'Inscrire facture'!$AA$7 -> 0 | N29: =SUM('Inscrire facture'!I10,L29) -> 0 | O29: =P29/(DATEDIF('Inscrire facture'!F10,'Inscrire facture'!G10,"D")*24)/'Inscrire facture'!$AA$7 -> 0 | P29: =SUM('Inscrire facture'!I10,H29) -> 0 | Q29: 6.09 | R29: =Paramètres!$D$6 -> 6.09 | S29: =IF(AND(M29>50,B29="H"),(M29-50)*Paramètres!$D$11,0) -> 0 | T29: =IF(B29="H",Paramètres!$D$10,Paramètres!$D$9) -> 4.59 | U29: =(IF(OR(M29>50,MAX($S$25:S29)>0),MAX((M29-50),MAX($S$25:S29))*T29,0)) * (DATEDIF('Inscrire facture'!F10,'Inscrire facture'!G10,"D")*24)/720 -> 0 | V29: =IF(N29<=1200,N29*Paramètres!$D$7,1200*Paramètres!$D$7) -> 0 | W29: =IF(N29>1200,(N29-1200)*Paramètres!$D$8,0) -> 0 | X29: 12.5984 | Y29: =IF(AND(O29>50,B29="H"),(O29-50)*Paramètres!$D$20,0) -> 0 | Z29: =DATEDIF('Inscrire facture'!F10,'Inscrire facture'!G10,"D") * Paramètres!$D$14 -> 12.5984 | AA29: =IF(B29="H",Paramètres!$D$19,Paramètres!$D$18) -> 4.59 | AB29: =(IF(MAX((O29-50),MAX($Y$25:Y29)-50)>0,MAX((O29-50),MAX($Y$25:Y29)-50)*AA29,0)) * (DATEDIF('Inscrire facture'!F10,'Inscrire facture'!G10,"D")*24)/720 -> 0 | AC29: =IF(B29="H",(P29*Paramètres!$D$15*(1-Paramètres!$D$17))+(P29*Paramètres!$D$16*Paramètres!$D$17),P29*Paramètres!$D$15) -> 0 | AD29: 0 | AE29: =IF(B29="H",M29*Paramètres!$D$26,0) -> 0 | AF29: =(MAX(M29,$AE$25:$AE29)*Paramètres!$D$23) * (DATEDIF('Inscrire facture'!F10,'Inscrire facture'!G10,"D")*24)/720 -> 0 | AG29: =IF(N29<=210000,N29*Paramètres!$D$24,210000*Paramètres!$D$24) -> 0 | AH29: =IF(N29>210000,(N29-210000)*Paramètres!$D$25,0) -> 0
B30: E | C30: =IF(B30="H",'Inscrire facture'!N11*'Inscrire facture'!$AA$11,0) -> 0 | D30: =C30 * 'Inscrire facture'!$AA$10 -> 0 | E30: 0 | F30: =E30 * 'Inscrire facture'!$AA$10 -> 0 | G30: ='Inscrire facture'!N11-C30-E30 -> 0 | H30: =IF('Inscrire facture'!$AA$5="Mazout Léger (no 2)",G30*Paramètres!$G$6*Paramètres!$G$7,IF('Inscrire facture'!$AA$5="Mazout Lourd (no 6)",G30*Paramètres!$G$10*Paramètres!$G$11,IF('Inscrire facture'!$AA$5="Propane",G30*Paramètres!$G$14*Paramètres!$G$15,"Erreur"))) -> 0 | I30: =H30/(DATEDIF('Inscrire facture'!F11,'Inscrire facture'!G11,"D")*24)/'Inscrire facture'!$AA$7 -> 0 | J30: ='Inscrire facture'!N11-C30 -> 0 | K30: =L30/(DATEDIF('Inscrire facture'!F11,'Inscrire facture'!G11,"D")*24)/'Inscrire facture'!$AA$7 -> 0 | L30: =IF('Inscrire facture'!$AA$5="Mazout Léger (no 2)",J30*Paramètres!$G$6*Paramètres!$G$7,IF('Inscrire facture'!$AA$5="Mazout Lourd (no 6)",J30*Paramètres!$G$10*Paramètres!$G$11,IF('Inscrire facture'!$AA$5="Propane",J30*Paramètres!$G$14*Paramètres!$G$15,"Erreur"))) -> 0 | M30: =N30/(DATEDIF('Inscrire facture'!F11,'Inscrire facture'!G11,"D")*24)/'Inscrire facture'!$AA$7 -> 0 | N30: =SUM('Inscrire facture'!I11,L30) -> 0 | O30: =P30/(DATEDIF('Inscrire facture'!F11,'Inscrire facture'!G11,"D")*24)/'Inscrire facture'!$AA$7 -> 0 | P30: =SUM('Inscrire facture'!I11,H30) -> 0 | Q30: 6.09 | R30: =Paramètres!$D$6 -> 6.09 | S30: =IF(AND(M30>50,B30="H"),(M30-50)*Paramètres!$D$11,0) -> 0 | T30: =IF(B30="H",Paramètres!$D$10,Paramètres!$D$9) -> 4.59 | U30: =(IF(OR(M30>50,MAX($S$25:S30)>0),MAX((M30-50),MAX($S$25:S30))*T30,0)) * (DATEDIF('Inscrire facture'!F11,'Inscrire facture'!G11,"D")*24)/720 -> 0 | V30: =IF(N30<=1200,N30*Paramètres!$D$7,1200*Paramètres!$D$7) -> 0 | W30: =IF(N30>1200,(N30-1200)*Paramètres!$D$8,0) -> 0 | X30: 12.192 | Y30: =IF(AND(O30>50,B30="H"),(O30-50)*Paramètres!$D$20,0) -> 0 | Z30: =DATEDIF('Inscrire facture'!F11,'Inscrire facture'!G11,"D") * Paramètres!$D$14 -> 12.192 | AA30: =IF(B30="H",Paramètres!$D$19,Paramètres!$D$18) -> 4.59 | AB30: =(IF(MAX((O30-50),MAX($Y$25:Y30)-50)>0,MAX((O30-50),MAX($Y$25:Y30)-50)*AA30,0)) * (DATEDIF('Inscrire facture'!F11,'Inscrire facture'!G11,"D")*24)/720 -> 0 | AC30: =IF(B30="H",(P30*Paramètres!$D$15*(1-Paramètres!$D$17))+(P30*Paramètres!$D$16*Paramètres!$D$17),P30*Paramètres!$D$15) -> 0 | AD30: 0 | AE30: =IF(B30="H",M30*Paramètres!$D$26,0) -> 0 | AF30: =(MAX(M30,$AE$25:$AE30)*Paramètres!$D$23) * (DATEDIF('Inscrire facture'!F11,'Inscrire facture'!G11,"D")*24)/720 -> 0 | AG30: =IF(N30<=210000,N30*Paramètres!$D$24,210000*Paramètres!$D$24) -> 0 | AH30: =IF(N30>210000,(N30-210000)*Paramètres!$D$25,0) -> 0
B31: E | C31: =IF(B31="H",'Inscrire facture'!N12*'Inscrire facture'!$AA$11,0) -> 0 | D31: =C31 * 'Inscrire facture'!$AA$10 -> 0 | E31: 0 | F31: =E31 * 'Inscrire facture'!$AA$10 -> 0 | G31: ='Inscrire facture'!N12-C31-E31 -> 0 | H31: =IF('Inscrire facture'!$AA$5="Mazout Léger (no 2)",G31*Paramètres!$G$6*Paramètres!$G$7,IF('Inscrire facture'!$AA$5="Mazout Lourd (no 6)",G31*Paramètres!$G$10*Paramètres!$G$11,IF('Inscrire facture'!$AA$5="Propane",G31*Paramètres!$G$14*Paramètres!$G$15,"Erreur"))) -> 0 | I31: =H31/(DATEDIF('Inscrire facture'!F12,'Inscrire facture'!G12,"D")*24)/'Inscrire facture'!$AA$7 -> 0 | J31: ='Inscrire facture'!N12-C31 -> 0 | K31: =L31/(DATEDIF('Inscrire facture'!F12,'Inscrire facture'!G12,"D")*24)/'Inscrire facture'!$AA$7 -> 0 | L31: =IF('Inscrire facture'!$AA$5="Mazout Léger (no 2)",J31*Paramètres!$G$6*Paramètres!$G$7,IF('Inscrire facture'!$AA$5="Mazout Lourd (no 6)",J31*Paramètres!$G$10*Paramètres!$G$11,IF('Inscrire facture'!$AA$5="Propane",J31*Paramètres!$G$14*Paramètres!$G$15,"Erreur"))) -> 0 | M31: =N31/(DATEDIF('Inscrire facture'!F12,'Inscrire facture'!G12,"D")*24)/'Inscrire facture'!$AA$7 -> 0 | N31: =SUM('Inscrire facture'!I12,L31) -> 0 | O31: =P31/(DATEDIF('Inscrire facture'!F12,'Inscrire facture'!G12,"D")*24)/'Inscrire facture'!$AA$7 -> 0 | P31: =SUM('Inscrire facture'!I12,H31) -> 0 | Q31: 6.09 | R31: =Paramètres!$D$6 -> 6.09 | S31: =IF(AND(M31>50,B31="H"),(M31-50)*Paramètres!$D$11,0) -> 0 | T31: =IF(B31="H",Paramètres!$D$10,Paramètres!$D$9) -> 4.59 | U31: =(IF(OR(M31>50,MAX($S$25:S31)>0),MAX((M31-50),MAX($S$25:S31))*T31,0)) * (DATEDIF('Inscrire facture'!F12,'Inscrire facture'!G12,"D")*24)/720 -> 0 | V31: =IF(N31<=1200,N31*Paramètres!$D$7,1200*Paramètres!$D$7) -> 0 | W31: =IF(N31>1200,(N31-1200)*Paramètres!$D$8,0) -> 0 | X31: 12.5984 | Y31: =IF(AND(O31>50,B31="H"),(O31-50)*Paramètres!$D$20,0) -> 0 | Z31: =DATEDIF('Inscrire facture'!F12,'Inscrire facture'!G12,"D") * Paramètres!$D$14 -> 12.5984 | AA31: =IF(B31="H",Paramètres!$D$19,Paramètres!$D$18) -> 4.59 | AB31: =(IF(MAX((O31-50),MAX($Y$25:Y31)-50)>0,MAX((O31-50),MAX($Y$25:Y31)-50)*AA31,0)) * (DATEDIF('Inscrire facture'!F12,'Inscrire facture'!G12,"D")*24)/720 -> 0 | AC31: =IF(B31="H",(P31*Paramètres!$D$15*(1-Paramètres!$D$17))+(P31*Paramètres!$D$16*Paramètres!$D$17),P31*Paramètres!$D$15) -> 0 | AD31: 0 | AE31: =IF(B31="H",M31*Paramètres!$D$26,0) -> 0 | AF31: =(MAX(M31,$AE$25:$AE31)*Paramètres!$D$23) * (DATEDIF('Inscrire facture'!F12,'Inscrire facture'!G12,"D")*24)/720 -> 0 | AG31: =IF(N31<=210000,N31*Paramètres!$D$24,210000*Paramètres!$D$24) -> 0 | AH31: =IF(N31>210000,(N31-210000)*Paramètres!$D$25,0) -> 0
B32: E | C32: =IF(B32="H",'Inscrire facture'!N13*'Inscrire facture'!$AA$11,0) -> 0 | D32: =C32 * 'Inscrire facture'!$AA$10 -> 0 | E32: 0 | F32: =E32 * 'Inscrire facture'!$AA$10 -> 0 | G32: ='Inscrire facture'!N13-C32-E32 -> 0 | H32: =IF('Inscrire facture'!$AA$5="Mazout Léger (no 2)",G32*Paramètres!$G$6*Paramètres!$G$7,IF('Inscrire facture'!$AA$5="Mazout Lourd (no 6)",G32*Paramètres!$G$10*Paramètres!$G$11,IF('Inscrire facture'!$AA$5="Propane",G32*Paramètres!$G$14*Paramètres!$G$15,"Erreur"))) -> 0 | I32: =H32/(DATEDIF('Inscrire facture'!F13,'Inscrire facture'!G13,"D")*24)/'Inscrire facture'!$AA$7 -> 0 | J32: ='Inscrire facture'!N13-C32 -> 0 | K32: =L32/(DATEDIF('Inscrire facture'!F13,'Inscrire facture'!G13,"D")*24)/'Inscrire facture'!$AA$7 -> 0 | L32: =IF('Inscrire facture'!$AA$5="Mazout Léger (no 2)",J32*Paramètres!$G$6*Paramètres!$G$7,IF('Inscrire facture'!$AA$5="Mazout Lourd (no 6)",J32*Paramètres!$G$10*Paramètres!$G$11,IF('Inscrire facture'!$AA$5="Propane",J32*Paramètres!$G$14*Paramètres!$G$15,"Erreur"))) -> 0 | M32: =N32/(DATEDIF('Inscrire facture'!F13,'Inscrire facture'!G13,"D")*24)/'Inscrire facture'!$AA$7 -> 0 | N32: =SUM('Inscrire facture'!I13,L32) -> 0 | O32: =P32/(DATEDIF('Inscrire facture'!F13,'Inscrire facture'!G13,"D")*24)/'Inscrire facture'!$AA$7 -> 0 | P32: =SUM('Inscrire facture'!I13,H32) -> 0 | Q32: 6.09 | R32: =Paramètres!$D$6 -> 6.09 | S32: =IF(AND(M32>50,B32="H"),(M32-50)*Paramètres!$D$11,0) -> 0 | T32: =IF(B32="H",Paramètres!$D$10,Paramètres!$D$9) -> 4.59 | U32: =(IF(OR(M32>50,MAX($S$25:S32)>0),MAX((M32-50),MAX($S$25:S32))*T32,0)) * (DATEDIF('Inscrire facture'!F13,'Inscrire facture'!G13,"D")*24)/720 -> 0 | V32: =IF(N32<=1200,N32*Paramètres!$D$7,1200*Paramètres!$D$7) -> 0 | W32: =IF(N32>1200,(N32-1200)*Paramètres!$D$8,0) -> 0 | X32: 12.5984 | Y32: =IF(AND(O32>50,B32="H"),(O32-50)*Paramètres!$D$20,0) -> 0 | Z32: =DATEDIF('Inscrire facture'!F13,'Inscrire facture'!G13,"D") * Paramètres!$D$14 -> 12.5984 | AA32: =IF(B32="H",Paramètres!$D$19,Paramètres!$D$18) -> 4.59 | AB32: =(IF(MAX((O32-50),MAX($Y$25:Y32)-50)>0,MAX((O32-50),MAX($Y$25:Y32)-50)*AA32,0)) * (DATEDIF('Inscrire facture'!F13,'Inscrire facture'!G13,"D")*24)/720 -> 0 | AC32: =IF(B32="H",(P32*Paramètres!$D$15*(1-Paramètres!$D$17))+(P32*Paramètres!$D$16*Paramètres!$D$17),P32*Paramètres!$D$15) -> 0 | AD32: 0 | AE32: =IF(B32="H",M32*Paramètres!$D$26,0) -> 0 | AF32: =(MAX(M32,$AE$25:$AE32)*Paramètres!$D$23) * (DATEDIF('Inscrire facture'!F13,'Inscrire facture'!G13,"D")*24)/720 -> 0 | AG32: =IF(N32<=210000,N32*Paramètres!$D$24,210000*Paramètres!$D$24) -> 0 | AH32: =IF(N32>210000,(N32-210000)*Paramètres!$D$25,0) -> 0
B33: E | C33: =IF(B33="H",'Inscrire facture'!N14*'Inscrire facture'!$AA$11,0) -> 0 | D33: =C33 * 'Inscrire facture'!$AA$10 -> 0 | E33: 0 | F33: =E33 * 'Inscrire facture'!$AA$10 -> 0 | G33: ='Inscrire facture'!N14-C33-E33 -> 0 | H33: =IF('Inscrire facture'!$AA$5="Mazout Léger (no 2)",G33*Paramètres!$G$6*Paramètres!$G$7,IF('Inscrire facture'!$AA$5="Mazout Lourd (no 6)",G33*Paramètres!$G$10*Paramètres!$G$11,IF('Inscrire facture'!$AA$5="Propane",G33*Paramètres!$G$14*Paramètres!$G$15,"Erreur"))) -> 0 | I33: =H33/(DATEDIF('Inscrire facture'!F14,'Inscrire facture'!G14,"D")*24)/'Inscrire facture'!$AA$7 -> 0 | J33: ='Inscrire facture'!N14-C33 -> 0 | K33: =L33/(DATEDIF('Inscrire facture'!F14,'Inscrire facture'!G14,"D")*24)/'Inscrire facture'!$AA$7 -> 0 | L33: =IF('Inscrire facture'!$AA$5="Mazout Léger (no 2)",J33*Paramètres!$G$6*Paramètres!$G$7,IF('Inscrire facture'!$AA$5="Mazout Lourd (no 6)",J33*Paramètres!$G$10*Paramètres!$G$11,IF('Inscrire facture'!$AA$5="Propane",J33*Paramètres!$G$14*Paramètres!$G$15,"Erreur"))) -> 0 | M33: =N33/(DATEDIF('Inscrire facture'!F14,'Inscrire facture'!G14,"D")*24)/'Inscrire facture'!$AA$7 -> 0 | N33: =SUM('Inscrire facture'!I14,L33) -> 0 | O33: =P33/(DATEDIF('Inscrire facture'!F14,'Inscrire facture'!G14,"D")*24)/'Inscrire facture'!$AA$7 -> 0 | P33: =SUM('Inscrire facture'!I14,H33) -> 0 | Q33: 6.09 | R33: =Paramètres!$D$6 -> 6.09 | S33: =IF(AND(M33>50,B33="H"),(M33-50)*Paramètres!$D$11,0) -> 0 | T33: =IF(B33="H",Paramètres!$D$10,Paramètres!$D$9) -> 4.59 | U33: =(IF(OR(M33>50,MAX($S$25:S33)>0),MAX((M33-50),MAX($S$25:S33))*T33,0)) * (DATEDIF('Inscrire facture'!F14,'Inscrire facture'!G14,"D")*24)/720 -> 0 | V33: =IF(N33<=1200,N33*Paramètres!$D$7,1200*Paramètres!$D$7) -> 0 | W33: =IF(N33>1200,(N33-1200)*Paramètres!$D$8,0) -> 0 | X33: 12.192 | Y33: =IF(AND(O33>50,B33="H"),(O33-50)*Paramètres!$D$20,0) -> 0 | Z33: =DATEDIF('Inscrire facture'!F14,'Inscrire facture'!G14,"D") * Paramètres!$D$14 -> 12.192 | AA33: =IF(B33="H",Paramètres!$D$19,Paramètres!$D$18) -> 4.59 | AB33: =(IF(MAX((O33-50),MAX($Y$25:Y33)-50)>0,MAX((O33-50),MAX($Y$25:Y33)-50)*AA33,0)) * (DATEDIF('Inscrire facture'!F14,'Inscrire facture'!G14,"D")*24)/720 -> 0 | AC33: =IF(B33="H",(P33*Paramètres!$D$15*(1-Paramètres!$D$17))+(P33*Paramètres!$D$16*Paramètres!$D$17),P33*Paramètres!$D$15) -> 0 | AD33: 0 | AE33: =IF(B33="H",M33*Paramètres!$D$26,0) -> 0 | AF33: =(MAX(M33,$AE$25:$AE33)*Paramètres!$D$23) * (DATEDIF('Inscrire facture'!F14,'Inscrire facture'!G14,"D")*24)/720 -> 0 | AG33: =IF(N33<=210000,N33*Paramètres!$D$24,210000*Paramètres!$D$24) -> 0 | AH33: =IF(N33>210000,(N33-210000)*Paramètres!$D$25,0) -> 0
B34: E | C34: =IF(B34="H",'Inscrire facture'!N15*'Inscrire facture'!$AA$11,0) -> 0 | D34: =C34 * 'Inscrire facture'!$AA$10 -> 0 | E34: 0 | F34: =E34 * 'Inscrire facture'!$AA$10 -> 0 | G34: ='Inscrire facture'!N15-C34-E34 -> 0 | H34: =IF('Inscrire facture'!$AA$5="Mazout Léger (no 2)",G34*Paramètres!$G$6*Paramètres!$G$7,IF('Inscrire facture'!$AA$5="Mazout Lourd (no 6)",G34*Paramètres!$G$10*Paramètres!$G$11,IF('Inscrire facture'!$AA$5="Propane",G34*Paramètres!$G$14*Paramètres!$G$15,"Erreur"))) -> 0 | I34: =H34/(DATEDIF('Inscrire facture'!F15,'Inscrire facture'!G15,"D")*24)/'Inscrire facture'!$AA$7 -> 0 | J34: ='Inscrire facture'!N15-C34 -> 0 | K34: =L34/(DATEDIF('Inscrire facture'!F15,'Inscrire facture'!G15,"D")*24)/'Inscrire facture'!$AA$7 -> 0 | L34: =IF('Inscrire facture'!$AA$5="Mazout Léger (no 2)",J34*Paramètres!$G$6*Paramètres!$G$7,IF('Inscrire facture'!$AA$5="Mazout Lourd (no 6)",J34*Paramètres!$G$10*Paramètres!$G$11,IF('Inscrire facture'!$AA$5="Propane",J34*Paramètres!$G$14*Paramètres!$G$15,"Erreur"))) -> 0 | M34: =N34/(DATEDIF('Inscrire facture'!F15,'Inscrire facture'!G15,"D")*24)/'Inscrire facture'!$AA$7 -> 0 | N34: =SUM('Inscrire facture'!I15,L34) -> 0 | O34: =P34/(DATEDIF('Inscrire facture'!F15,'Inscrire facture'!G15,"D")*24)/'Inscrire facture'!$AA$7 -> 0 | P34: =SUM('Inscrire facture'!I15,H34) -> 0 | Q34: 6.09 | R34: =Paramètres!$D$6 -> 6.09 | S34: =IF(AND(M34>50,B34="H"),(M34-50)*Paramètres!$D$11,0) -> 0 | T34: =IF(B34="H",Paramètres!$D$10,Paramètres!$D$9) -> 4.59 | U34: =(IF(OR(M34>50,MAX($S$25:S34)>0),MAX((M34-50),MAX($S$25:S34))*T34,0)) * (DATEDIF('Inscrire facture'!F15,'Inscrire facture'!G15,"D")*24)/720 -> 0 | V34: =IF(N34<=1200,N34*Paramètres!$D$7,1200*Paramètres!$D$7) -> 0 | W34: =IF(N34>1200,(N34-1200)*Paramètres!$D$8,0) -> 0 | X34: 12.5984 | Y34: =IF(AND(O34>50,B34="H"),(O34-50)*Paramètres!$D$20,0) -> 0 | Z34: =DATEDIF('Inscrire facture'!F15,'Inscrire facture'!G15,"D") * Paramètres!$D$14 -> 12.5984 | AA34: =IF(B34="H",Paramètres!$D$19,Paramètres!$D$18) -> 4.59 | AB34: =(IF(MAX((O34-50),MAX($Y$25:Y34)-50)>0,MAX((O34-50),MAX($Y$25:Y34)-50)*AA34,0)) * (DATEDIF('Inscrire facture'!F15,'Inscrire facture'!G15,"D")*24)/720 -> 0 | AC34: =IF(B34="H",(P34*Paramètres!$D$15*(1-Paramètres!$D$17))+(P34*Paramètres!$D$16*Paramètres!$D$17),P34*Paramètres!$D$15) -> 0 | AD34: 0 | AE34: =IF(B34="H",M34*Paramètres!$D$26,0) -> 0 | AF34: =(MAX(M34,$AE$25:$AE34)*Paramètres!$D$23) * (DATEDIF('Inscrire facture'!F15,'Inscrire facture'!G15,"D")*24)/720 -> 0 | AG34: =IF(N34<=210000,N34*Paramètres!$D$24,210000*Paramètres!$D$24) -> 0 | AH34: =IF(N34>210000,(N34-210000)*Paramètres!$D$25,0) -> 0
B35: E | C35: =IF(B35="H",'Inscrire facture'!N16*'Inscrire facture'!$AA$11,0) -> 0 | D35: =C35 * 'Inscrire facture'!$AA$10 -> 0 | E35: 0 | F35: =E35 * 'Inscrire facture'!$AA$10 -> 0 | G35: ='Inscrire facture'!N16-C35-E35 -> 0 | H35: =IF('Inscrire facture'!$AA$5="Mazout Léger (no 2)",G35*Paramètres!$G$6*Paramètres!$G$7,IF('Inscrire facture'!$AA$5="Mazout Lourd (no 6)",G35*Paramètres!$G$10*Paramètres!$G$11,IF('Inscrire facture'!$AA$5="Propane",G35*Paramètres!$G$14*Paramètres!$G$15,"Erreur"))) -> 0 | I35: =H35/(DATEDIF('Inscrire facture'!F16,'Inscrire facture'!G16,"D")*24)/'Inscrire facture'!$AA$7 -> 0 | J35: ='Inscrire facture'!N16-C35 -> 0 | K35: =L35/(DATEDIF('Inscrire facture'!F16,'Inscrire facture'!G16,"D")*24)/'Inscrire facture'!$AA$7 -> 0 | L35: =IF('Inscrire facture'!$AA$5="Mazout Léger (no 2)",J35*Paramètres!$G$6*Paramètres!$G$7,IF('Inscrire facture'!$AA$5="Mazout Lourd (no 6)",J35*Paramètres!$G$10*Paramètres!$G$11,IF('Inscrire facture'!$AA$5="Propane",J35*Paramètres!$G$14*Paramètres!$G$15,"Erreur"))) -> 0 | M35: =N35/(DATEDIF('Inscrire facture'!F16,'Inscrire facture'!G16,"D")*24)/'Inscrire facture'!$AA$7 -> 0 | N35: =SUM('Inscrire facture'!I16,L35) -> 0 | O35: =P35/(DATEDIF('Inscrire facture'!F16,'Inscrire facture'!G16,"D")*24)/'Inscrire facture'!$AA$7 -> 0 | P35: =SUM('Inscrire facture'!I16,H35) -> 0 | Q35: 6.09 | R35: =Paramètres!$D$6 -> 6.09 | S35: =IF(AND(M35>50,B35="H"),(M35-50)*Paramètres!$D$11,0) -> 0 | T35: =IF(B35="H",Paramètres!$D$10,Paramètres!$D$9) -> 4.59 | U35: =(IF(OR(M35>50,MAX($S$25:S35)>0),MAX((M35-50),MAX($S$25:S35))*T35,0)) * (DATEDIF('Inscrire facture'!F16,'Inscrire facture'!G16,"D")*24)/720 -> 0 | V35: =IF(N35<=1200,N35*Paramètres!$D$7,1200*Paramètres!$D$7) -> 0 | W35: =IF(N35>1200,(N35-1200)*Paramètres!$D$8,0) -> 0 | X35: 12.192 | Y35: =IF(AND(O35>50,B35="H"),(O35-50)*Paramètres!$D$20,0) -> 0 | Z35: =DATEDIF('Inscrire facture'!F16,'Inscrire facture'!G16,"D") * Paramètres!$D$14 -> 12.192 | AA35: =IF(B35="H",Paramètres!$D$19,Paramètres!$D$18) -> 4.59 | AB35: =(IF(MAX((O35-50),MAX($Y$25:Y35)-50)>0,MAX((O35-50),MAX($Y$25:Y35)-50)*AA35,0)) * (DATEDIF('Inscrire facture'!F16,'Inscrire facture'!G16,"D")*24)/720 -> 0 | AC35: =IF(B35="H",(P35*Paramètres!$D$15*(1-Paramètres!$D$17))+(P35*Paramètres!$D$16*Paramètres!$D$17),P35*Paramètres!$D$15) -> 0 | AD35: 0 | AE35: =IF(B35="H",M35*Paramètres!$D$26,0) -> 0 | AF35: =(MAX(M35,$AE$25:$AE35)*Paramètres!$D$23) * (DATEDIF('Inscrire facture'!F16,'Inscrire facture'!G16,"D")*24)/720 -> 0 | AG35: =IF(N35<=210000,N35*Paramètres!$D$24,210000*Paramètres!$D$24) -> 0 | AH35: =IF(N35>210000,(N35-210000)*Paramètres!$D$25,0) -> 0
B36: H | C36: =IF(B36="H",'Inscrire facture'!N17*'Inscrire facture'!$AA$11,0) -> 0 | D36: =C36 * 'Inscrire facture'!$AA$10 -> 0 | E36: 0 | F36: =E36 * 'Inscrire facture'!$AA$10 -> 0 | G36: ='Inscrire facture'!N17-C36-E36 -> 0 | H36: =IF('Inscrire facture'!$AA$5="Mazout Léger (no 2)",G36*Paramètres!$G$6*Paramètres!$G$7,IF('Inscrire facture'!$AA$5="Mazout Lourd (no 6)",G36*Paramètres!$G$10*Paramètres!$G$11,IF('Inscrire facture'!$AA$5="Propane",G36*Paramètres!$G$14*Paramètres!$G$15,"Erreur"))) -> 0 | I36: =H36/(DATEDIF('Inscrire facture'!F17,'Inscrire facture'!G17,"D")*24)/'Inscrire facture'!$AA$7 -> 0 | J36: ='Inscrire facture'!N17-C36 -> 0 | K36: =L36/(DATEDIF('Inscrire facture'!F17,'Inscrire facture'!G17,"D")*24)/'Inscrire facture'!$AA$7 -> 0 | L36: =IF('Inscrire facture'!$AA$5="Mazout Léger (no 2)",J36*Paramètres!$G$6*Paramètres!$G$7,IF('Inscrire facture'!$AA$5="Mazout Lourd (no 6)",J36*Paramètres!$G$10*Paramètres!$G$11,IF('Inscrire facture'!$AA$5="Propane",J36*Paramètres!$G$14*Paramètres!$G$15,"Erreur"))) -> 0 | M36: =N36/(DATEDIF('Inscrire facture'!F17,'Inscrire facture'!G17,"D")*24)/'Inscrire facture'!$AA$7 -> 0 | N36: =SUM('Inscrire facture'!I17,L36) -> 0 | O36: =P36/(DATEDIF('Inscrire facture'!F17,'Inscrire facture'!G17,"D")*24)/'Inscrire facture'!$AA$7 -> 0 | P36: =SUM('Inscrire facture'!I17,H36) -> 0 | Q36: 6.09 | R36: =Paramètres!$D$6 -> 6.09 | S36: =IF(AND(M36>50,B36="H"),(M36-50)*Paramètres!$D$11,0) -> 0 | T36: =IF(B36="H",Paramètres!$D$10,Paramètres!$D$9) -> 6.21 | U36: =(IF(OR(M36>50,MAX($S$25:S36)>0),MAX((M36-50),MAX($S$25:S36))*T36,0)) * (DATEDIF('Inscrire facture'!F17,'Inscrire facture'!G17,"D")*24)/720 -> 0 | V36: =IF(N36<=1200,N36*Paramètres!$D$7,1200*Paramètres!$D$7) -> 0 | W36: =IF(N36>1200,(N36-1200)*Paramètres!$D$8,0) -> 0 | X36: 12.5984 | Y36: =IF(AND(O36>50,B36="H"),(O36-50)*Paramètres!$D$20,0) -> 0 | Z36: =DATEDIF('Inscrire facture'!F17,'Inscrire facture'!G17,"D") * Paramètres!$D$14 -> 12.5984 | AA36: =IF(B36="H",Paramètres!$D$19,Paramètres!$D$18) -> 6.21 | AB36: =(IF(MAX((O36-50),MAX($Y$25:Y36)-50)>0,MAX((O36-50),MAX($Y$25:Y36)-50)*AA36,0)) * (DATEDIF('Inscrire facture'!F17,'Inscrire facture'!G17,"D")*24)/720 -> 0 | AC36: =IF(B36="H",(P36*Paramètres!$D$15*(1-Paramètres!$D$17))+(P36*Paramètres!$D$16*Paramètres!$D$17),P36*Paramètres!$D$15) -> 0 | AD36: 0 | AE36: =IF(B36="H",M36*Paramètres!$D$26,0) -> 0 | AF36: =(MAX(M36,$AE$25:$AE36)*Paramètres!$D$23) * (DATEDIF('Inscrire facture'!F17,'Inscrire facture'!G17,"D")*24)/720 -> 0 | AG36: =IF(N36<=210000,N36*Paramètres!$D$24,210000*Paramètres!$D$24) -> 0 | AH36: =IF(N36>210000,(N36-210000)*Paramètres!$D$25,0) -> 0
C37: =SUM(C25:C36) -> 0 | D37: 0 | E37: 0 | F37: 0 | G37: 0 | H37: 0 | J37: =SUM(J25:J36) -> 0 | L37: =SUM(L25:L36) -> 0 | M37: =MAX(M25:M36) -> 0 | N37: =SUM(N25:N36) -> 0 | O37: =MAX(O25:O36) -> 0 | P37: =SUM(P25:P36) -> 0 | Q37: =SUM(Q25:Q36) -> 73.08 | R37: =SUM(R25:R36) -> 73.08 | U37: =SUM(U25:U36) -> 0 | V37: =SUM(V25:V36) -> 0 | W37: =SUM(W25:W36) -> 0 | X37: =SUM(X25:X36) -> 148.336 | Z37: =SUM(Z25:Z36) -> 148.336 | AB37: =SUM(AB25:AB36) -> 0 | AC37: =SUM(AC25:AC36) -> 0 | AD37: =SUM(AD25:AD36) -> 0 | AF37: =SUM(AF25:AF36) -> 0 | AG37: =SUM(AG25:AG36) -> 0 | AH37: =SUM(AH25:AH36) -> 0
D39: Tarif DT calculs additionnels | I39: Facteur d'utilisation
D40: Facteur conversion | E40: Énergie totale | F40: pourcentage | G40: Tarif DT
D41: Litres -> kWh | E41: consommée | F41: en hiver | G41: en litres | I41: Mois | J41: nb jour | K41: FU
D42: =IF('Inscrire facture'!$AA$5="Mazout Léger (no 2)",Paramètres!$G$6*Paramètres!$G$7,IF('Inscrire facture'!$AA$5="Mazout Lourd (no 6)",Paramètres!$G$10*Paramètres!$G$11,IF('Inscrire facture'!$AA$5="Propane",Paramètres!$G$14*Paramètres!$G$15,"Erreur"))) -> 7.483 | E42: ='Inscrire facture'!I6+('Inscrire facture'!N6*D42) -> 0 | F42: =IF(B25="H",VLOOKUP('Inscrire facture'!$AA$4,DegresJourHiver!$B$3:$E$14,4),0)*1.2 -> 0.06522584428 | G42: =(E42*F42) / D42 -> 0 | I42: ='Inscrire facture'!E6 -> Janvier | J42: =(DATEDIF('Inscrire facture'!F6,'Inscrire facture'!G6,"D")) -> 31 | K42: ='Inscrire facture'!I6 / ('Inscrire facture'!H6*J42*24) -> 
D43: =IF('Inscrire facture'!$AA$5="Mazout Léger (no 2)",Paramètres!$G$6*Paramètres!$G$7,IF('Inscrire facture'!$AA$5="Mazout Lourd (no 6)",Paramètres!$G$10*Paramètres!$G$11,IF('Inscrire facture'!$AA$5="Propane",Paramètres!$G$14*Paramètres!$G$15,"Erreur"))) -> 7.483 | E43: ='Inscrire facture'!I7+('Inscrire facture'!N7*D43) -> 0 | F43: =IF(B26="H",VLOOKUP('Inscrire facture'!$AA$4,DegresJourHiver!$B$3:$E$14,4),0)*1.2 -> 0.06522584428 | G43: 0 | I43: ='Inscrire facture'!E7 -> Février | J43: =(DATEDIF('Inscrire facture'!F7,'Inscrire facture'!G7,"D")) -> 28 | K43: ='Inscrire facture'!I7 / ('Inscrire facture'!H7*J43*24) -> 
D44: =IF('Inscrire facture'!$AA$5="Mazout Léger (no 2)",Paramètres!$G$6*Paramètres!$G$7,IF('Inscrire facture'!$AA$5="Mazout Lourd (no 6)",Paramètres!$G$10*Paramètres!$G$11,IF('Inscrire facture'!$AA$5="Propane",Paramètres!$G$14*Paramètres!$G$15,"Erreur"))) -> 7.483 | E44: ='Inscrire facture'!I8+('Inscrire facture'!N8*D44) -> 0 | F44: =IF(B27="H",VLOOKUP('Inscrire facture'!$AA$4,DegresJourHiver!$B$3:$E$14,4),0)*1.2 -> 0.06522584428 | G44: 0 | I44: ='Inscrire facture'!E8 -> Mars | J44: =(DATEDIF('Inscrire facture'!F8,'Inscrire facture'!G8,"D")) -> 31 | K44: ='Inscrire facture'!I8 / ('Inscrire facture'!H8*J44*24) -> 
D45: =IF('Inscrire facture'!$AA$5="Mazout Léger (no 2)",Paramètres!$G$6*Paramètres!$G$7,IF('Inscrire facture'!$AA$5="Mazout Lourd (no 6)",Paramètres!$G$10*Paramètres!$G$11,IF('Inscrire facture'!$AA$5="Propane",Paramètres!$G$14*Paramètres!$G$15,"Erreur"))) -> 7.483 | E45: ='Inscrire facture'!I9+('Inscrire facture'!N9*D45) -> 0 | F45: =IF(B28="H",VLOOKUP('Inscrire facture'!$AA$4,DegresJourHiver!$B$3:$E$14,4),0)*1.2 -> 0 | G45: 0 | I45: ='Inscrire facture'!E9 -> Avril | J45: =(DATEDIF('Inscrire facture'!F9,'Inscrire facture'!G9,"D")) -> 30 | K45: ='Inscrire facture'!I9 / ('Inscrire facture'!H9*J45*24) -> 
D46: =IF('Inscrire facture'!$AA$5="Mazout Léger (no 2)",Paramètres!$G$6*Paramètres!$G$7,IF('Inscrire facture'!$AA$5="Mazout Lourd (no 6)",Paramètres!$G$10*Paramètres!$G$11,IF('Inscrire facture'!$AA$5="Propane",Paramètres!$G$14*Paramètres!$G$15,"Erreur"))) -> 7.483 | E46: ='Inscrire facture'!I10+('Inscrire facture'!N10*D46) -> 0 | F46: =IF(B29="H",VLOOKUP('Inscrire facture'!$AA$4,DegresJourHiver!$B$3:$E$14,4),0)*1.2 -> 0 | G46: 0 | I46: ='Inscrire facture'!E10 -> Mai | J46: =(DATEDIF('Inscrire facture'!F10,'Inscrire facture'!G10,"D")) -> 31 | K46: ='Inscrire facture'!I10 / ('Inscrire facture'!H10*J46*24) -> 
D47: =IF('Inscrire facture'!$AA$5="Mazout Léger (no 2)",Paramètres!$G$6*Paramètres!$G$7,IF('Inscrire facture'!$AA$5="Mazout Lourd (no 6)",Paramètres!$G$10*Paramètres!$G$11,IF('Inscrire facture'!$AA$5="Propane",Paramètres!$G$14*Paramètres!$G$15,"Erreur"))) -> 7.483 | E47: ='Inscrire facture'!I11+('Inscrire facture'!N11*D47) -> 0 | F47: =IF(B30="H",VLOOKUP('Inscrire facture'!$AA$4,DegresJourHiver!$B$3:$E$14,4),0)*1.2 -> 0 | G47: 0 | I47: ='Inscrire facture'!E11 -> Juin | J47: =(DATEDIF('Inscrire facture'!F11,'Inscrire facture'!G11,"D")) -> 30 | K47: ='Inscrire facture'!I11 / ('Inscrire facture'!H11*J47*24) -> 
D48: =IF('Inscrire facture'!$AA$5="Mazout Léger (no 2)",Paramètres!$G$6*Paramètres!$G$7,IF('Inscrire facture'!$AA$5="Mazout Lourd (no 6)",Paramètres!$G$10*Paramètres!$G$11,IF('Inscrire facture'!$AA$5="Propane",Paramètres!$G$14*Paramètres!$G$15,"Erreur"))) -> 7.483 | E48: ='Inscrire facture'!I12+('Inscrire facture'!N12*D48) -> 0 | F48: =IF(B31="H",VLOOKUP('Inscrire facture'!$AA$4,DegresJourHiver!$B$3:$E$14,4),0)*1.2 -> 0 | G48: 0 | I48: ='Inscrire facture'!E12 -> Juillet | J48: =(DATEDIF('Inscrire facture'!F12,'Inscrire facture'!G12,"D")) -> 31 | K48: ='Inscrire facture'!I12 / ('Inscrire facture'!H12*J48*24) -> 
D49: =IF('Inscrire facture'!$AA$5="Mazout Léger (no 2)",Paramètres!$G$6*Paramètres!$G$7,IF('Inscrire facture'!$AA$5="Mazout Lourd (no 6)",Paramètres!$G$10*Paramètres!$G$11,IF('Inscrire facture'!$AA$5="Propane",Paramètres!$G$14*Paramètres!$G$15,"Erreur"))) -> 7.483 | E49: ='Inscrire facture'!I13+('Inscrire facture'!N13*D49) -> 0 | F49: =IF(B32="H",VLOOKUP('Inscrire facture'!$AA$4,DegresJourHiver!$B$3:$E$14,4),0)*1.2 -> 0 | G49: 0 | I49: ='Inscrire facture'!E13 -> Août | J49: =(DATEDIF('Inscrire facture'!F13,'Inscrire facture'!G13,"D")) -> 31 | K49: ='Inscrire facture'!I13 / ('Inscrire facture'!H13*J49*24) -> 
D50: =IF('Inscrire facture'!$AA$5="Mazout Léger (no 2)",Paramètres!$G$6*Paramètres!$G$7,IF('Inscrire facture'!$AA$5="Mazout Lourd (no 6)",Paramètres!$G$10*Paramètres!$G$11,IF('Inscrire facture'!$AA$5="Propane",Paramètres!$G$14*Paramètres!$G$15,"Erreur"))) -> 7.483 | E50: ='Inscrire facture'!I14+('Inscrire facture'!N14*D50) -> 0 | F50: =IF(B33="H",VLOOKUP('Inscrire facture'!$AA$4,DegresJourHiver!$B$3:$E$14,4),0)*1.2 -> 0 | G50: 0 | I50: ='Inscrire facture'!E14 -> Septembre | J50: =(DATEDIF('Inscrire facture'!F14,'Inscrire facture'!G14,"D")) -> 30 | K50: ='Inscrire facture'!I14 / ('Inscrire facture'!H14*J50*24) -> 
D51: =IF('Inscrire facture'!$AA$5="Mazout Léger (no 2)",Paramètres!$G$6*Paramètres!$G$7,IF('Inscrire facture'!$AA$5="Mazout Lourd (no 6)",Paramètres!$G$10*Paramètres!$G$11,IF('Inscrire facture'!$AA$5="Propane",Paramètres!$G$14*Paramètres!$G$15,"Erreur"))) -> 7.483 | E51: ='Inscrire facture'!I15+('Inscrire facture'!N15*D51) -> 0 | F51: =IF(B34="H",VLOOKUP('Inscrire facture'!$AA$4,DegresJourHiver!$B$3:$E$14,4),0)*1.2 -> 0 | G51: 0 | I51: ='Inscrire facture'!E15 -> Octobre | J51: =(DATEDIF('Inscrire facture'!F15,'Inscrire facture'!G15,"D")) -> 31 | K51: ='Inscrire facture'!I15 / ('Inscrire facture'!H15*J51*24) -> 
D52: =IF('Inscrire facture'!$AA$5="Mazout Léger (no 2)",Paramètres!$G$6*Paramètres!$G$7,IF('Inscrire facture'!$AA$5="Mazout Lourd (no 6)",Paramètres!$G$10*Paramètres!$G$11,IF('Inscrire facture'!$AA$5="Propane",Paramètres!$G$14*Paramètres!$G$15,"Erreur"))) -> 7.483 | E52: ='Inscrire facture'!I16+('Inscrire facture'!N16*D52) -> 0 | F52: =IF(B35="H",VLOOKUP('Inscrire facture'!$AA$4,DegresJourHiver!$B$3:$E$14,4),0)*1.2 -> 0 | G52: 0 | I52: ='Inscrire facture'!E16 -> Novembre | J52: =(DATEDIF('Inscrire facture'!F16,'Inscrire facture'!G16,"D")) -> 30 | K52: ='Inscrire facture'!I16 / ('Inscrire facture'!H16*J52*24) -> 
D53: =IF('Inscrire facture'!$AA$5="Mazout Léger (no 2)",Paramètres!$G$6*Paramètres!$G$7,IF('Inscrire facture'!$AA$5="Mazout Lourd (no 6)",Paramètres!$G$10*Paramètres!$G$11,IF('Inscrire facture'!$AA$5="Propane",Paramètres!$G$14*Paramètres!$G$15,"Erreur"))) -> 7.483 | E53: ='Inscrire facture'!I17+('Inscrire facture'!N17*D53) -> 0 | F53: =IF(B36="H",VLOOKUP('Inscrire facture'!$AA$4,DegresJourHiver!$B$3:$E$14,4),0)*1.2 -> 0.06522584428 | G53: 0 | I53: ='Inscrire facture'!E17 -> Décembre | J53: =(DATEDIF('Inscrire facture'!F17,'Inscrire facture'!G17,"D")) -> 31 | K53: ='Inscrire facture'!I17 / ('Inscrire facture'!H17*J53*24) -> 
I54: FU moyen | K54: =IFERROR(ROUND(AVERAGE(K42:K53)*100,1),"") -> 
